{"text_format":"3","workbook":"xlsx","n_sheets":5,"sheets":["เริ่มต้น","รายจ่ายที่วางแผนไว้","รายจ่ายจริง","ผลต่างรายจ่าย","การวิเคราะห์รายจ่าย"],"not_rendered":{"charts":2,"images":3,"defined_names":1},"read":"whole","date_system":"1900"}

{"sheet":"เริ่มต้น","index":0,"n_rows":8,"n_cols":2,"rows_kept":8}
[null,"เกี่ยวกับเทมเพลตนี้"]
[null,"ใช้เวิร์กบุ๊กงบประมาณค่าใช้จ่ายทางธุรกิจนี้ในการติดตามค่าใช้จ่ายที่วางแผนไว้และใช้จ่ายที่เกิดขึ้นจริงและผลต่างของใช้จ่าย"]
[null,"ใส่ชื่อบริษัทและเพิ่มโลโก้"]
[null,"ใส่รายละเอียดในตารางของเวิร์กชีต ค่าใช้จ่ายที่วางแผนไว้ และเวิร์กชีต ค่าใช้จ่ายที่เกิดขึ้นจริง"]
[null,"ตารางจะอัปเดตโดยอัตโนมัติในเวิร์กชีต ผลต่างของค่าใช้จ่าย และแผนภูมิในเวิร์กชีต การวิเคราะห์ค่าใช้จ่าย"]
[null,"หมายเหตุ: "]
[null,"คำแนะนำเพิ่มเติมจะอยู่ในคอลัมน์ A ในเวิร์กชีตแต่ละแผ่น ข้อความนี้ได้ถูกซ่อนไว้โดยตั้งใจ เมื่อต้องการเอาข้อความออก ให้เลือกคอลัมน์ A แล้วเลือก ลบ เมื่อต้องการยกเลิกการซ่อนข้อความ ให้เลือกคอลัมน์ A แล้วเลือกเปลี่ยนสีฟอนต์"]
[null,"เมื่อต้องการเรียนรู้เพิ่มเติมเกี่ยวกับตาราง ให้กด SHIFT แล้วตามด้วย F10 ภายในตาราง เลือกตัวเลือก ตาราง จากนั้น เลือก ข้อความแสดงแทน"]

{"sheet":"รายจ่ายที่วางแผนไว้","index":1,"n_rows":37,"n_cols":16,"rows_kept":37,"merged":[[1,10,1,12],[2,10,2,12],[3,17,12,19]]}
[{"$nulls":15}," "]
[null,"ชื่อบริษัท",{"$nulls":8},"ประมาณการค่าใช้จ่ายโดยละเอียด"]
[{"$nulls":10},"เซลล์ที่แรเงาไว้จะถูกคำนวน"]
[null,"ค่าใช้จ่ายที่วางแผนไว้","ม.ค.","ก.พ.","มี.ค.","เม.ย.","พ.ค.","มิ.ย.","ก.ค.","ส.ค.","ก.ย.","ต.ค.","พ.ย.","ธ.ค.","ปี"]
[null,"ต้นทุนพนักงาน","ม.ค.","ก.พ.","มี.ค.","เม.ย.","พ.ค.","มิ.ย.","ก.ค.","ส.ค.","ก.ย.","ต.ค.","พ.ย.","ธ.ค.","ปี"]
[null,"ค่าจ้าง",{"v":85000,"d":"฿85,000.00"},{"v":85000,"d":"฿85,000.00"},{"v":85000,"d":"฿85,000.00"},{"v":87500,"d":"฿87,500.00"},{"v":87500,"d":"฿87,500.00"},{"v":87500,"d":"฿87,500.00"},{"v":87500,"d":"฿87,500.00"},{"v":92400,"d":"฿92,400.00"},{"v":92400,"d":"฿92,400.00"},{"v":92400,"d":"฿92,400.00"},{"v":92400,"d":"฿92,400.00"},{"v":92400,"d":"฿92,400.00"},{"$f":"SUM(C6:N6)","v":{"v":1067000,"d":"฿1,067,000.00"}}]
[null,"สวัสดิการ",{"$f":"C6*0.27","v":{"v":22950,"d":"฿22,950.00"}},{"v":22950,"d":"฿22,950.00"},{"v":22950,"d":"฿22,950.00"},{"v":23625,"d":"฿23,625.00"},{"v":23625,"d":"฿23,625.00"},{"v":23625,"d":"฿23,625.00"},{"v":23625,"d":"฿23,625.00"},{"v":24948,"d":"฿24,948.00"},{"v":24948,"d":"฿24,948.00"},{"v":24948,"d":"฿24,948.00"},{"v":24948,"d":"฿24,948.00"},{"v":24948,"d":"฿24,948.00"},{"$f":"SUM(C7:N7)","v":{"v":288090,"d":"฿288,090.00"}}]
[null,"ผลรวมย่อย",{"$f":"SUBTOTAL(109,แผนพนักงาน[ม.ค.])","v":{"v":107950,"d":"฿107,950.00"}},{"$f":"SUBTOTAL(109,แผนพนักงาน[ก.พ.])","v":{"v":107950,"d":"฿107,950.00"}},{"$f":"SUBTOTAL(109,แผนพนักงาน[มี.ค.])","v":{"v":107950,"d":"฿107,950.00"}},{"$f":"SUBTOTAL(109,แผนพนักงาน[เม.ย.])","v":{"v":111125,"d":"฿111,125.00"}},{"$f":"SUBTOTAL(109,แผนพนักงาน[พ.ค.])","v":{"v":111125,"d":"฿111,125.00"}},{"$f":"SUBTOTAL(109,แผนพนักงาน[มิ.ย.])","v":{"v":111125,"d":"฿111,125.00"}},{"$f":"SUBTOTAL(109,แผนพนักงาน[ก.ค.])","v":{"v":111125,"d":"฿111,125.00"}},{"$f":"SUBTOTAL(109,แผนพนักงาน[ส.ค.])","v":{"v":117348,"d":"฿117,348.00"}},{"$f":"SUBTOTAL(109,แผนพนักงาน[ก.ย.])","v":{"v":117348,"d":"฿117,348.00"}},{"$f":"SUBTOTAL(109,แผนพนักงาน[ต.ค.])","v":{"v":117348,"d":"฿117,348.00"}},{"$f":"SUBTOTAL(109,แผนพนักงาน[พ.ย.])","v":{"v":117348,"d":"฿117,348.00"}},{"$f":"SUBTOTAL(109,แผนพนักงาน[ธ.ค.])","v":{"v":117348,"d":"฿117,348.00"}},{"$f":"SUBTOTAL(109,แผนพนักงาน[ปี])","v":{"v":1355090,"d":"฿1,355,090.00"}}]
[]
[null,"ต้นทุนสำนักงาน","ม.ค.","ก.พ.","มี.ค.","เม.ย.","พ.ค.","มิ.ย.","ก.ค.","ส.ค.","ก.ย.","ต.ค.","พ.ย.","ธ.ค.","ปี"]
[null,"ค่าเช่าสำนักงาน",{"v":9800,"d":"฿9,800.00"},{"v":9800,"d":"฿9,800.00"},{"v":9800,"d":"฿9,800.00"},{"v":9800,"d":"฿9,800.00"},{"v":9800,"d":"฿9,800.00"},{"v":9800,"d":"฿9,800.00"},{"v":9800,"d":"฿9,800.00"},{"v":9800,"d":"฿9,800.00"},{"v":9800,"d":"฿9,800.00"},{"v":9800,"d":"฿9,800.00"},{"v":9800,"d":"฿9,800.00"},{"v":9800,"d":"฿9,800.00"},{"$f":"SUM(C11:N11)","v":{"v":117600,"d":"฿117,600.00"}}]
[null,"แก๊ส",null,{"v":400,"d":"฿400.00"},{"v":400,"d":"฿400.00"},{"v":100,"d":"฿100.00"},{"v":100,"d":"฿100.00"},{"v":100,"d":"฿100.00"},{"v":100,"d":"฿100.00"},{"v":100,"d":"฿100.00"},{"v":100,"d":"฿100.00"},{"v":100,"d":"฿100.00"},{"v":400,"d":"฿400.00"},{"v":400,"d":"฿400.00"},{"v":2300,"d":"฿2,300.00"}]
[null,"ไฟฟ้า",{"v":300,"d":"฿300.00"},{"v":300,"d":"฿300.00"},{"v":300,"d":"฿300.00"},{"v":300,"d":"฿300.00"},{"v":300,"d":"฿300.00"},{"v":300,"d":"฿300.00"},{"v":300,"d":"฿300.00"},{"v":300,"d":"฿300.00"},{"v":300,"d":"฿300.00"},{"v":300,"d":"฿300.00"},{"v":300,"d":"฿300.00"},{"v":300,"d":"฿300.00"},{"v":3600,"d":"฿3,600.00"}]
[null,"น้ำ",{"v":40,"d":"฿40.00"},{"v":40,"d":"฿40.00"},{"v":40,"d":"฿40.00"},{"v":40,"d":"฿40.00"},{"v":40,"d":"฿40.00"},{"v":40,"d":"฿40.00"},{"v":40,"d":"฿40.00"},{"v":40,"d":"฿40.00"},{"v":40,"d":"฿40.00"},{"v":40,"d":"฿40.00"},{"v":40,"d":"฿40.00"},{"v":40,"d":"฿40.00"},{"v":480,"d":"฿480.00"}]
[null,"โทรศัพท์",{"v":250,"d":"฿250.00"},{"v":250,"d":"฿250.00"},{"v":250,"d":"฿250.00"},{"v":250,"d":"฿250.00"},{"v":250,"d":"฿250.00"},{"v":250,"d":"฿250.00"},{"v":250,"d":"฿250.00"},{"v":250,"d":"฿250.00"},{"v":250,"d":"฿250.00"},{"v":250,"d":"฿250.00"},{"v":250,"d":"฿250.00"},{"v":250,"d":"฿250.00"},{"v":3000,"d":"฿3,000.00"}]
[null,"การเข้าถึงอินเทอร์เน็ต",{"v":180,"d":"฿180.00"},{"v":180,"d":"฿180.00"},{"v":180,"d":"฿180.00"},{"v":180,"d":"฿180.00"},{"v":180,"d":"฿180.00"},{"v":180,"d":"฿180.00"},{"v":180,"d":"฿180.00"},{"v":180,"d":"฿180.00"},{"v":180,"d":"฿180.00"},{"v":180,"d":"฿180.00"},{"v":180,"d":"฿180.00"},{"v":180,"d":"฿180.00"},{"v":2160,"d":"฿2,160.00"}]
[null,"อุปกรณ์สำนักงาน",{"v":200,"d":"฿200.00"},{"v":200,"d":"฿200.00"},{"v":200,"d":"฿200.00"},{"v":200,"d":"฿200.00"},{"v":200,"d":"฿200.00"},{"v":200,"d":"฿200.00"},{"v":200,"d":"฿200.00"},{"v":200,"d":"฿200.00"},{"v":200,"d":"฿200.00"},{"v":200,"d":"฿200.00"},{"v":200,"d":"฿200.00"},{"v":200,"d":"฿200.00"},{"v":2400,"d":"฿2,400.00"}]
[null,"การรักษาความปลอดภัย",{"v":600,"d":"฿600.00"},{"v":600,"d":"฿600.00"},{"v":600,"d":"฿600.00"},{"v":600,"d":"฿600.00"},{"v":600,"d":"฿600.00"},{"v":600,"d":"฿600.00"},{"v":600,"d":"฿600.00"},{"v":600,"d":"฿600.00"},{"v":600,"d":"฿600.00"},{"v":600,"d":"฿600.00"},{"v":600,"d":"฿600.00"},{"v":600,"d":"฿600.00"},{"v":7200,"d":"฿7,200.00"}]
[null,"ผลรวมย่อย",{"$f":"SUBTOTAL(109,แผนสำนักงาน[ม.ค.])","v":{"v":11370,"d":"฿11,370.00"}},{"$f":"SUBTOTAL(109,แผนสำนักงาน[ก.พ.])","v":{"v":11770,"d":"฿11,770.00"}},{"$f":"SUBTOTAL(109,แผนสำนักงาน[มี.ค.])","v":{"v":11770,"d":"฿11,770.00"}},{"$f":"SUBTOTAL(109,แผนสำนักงาน[เม.ย.])","v":{"v":11470,"d":"฿11,470.00"}},{"$f":"SUBTOTAL(109,แผนสำนักงาน[พ.ค.])","v":{"v":11470,"d":"฿11,470.00"}},{"$f":"SUBTOTAL(109,แผนสำนักงาน[มิ.ย.])","v":{"v":11470,"d":"฿11,470.00"}},{"$f":"SUBTOTAL(109,แผนสำนักงาน[ก.ค.])","v":{"v":11470,"d":"฿11,470.00"}},{"$f":"SUBTOTAL(109,แผนสำนักงาน[ส.ค.])","v":{"v":11470,"d":"฿11,470.00"}},{"$f":"SUBTOTAL(109,แผนสำนักงาน[ก.ย.])","v":{"v":11470,"d":"฿11,470.00"}},{"$f":"SUBTOTAL(109,แผนสำนักงาน[ต.ค.])","v":{"v":11470,"d":"฿11,470.00"}},{"$f":"SUBTOTAL(109,แผนสำนักงาน[พ.ย.])","v":{"v":11770,"d":"฿11,770.00"}},{"$f":"SUBTOTAL(109,แผนสำนักงาน[ธ.ค.])","v":{"v":11770,"d":"฿11,770.00"}},{"$f":"SUBTOTAL(109,แผนสำนักงาน[ปี])","v":{"v":138740,"d":"฿138,740.00"}}]
[]
[null,"ต้นทุนการตลาด","ม.ค.","ก.พ.","มี.ค.","เม.ย.","พ.ค.","มิ.ย.","ก.ค.","ส.ค.","ก.ย.","ต.ค.","พ.ย.","ธ.ค.","ปี"]
[null,"การโฮสต์เว็บไซต์",{"v":500,"d":"฿500.00"},{"v":500,"d":"฿500.00"},{"v":500,"d":"฿500.00"},{"v":500,"d":"฿500.00"},{"v":500,"d":"฿500.00"},{"v":500,"d":"฿500.00"},{"v":500,"d":"฿500.00"},{"v":500,"d":"฿500.00"},{"v":500,"d":"฿500.00"},{"v":500,"d":"฿500.00"},{"v":500,"d":"฿500.00"},{"v":500,"d":"฿500.00"},{"$f":"SUM(C22:N22)","v":{"v":6000,"d":"฿6,000.00"}}]
[null,"การอัปเดตเว็บไซต์",{"v":200,"d":"฿200.00"},{"v":200,"d":"฿200.00"},{"v":200,"d":"฿200.00"},{"v":200,"d":"฿200.00"},{"v":200,"d":"฿200.00"},{"v":1000,"d":"฿1,000.00"},{"v":200,"d":"฿200.00"},{"v":200,"d":"฿200.00"},{"v":200,"d":"฿200.00"},{"v":200,"d":"฿200.00"},{"v":200,"d":"฿200.00"},{"v":1000,"d":"฿1,000.00"},{"v":4000,"d":"฿4,000.00"}]
[null,"การเตรียมเอกสารประกอบ",{"v":5000,"d":"฿5,000.00"},{"v":0,"d":"฿0.00"},{"v":0,"d":"฿0.00"},{"v":5000,"d":"฿5,000.00"},{"v":0,"d":"฿0.00"},{"v":0,"d":"฿0.00"},{"v":5000,"d":"฿5,000.00"},{"v":0,"d":"฿0.00"},{"v":0,"d":"฿0.00"},{"v":5000,"d":"฿5,000.00"},{"v":0,"d":"฿0.00"},{"v":0,"d":"฿0.00"},{"v":20000,"d":"฿20,000.00"}]
[null,"การพิมพ์เอกสารประกอบ",{"v":200,"d":"฿200.00"},{"v":200,"d":"฿200.00"},{"v":200,"d":"฿200.00"},{"v":200,"d":"฿200.00"},{"v":200,"d":"฿200.00"},{"v":200,"d":"฿200.00"},{"v":200,"d":"฿200.00"},{"v":200,"d":"฿200.00"},{"v":200,"d":"฿200.00"},{"v":200,"d":"฿200.00"},{"v":200,"d":"฿200.00"},{"v":200,"d":"฿200.00"},{"v":2400,"d":"฿2,400.00"}]
[null,"กิจกรรมด้านการตลาด",{"v":2000,"d":"฿2,000.00"},{"v":2000,"d":"฿2,000.00"},{"v":2000,"d":"฿2,000.00"},{"v":5000,"d":"฿5,000.00"},{"v":2000,"d":"฿2,000.00"},{"v":2000,"d":"฿2,000.00"},{"v":2000,"d":"฿2,000.00"},{"v":5000,"d":"฿5,000.00"},{"v":2000,"d":"฿2,000.00"},{"v":2000,"d":"฿2,000.00"},{"v":2000,"d":"฿2,000.00"},{"v":5000,"d":"฿5,000.00"},{"v":33000,"d":"฿33,000.00"}]
[null,"ค่าใช้จ่ายเบ็ดเตล็ด",{"v":200,"d":"฿200.00"},{"v":200,"d":"฿200.00"},{"v":200,"d":"฿200.00"},{"v":200,"d":"฿200.00"},{"v":200,"d":"฿200.00"},{"v":200,"d":"฿200.00"},{"v":200,"d":"฿200.00"},{"v":200,"d":"฿200.00"},{"v":200,"d":"฿200.00"},{"v":200,"d":"฿200.00"},{"v":200,"d":"฿200.00"},{"v":200,"d":"฿200.00"},{"v":2400,"d":"฿2,400.00"}]
[null,"ผลรวมย่อย",{"$f":"SUBTOTAL(109,แผนการตลาด[ม.ค.])","v":{"v":8100,"d":"฿8,100.00"}},{"$f":"SUBTOTAL(109,แผนการตลาด[ก.พ.])","v":{"v":3100,"d":"฿3,100.00"}},{"$f":"SUBTOTAL(109,แผนการตลาด[มี.ค.])","v":{"v":3100,"d":"฿3,100.00"}},{"$f":"SUBTOTAL(109,แผนการตลาด[เม.ย.])","v":{"v":11100,"d":"฿11,100.00"}},{"$f":"SUBTOTAL(109,แผนการตลาด[พ.ค.])","v":{"v":3100,"d":"฿3,100.00"}},{"$f":"SUBTOTAL(109,แผนการตลาด[มิ.ย.])","v":{"v":3900,"d":"฿3,900.00"}},{"$f":"SUBTOTAL(109,แผนการตลาด[ก.ค.])","v":{"v":8100,"d":"฿8,100.00"}},{"$f":"SUBTOTAL(109,แผนการตลาด[ส.ค.])","v":{"v":6100,"d":"฿6,100.00"}},{"$f":"SUBTOTAL(109,แผนการตลาด[ก.ย.])","v":{"v":3100,"d":"฿3,100.00"}},{"$f":"SUBTOTAL(109,แผนการตลาด[ต.ค.])","v":{"v":8100,"d":"฿8,100.00"}},{"$f":"SUBTOTAL(109,แผนการตลาด[พ.ย.])","v":{"v":3100,"d":"฿3,100.00"}},{"$f":"SUBTOTAL(109,แผนการตลาด[ธ.ค.])","v":{"v":6900,"d":"฿6,900.00"}},{"$f":"SUBTOTAL(109,แผนการตลาด[ปี])","v":{"v":67800,"d":"฿67,800.00"}}]
[]
[null,"การฝึกอบรม/เดินทาง","ม.ค.","ก.พ.","มี.ค.","เม.ย.","พ.ค.","มิ.ย.","ก.ค.","ส.ค.","ก.ย.","ต.ค.","พ.ย.","ธ.ค.","ปี"]
[null,"ชั้นเรียนการฝึกอบรม",{"v":2000,"d":"฿2,000.00"},{"v":2000,"d":"฿2,000.00"},{"v":2000,"d":"฿2,000.00"},{"v":2000,"d":"฿2,000.00"},{"v":2000,"d":"฿2,000.00"},{"v":2000,"d":"฿2,000.00"},{"v":2000,"d":"฿2,000.00"},{"v":2000,"d":"฿2,000.00"},{"v":2000,"d":"฿2,000.00"},{"v":2000,"d":"฿2,000.00"},{"v":2000,"d":"฿2,000.00"},{"v":2000,"d":"฿2,000.00"},{"$f":"SUM(C31:N31)","v":{"v":24000,"d":"฿24,000.00"}}]
[null,"ค่าเดินทางที่เกี่ยวข้องกับการฝึกอบรม",{"v":2000,"d":"฿2,000.00"},{"v":2000,"d":"฿2,000.00"},{"v":2000,"d":"฿2,000.00"},{"v":2000,"d":"฿2,000.00"},{"v":2000,"d":"฿2,000.00"},{"v":2000,"d":"฿2,000.00"},{"v":2000,"d":"฿2,000.00"},{"v":2000,"d":"฿2,000.00"},{"v":2000,"d":"฿2,000.00"},{"v":2000,"d":"฿2,000.00"},{"v":2000,"d":"฿2,000.00"},{"v":2000,"d":"฿2,000.00"},{"$f":"SUM(C32:N32)","v":{"v":24000,"d":"฿24,000.00"}}]
[null,"ผลรวมย่อย",{"$f":"SUBTOTAL(109,แผนการฝึกอบรมและการเดินทาง[ม.ค.])","v":{"v":4000,"d":"฿4,000.00"}},{"$f":"SUBTOTAL(109,แผนการฝึกอบรมและการเดินทาง[ก.พ.])","v":{"v":4000,"d":"฿4,000.00"}},{"$f":"SUBTOTAL(109,แผนการฝึกอบรมและการเดินทาง[มี.ค.])","v":{"v":4000,"d":"฿4,000.00"}},{"$f":"SUBTOTAL(109,แผนการฝึกอบรมและการเดินทาง[เม.ย.])","v":{"v":4000,"d":"฿4,000.00"}},{"$f":"SUBTOTAL(109,แผนการฝึกอบรมและการเดินทาง[พ.ค.])","v":{"v":4000,"d":"฿4,000.00"}},{"$f":"SUBTOTAL(109,แผนการฝึกอบรมและการเดินทาง[มิ.ย.])","v":{"v":4000,"d":"฿4,000.00"}},{"$f":"SUBTOTAL(109,แผนการฝึกอบรมและการเดินทาง[ก.ค.])","v":{"v":4000,"d":"฿4,000.00"}},{"$f":"SUBTOTAL(109,แผนการฝึกอบรมและการเดินทาง[ส.ค.])","v":{"v":4000,"d":"฿4,000.00"}},{"$f":"SUBTOTAL(109,แผนการฝึกอบรมและการเดินทาง[ก.ย.])","v":{"v":4000,"d":"฿4,000.00"}},{"$f":"SUBTOTAL(109,แผนการฝึกอบรมและการเดินทาง[ต.ค.])","v":{"v":4000,"d":"฿4,000.00"}},{"$f":"SUBTOTAL(109,แผนการฝึกอบรมและการเดินทาง[พ.ย.])","v":{"v":4000,"d":"฿4,000.00"}},{"$f":"SUBTOTAL(109,แผนการฝึกอบรมและการเดินทาง[ธ.ค.])","v":{"v":4000,"d":"฿4,000.00"}},{"$f":"SUBTOTAL(109,แผนการฝึกอบรมและการเดินทาง[ปี])","v":{"v":48000,"d":"฿48,000.00"}}]
[]
[null,"ผลรวม","ม.ค.","ก.พ.","มี.ค.","เม.ย.","พ.ค.","มิ.ย.","ก.ค.","ส.ค.","ก.ย.","ต.ค.","พ.ย.","ธ.ค.","ปี"]
[null,"ค่าใช้จ่ายรายเดือนที่วางแผนไว้",{"$f":"แผนการฝึกอบรมและการเดินทาง[[#Totals],[ม.ค.]]+แผนการตลาด[[#Totals],[ม.ค.]]+แผนสำนักงาน[[#Totals],[ม.ค.]]+แผนพนักงาน[[#Totals],[ม.ค.]]","v":{"v":131420,"d":"฿131,420.00"}},{"$f":"แผนการฝึกอบรมและการเดินทาง[[#Totals],[ก.พ.]]+แผนการตลาด[[#Totals],[ก.พ.]]+แผนสำนักงาน[[#Totals],[ก.พ.]]+แผนพนักงาน[[#Totals],[ก.พ.]]","v":{"v":126820,"d":"฿126,820.00"}},{"$f":"แผนการฝึกอบรมและการเดินทาง[[#Totals],[มี.ค.]]+แผนการตลาด[[#Totals],[มี.ค.]]+แผนสำนักงาน[[#Totals],[มี.ค.]]+แผนพนักงาน[[#Totals],[มี.ค.]]","v":{"v":126820,"d":"฿126,820.00"}},{"$f":"แผนการฝึกอบรมและการเดินทาง[[#Totals],[เม.ย.]]+แผนการตลาด[[#Totals],[เม.ย.]]+แผนสำนักงาน[[#Totals],[เม.ย.]]+แผนพนักงาน[[#Totals],[เม.ย.]]","v":{"v":137695,"d":"฿137,695.00"}},{"$f":"แผนการฝึกอบรมและการเดินทาง[[#Totals],[พ.ค.]]+แผนการตลาด[[#Totals],[พ.ค.]]+แผนสำนักงาน[[#Totals],[พ.ค.]]+แผนพนักงาน[[#Totals],[พ.ค.]]","v":{"v":129695,"d":"฿129,695.00"}},{"$f":"แผนการฝึกอบรมและการเดินทาง[[#Totals],[มิ.ย.]]+แผนการตลาด[[#Totals],[มิ.ย.]]+แผนสำนักงาน[[#Totals],[มิ.ย.]]+แผนพนักงาน[[#Totals],[มิ.ย.]]","v":{"v":130495,"d":"฿130,495.00"}},{"$f":"แผนการฝึกอบรมและการเดินทาง[[#Totals],[ก.ค.]]+แผนการตลาด[[#Totals],[ก.ค.]]+แผนสำนักงาน[[#Totals],[ก.ค.]]+แผนพนักงาน[[#Totals],[ก.ค.]]","v":{"v":134695,"d":"฿134,695.00"}},{"$f":"แผนการฝึกอบรมและการเดินทาง[[#Totals],[ส.ค.]]+แผนการตลาด[[#Totals],[ส.ค.]]+แผนสำนักงาน[[#Totals],[ส.ค.]]+แผนพนักงาน[[#Totals],[ส.ค.]]","v":{"v":138918,"d":"฿138,918.00"}},{"$f":"แผนการฝึกอบรมและการเดินทาง[[#Totals],[ก.ย.]]+แผนการตลาด[[#Totals],[ก.ย.]]+แผนสำนักงาน[[#Totals],[ก.ย.]]+แผนพนักงาน[[#Totals],[ก.ย.]]","v":{"v":135918,"d":"฿135,918.00"}},{"$f":"แผนการฝึกอบรมและการเดินทาง[[#Totals],[ต.ค.]]+แผนการตลาด[[#Totals],[ต.ค.]]+แผนสำนักงาน[[#Totals],[ต.ค.]]+แผนพนักงาน[[#Totals],[ต.ค.]]","v":{"v":140918,"d":"฿140,918.00"}},{"$f":"แผนการฝึกอบรมและการเดินทาง[[#Totals],[พ.ย.]]+แผนการตลาด[[#Totals],[พ.ย.]]+แผนสำนักงาน[[#Totals],[พ.ย.]]+แผนพนักงาน[[#Totals],[พ.ย.]]","v":{"v":136218,"d":"฿136,218.00"}},{"$f":"แผนการฝึกอบรมและการเดินทาง[[#Totals],[ธ.ค.]]+แผนการตลาด[[#Totals],[ธ.ค.]]+แผนสำนักงาน[[#Totals],[ธ.ค.]]+แผนพนักงาน[[#Totals],[ธ.ค.]]","v":{"v":140018,"d":"฿140,018.00"}},{"$f":"แผนการฝึกอบรมและการเดินทาง[[#Totals],[ปี]]+แผนการตลาด[[#Totals],[ปี]]+แผนสำนักงาน[[#Totals],[ปี]]+แผนพนักงาน[[#Totals],[ปี]]","v":{"v":1609630,"d":"฿1,609,630.00"}}]
[null,"ผลรวมค่าใช้จ่ายที่วางแผนไว้",{"$f":"SUM($C$36:C36)","v":{"v":131420,"d":"฿131,420.00"}},{"$f":"SUM($C$36:D36)","v":{"v":258240,"d":"฿258,240.00"}},{"$f":"SUM($C$36:E36)","v":{"v":385060,"d":"฿385,060.00"}},{"$f":"SUM($C$36:F36)","v":{"v":522755,"d":"฿522,755.00"}},{"$f":"SUM($C$36:G36)","v":{"v":652450,"d":"฿652,450.00"}},{"$f":"SUM($C$36:H36)","v":{"v":782945,"d":"฿782,945.00"}},{"$f":"SUM($C$36:I36)","v":{"v":917640,"d":"฿917,640.00"}},{"$f":"SUM($C$36:J36)","v":{"v":1056558,"d":"฿1,056,558.00"}},{"$f":"SUM($C$36:K36)","v":{"v":1192476,"d":"฿1,192,476.00"}},{"$f":"SUM($C$36:L36)","v":{"v":1333394,"d":"฿1,333,394.00"}},{"$f":"SUM($C$36:M36)","v":{"v":1469612,"d":"฿1,469,612.00"}},{"$f":"SUM($C$36:N36)","v":{"v":1609630,"d":"฿1,609,630.00"}}]

{"sheet":"รายจ่ายจริง","index":2,"n_rows":37,"n_cols":16,"rows_kept":37,"merged":[[1,10,1,12],[2,10,2,12]]}
[{"$nulls":15}," "]
[null,{"$f":"รายจ่ายที่วางแผนไว้!B2:D3","v":"ชื่อบริษัท"},{"$nulls":8},{"$f":"ชื่อเรื่อง_เวิร์กชีต","v":"ประมาณการค่าใช้จ่ายโดยละเอียด"}]
[{"$nulls":10},"เซลล์ที่แรเงาไว้จะถูกคำนวน"]
[null,"ค่าใช้จ่ายที่เกิดขึ้นจริง","ม.ค.","ก.พ.","มี.ค.","เม.ย.","พ.ค.","มิ.ย.","ก.ค.","ส.ค.","ก.ย.","ต.ค.","พ.ย.","ธ.ค.","ปี"]
[null,"ต้นทุนพนักงาน","ม.ค.","ก.พ.","มี.ค.","เม.ย.","พ.ค.","มิ.ย.","ก.ค.","ส.ค.","ก.ย.","ต.ค.","พ.ย.","ธ.ค.","ปี"]
[null,"ค่าจ้าง",{"v":85000,"d":"฿85,000.00"},{"v":85000,"d":"฿85,000.00"},{"v":85000,"d":"฿85,000.00"},{"v":88000,"d":"฿88,000.00"},{"v":88000,"d":"฿88,000.00"},{"v":88000,"d":"฿88,000.00"},{"$nulls":6},{"$f":"SUM(C6:N6)","v":{"v":519000,"d":"฿519,000.00"}}]
[null,"สวัสดิการ",{"$f":"C6*0.27","v":{"v":22950,"d":"฿22,950.00"}},{"v":22950,"d":"฿22,950.00"},{"v":22950,"d":"฿22,950.00"},{"v":23760,"d":"฿23,760.00"},{"v":23760,"d":"฿23,760.00"},{"v":23760,"d":"฿23,760.00"},{"v":0,"d":"฿0.00"},{"v":0,"d":"฿0.00"},{"v":0,"d":"฿0.00"},{"v":0,"d":"฿0.00"},{"v":0,"d":"฿0.00"},{"v":0,"d":"฿0.00"},{"$f":"SUM(C7:N7)","v":{"v":140130,"d":"฿140,130.00"}}]
[null,"ผลรวมย่อย",{"$f":"SUBTOTAL(109,ต้นทุนพนักงานจริง[ม.ค.])","v":{"v":107950,"d":"฿107,950.00"}},{"$f":"SUBTOTAL(109,ต้นทุนพนักงานจริง[ก.พ.])","v":{"v":107950,"d":"฿107,950.00"}},{"$f":"SUBTOTAL(109,ต้นทุนพนักงานจริง[มี.ค.])","v":{"v":107950,"d":"฿107,950.00"}},{"$f":"SUBTOTAL(109,ต้นทุนพนักงานจริง[เม.ย.])","v":{"v":111760,"d":"฿111,760.00"}},{"$f":"SUBTOTAL(109,ต้นทุนพนักงานจริง[พ.ค.])","v":{"v":111760,"d":"฿111,760.00"}},{"$f":"SUBTOTAL(109,ต้นทุนพนักงานจริง[มิ.ย.])","v":{"v":111760,"d":"฿111,760.00"}},{"$f":"SUBTOTAL(109,ต้นทุนพนักงานจริง[ก.ค.])","v":{"v":0,"d":"฿0.00"}},{"$f":"SUBTOTAL(109,ต้นทุนพนักงานจริง[ส.ค.])","v":{"v":0,"d":"฿0.00"}},{"$f":"SUBTOTAL(109,ต้นทุนพนักงานจริง[ก.ย.])","v":{"v":0,"d":"฿0.00"}},{"$f":"SUBTOTAL(109,ต้นทุนพนักงานจริง[ต.ค.])","v":{"v":0,"d":"฿0.00"}},{"$f":"SUBTOTAL(109,ต้นทุนพนักงานจริง[พ.ย.])","v":{"v":0,"d":"฿0.00"}},{"$f":"SUBTOTAL(109,ต้นทุนพนักงานจริง[ธ.ค.])","v":{"v":0,"d":"฿0.00"}},{"$f":"SUBTOTAL(109,ต้นทุนพนักงานจริง[ปี])","v":{"v":659130,"d":"฿659,130.00"}}]
[]
[null,"ต้นทุนสำนักงาน","ม.ค.","ก.พ.","มี.ค.","เม.ย.","พ.ค.","มิ.ย.","ก.ค.","ส.ค.","ก.ย.","ต.ค.","พ.ย.","ธ.ค.","ปี"]
[null,"ค่าเช่าสำนักงาน",{"v":9800,"d":"฿9,800.00"},{"v":9800,"d":"฿9,800.00"},{"v":9800,"d":"฿9,800.00"},{"v":9800,"d":"฿9,800.00"},{"v":9800,"d":"฿9,800.00"},{"v":9800,"d":"฿9,800.00"},{"$nulls":6},{"$f":"SUM(C11:N11)","v":{"v":58800,"d":"฿58,800.00"}}]
[null,"แก๊ส",{"v":4,"d":"฿4.00"},{"v":430,"d":"฿430.00"},{"v":385,"d":"฿385.00"},{"v":230,"d":"฿230.00"},{"v":87,"d":"฿87.00"},{"v":88,"d":"฿88.00"},{"$nulls":6},{"v":1224,"d":"฿1,224.00"}]
[null,"ไฟฟ้า",{"v":288,"d":"฿288.00"},{"v":278,"d":"฿278.00"},{"v":268,"d":"฿268.00"},{"v":299,"d":"฿299.00"},{"v":306,"d":"฿306.00"},{"v":290,"d":"฿290.00"},{"$nulls":6},{"v":1729,"d":"฿1,729.00"}]
[null,"น้ำ",{"v":35,"d":"฿35.00"},{"v":33,"d":"฿33.00"},{"v":34,"d":"฿34.00"},{"v":36,"d":"฿36.00"},{"v":34,"d":"฿34.00"},{"v":36,"d":"฿36.00"},{"$nulls":6},{"v":208,"d":"฿208.00"}]
[null,"โทรศัพท์",{"v":224,"d":"฿224.00"},{"v":235,"d":"฿235.00"},{"v":265,"d":"฿265.00"},{"v":245,"d":"฿245.00"},{"v":245,"d":"฿245.00"},{"v":220,"d":"฿220.00"},{"$nulls":6},{"v":1434,"d":"฿1,434.00"}]
[null,"การเข้าถึงอินเทอร์เน็ต",{"v":180,"d":"฿180.00"},{"v":180,"d":"฿180.00"},{"v":180,"d":"฿180.00"},{"v":180,"d":"฿180.00"},{"v":180,"d":"฿180.00"},{"v":180,"d":"฿180.00"},{"$nulls":6},{"v":1080,"d":"฿1,080.00"}]
[null,"อุปกรณ์สำนักงาน",{"v":256,"d":"฿256.00"},{"v":142,"d":"฿142.00"},{"v":160,"d":"฿160.00"},{"v":221,"d":"฿221.00"},{"v":256,"d":"฿256.00"},{"v":240,"d":"฿240.00"},{"$nulls":6},{"v":1275,"d":"฿1,275.00"}]
[null,"การรักษาความปลอดภัย",{"v":600,"d":"฿600.00"},{"v":600,"d":"฿600.00"},{"v":600,"d":"฿600.00"},{"v":600,"d":"฿600.00"},{"v":600,"d":"฿600.00"},{"v":600,"d":"฿600.00"},{"$nulls":6},{"v":3600,"d":"฿3,600.00"}]
[null,"ผลรวมย่อย",{"$f":"SUBTOTAL(109,ต้นทุนสำนักงานจริง[ม.ค.])","v":{"v":11387,"d":"฿11,387.00"}},{"$f":"SUBTOTAL(109,ต้นทุนสำนักงานจริง[ก.พ.])","v":{"v":11698,"d":"฿11,698.00"}},{"$f":"SUBTOTAL(109,ต้นทุนสำนักงานจริง[มี.ค.])","v":{"v":11692,"d":"฿11,692.00"}},{"$f":"SUBTOTAL(109,ต้นทุนสำนักงานจริง[เม.ย.])","v":{"v":11611,"d":"฿11,611.00"}},{"$f":"SUBTOTAL(109,ต้นทุนสำนักงานจริง[พ.ค.])","v":{"v":11508,"d":"฿11,508.00"}},{"$f":"SUBTOTAL(109,ต้นทุนสำนักงานจริง[มิ.ย.])","v":{"v":11454,"d":"฿11,454.00"}},{"$f":"SUBTOTAL(109,ต้นทุนสำนักงานจริง[ก.ค.])","v":{"v":0,"d":"฿0.00"}},{"$f":"SUBTOTAL(109,ต้นทุนสำนักงานจริง[ส.ค.])","v":{"v":0,"d":"฿0.00"}},{"$f":"SUBTOTAL(109,ต้นทุนสำนักงานจริง[ก.ย.])","v":{"v":0,"d":"฿0.00"}},{"$f":"SUBTOTAL(109,ต้นทุนสำนักงานจริง[ต.ค.])","v":{"v":0,"d":"฿0.00"}},{"$f":"SUBTOTAL(109,ต้นทุนสำนักงานจริง[พ.ย.])","v":{"v":0,"d":"฿0.00"}},{"$f":"SUBTOTAL(109,ต้นทุนสำนักงานจริง[ธ.ค.])","v":{"v":0,"d":"฿0.00"}},{"$f":"SUBTOTAL(109,ต้นทุนสำนักงานจริง[ปี])","v":{"v":69350,"d":"฿69,350.00"}}]
[]
[null,"ต้นทุนการตลาด","ม.ค.","ก.พ.","มี.ค.","เม.ย.","พ.ค.","มิ.ย.","ก.ค.","ส.ค.","ก.ย.","ต.ค.","พ.ย.","ธ.ค.","ปี"]
[null,"การโฮสต์เว็บไซต์",{"v":500,"d":"฿500.00"},{"v":500,"d":"฿500.00"},{"v":500,"d":"฿500.00"},{"v":500,"d":"฿500.00"},{"v":500,"d":"฿500.00"},{"v":500,"d":"฿500.00"},{"$nulls":6},{"$f":"SUM(C22:N22)","v":{"v":3000,"d":"฿3,000.00"}}]
[null,"การอัปเดตเว็บไซต์",{"v":200,"d":"฿200.00"},{"v":200,"d":"฿200.00"},{"v":200,"d":"฿200.00"},{"v":200,"d":"฿200.00"},{"v":200,"d":"฿200.00"},{"v":1500,"d":"฿1,500.00"},{"$nulls":6},{"v":2500,"d":"฿2,500.00"}]
[null,"การเตรียมเอกสารประกอบ",{"v":4800,"d":"฿4,800.00"},{"v":0,"d":"฿0.00"},{"v":0,"d":"฿0.00"},{"v":5500,"d":"฿5,500.00"},{"v":0,"d":"฿0.00"},{"v":0,"d":"฿0.00"},{"$nulls":6},{"v":10300,"d":"฿10,300.00"}]
[null,"การพิมพ์เอกสารประกอบ",{"v":100,"d":"฿100.00"},{"v":500,"d":"฿500.00"},{"v":100,"d":"฿100.00"},{"v":100,"d":"฿100.00"},{"v":600,"d":"฿600.00"},{"v":180,"d":"฿180.00"},{"$nulls":6},{"v":1580,"d":"฿1,580.00"}]
[null,"กิจกรรมด้านการตลาด",{"v":1800,"d":"฿1,800.00"},{"v":2200,"d":"฿2,200.00"},{"v":2200,"d":"฿2,200.00"},{"v":4700,"d":"฿4,700.00"},{"v":1500,"d":"฿1,500.00"},{"v":2300,"d":"฿2,300.00"},{"$nulls":6},{"v":14700,"d":"฿14,700.00"}]
[null,"ค่าใช้จ่ายเบ็ดเตล็ด",{"v":145,"d":"฿145.00"},{"v":156,"d":"฿156.00"},{"v":123,"d":"฿123.00"},{"v":223,"d":"฿223.00"},{"v":187,"d":"฿187.00"},{"v":245,"d":"฿245.00"},{"$nulls":6},{"v":1079,"d":"฿1,079.00"}]
[null,"ผลรวมย่อย",{"$f":"SUBTOTAL(109,ต้นทุนการตลาดจริง[ม.ค.])","v":{"v":7545,"d":"฿7,545.00"}},{"$f":"SUBTOTAL(109,ต้นทุนการตลาดจริง[ก.พ.])","v":{"v":3556,"d":"฿3,556.00"}},{"$f":"SUBTOTAL(109,ต้นทุนการตลาดจริง[มี.ค.])","v":{"v":3123,"d":"฿3,123.00"}},{"$f":"SUBTOTAL(109,ต้นทุนการตลาดจริง[เม.ย.])","v":{"v":11223,"d":"฿11,223.00"}},{"$f":"SUBTOTAL(109,ต้นทุนการตลาดจริง[พ.ค.])","v":{"v":2987,"d":"฿2,987.00"}},{"$f":"SUBTOTAL(109,ต้นทุนการตลาดจริง[มิ.ย.])","v":{"v":4725,"d":"฿4,725.00"}},{"$f":"SUBTOTAL(109,ต้นทุนการตลาดจริง[ก.ค.])","v":{"v":0,"d":"฿0.00"}},{"$f":"SUBTOTAL(109,ต้นทุนการตลาดจริง[ส.ค.])","v":{"v":0,"d":"฿0.00"}},{"$f":"SUBTOTAL(109,ต้นทุนการตลาดจริง[ก.ย.])","v":{"v":0,"d":"฿0.00"}},{"$f":"SUBTOTAL(109,ต้นทุนการตลาดจริง[ต.ค.])","v":{"v":0,"d":"฿0.00"}},{"$f":"SUBTOTAL(109,ต้นทุนการตลาดจริง[พ.ย.])","v":{"v":0,"d":"฿0.00"}},{"$f":"SUBTOTAL(109,ต้นทุนการตลาดจริง[ธ.ค.])","v":{"v":0,"d":"฿0.00"}},{"$f":"SUBTOTAL(109,ต้นทุนการตลาดจริง[ปี])","v":{"v":33159,"d":"฿33,159.00"}}]
[]
[null,"การฝึกอบรม/เดินทาง","ม.ค.","ก.พ.","มี.ค.","เม.ย.","พ.ค.","มิ.ย.","ก.ค.","ส.ค.","ก.ย.","ต.ค.","พ.ย.","ธ.ค.","ปี"]
[null,"ชั้นเรียนการฝึกอบรม",{"v":1600,"d":"฿1,600.00"},{"v":2400,"d":"฿2,400.00"},{"v":1400,"d":"฿1,400.00"},{"v":1600,"d":"฿1,600.00"},{"v":1200,"d":"฿1,200.00"},{"v":2800,"d":"฿2,800.00"},{"$nulls":6},{"$f":"SUM(C31:N31)","v":{"v":11000,"d":"฿11,000.00"}}]
[null,"ค่าเดินทางที่เกี่ยวข้องกับการฝึกอบรม",{"v":1200,"d":"฿1,200.00"},{"v":2200,"d":"฿2,200.00"},{"v":1400,"d":"฿1,400.00"},{"v":1200,"d":"฿1,200.00"},{"v":800,"d":"฿800.00"},{"v":3500,"d":"฿3,500.00"},{"$nulls":6},{"$f":"SUM(C32:N32)","v":{"v":10300,"d":"฿10,300.00"}}]
[null,"ผลรวมย่อย",{"$f":"SUBTOTAL(109,ต้นทุนการฝึกอบรมและการเดินทางจริง[ม.ค.])","v":{"v":2800,"d":"฿2,800.00"}},{"$f":"SUBTOTAL(109,ต้นทุนการฝึกอบรมและการเดินทางจริง[ก.พ.])","v":{"v":4600,"d":"฿4,600.00"}},{"$f":"SUBTOTAL(109,ต้นทุนการฝึกอบรมและการเดินทางจริง[มี.ค.])","v":{"v":2800,"d":"฿2,800.00"}},{"$f":"SUBTOTAL(109,ต้นทุนการฝึกอบรมและการเดินทางจริง[เม.ย.])","v":{"v":2800,"d":"฿2,800.00"}},{"$f":"SUBTOTAL(109,ต้นทุนการฝึกอบรมและการเดินทางจริง[พ.ค.])","v":{"v":2000,"d":"฿2,000.00"}},{"$f":"SUBTOTAL(109,ต้นทุนการฝึกอบรมและการเดินทางจริง[มิ.ย.])","v":{"v":6300,"d":"฿6,300.00"}},{"$f":"SUBTOTAL(109,ต้นทุนการฝึกอบรมและการเดินทางจริง[ก.ค.])","v":{"v":0,"d":"฿0.00"}},{"$f":"SUBTOTAL(109,ต้นทุนการฝึกอบรมและการเดินทางจริง[ส.ค.])","v":{"v":0,"d":"฿0.00"}},{"$f":"SUBTOTAL(109,ต้นทุนการฝึกอบรมและการเดินทางจริง[ก.ย.])","v":{"v":0,"d":"฿0.00"}},{"$f":"SUBTOTAL(109,ต้นทุนการฝึกอบรมและการเดินทางจริง[ต.ค.])","v":{"v":0,"d":"฿0.00"}},{"$f":"SUBTOTAL(109,ต้นทุนการฝึกอบรมและการเดินทางจริง[พ.ย.])","v":{"v":0,"d":"฿0.00"}},{"$f":"SUBTOTAL(109,ต้นทุนการฝึกอบรมและการเดินทางจริง[ธ.ค.])","v":{"v":0,"d":"฿0.00"}},{"$f":"SUBTOTAL(109,ต้นทุนการฝึกอบรมและการเดินทางจริง[ปี])","v":{"v":21300,"d":"฿21,300.00"}}]
[]
[null,"ผลรวมค่าใช้จ่ายที่วางแผนไว้","ม.ค.","ก.พ.","มี.ค.","เม.ย.","พ.ค.","มิ.ย.","ก.ค.","ส.ค.","ก.ย.","ต.ค.","พ.ย.","ธ.ค.","ปี"]
[null,"ค่าใช้จ่ายรายเดือนที่เกิดขึ้นจริง",{"$f":"ต้นทุนการฝึกอบรมและการเดินทางจริง[[#Totals],[ม.ค.]]+ต้นทุนการตลาดจริง[[#Totals],[ม.ค.]]+ต้นทุนสำนักงานจริง[[#Totals],[ม.ค.]]+ต้นทุนพนักงานจริง[[#Totals],[ม.ค.]]","v":{"v":129682,"d":"฿129,682.00"}},{"$f":"ต้นทุนการฝึกอบรมและการเดินทางจริง[[#Totals],[ก.พ.]]+ต้นทุนการตลาดจริง[[#Totals],[ก.พ.]]+ต้นทุนสำนักงานจริง[[#Totals],[ก.พ.]]+ต้นทุนพนักงานจริง[[#Totals],[ก.พ.]]","v":{"v":127804,"d":"฿127,804.00"}},{"$f":"ต้นทุนการฝึกอบรมและการเดินทางจริง[[#Totals],[มี.ค.]]+ต้นทุนการตลาดจริง[[#Totals],[มี.ค.]]+ต้นทุนสำนักงานจริง[[#Totals],[มี.ค.]]+ต้นทุนพนักงานจริง[[#Totals],[มี.ค.]]","v":{"v":125565,"d":"฿125,565.00"}},{"$f":"ต้นทุนการฝึกอบรมและการเดินทางจริง[[#Totals],[เม.ย.]]+ต้นทุนการตลาดจริง[[#Totals],[เม.ย.]]+ต้นทุนสำนักงานจริง[[#Totals],[เม.ย.]]+ต้นทุนพนักงานจริง[[#Totals],[เม.ย.]]","v":{"v":137394,"d":"฿137,394.00"}},{"$f":"ต้นทุนการฝึกอบรมและการเดินทางจริง[[#Totals],[พ.ค.]]+ต้นทุนการตลาดจริง[[#Totals],[พ.ค.]]+ต้นทุนสำนักงานจริง[[#Totals],[พ.ค.]]+ต้นทุนพนักงานจริง[[#Totals],[พ.ค.]]","v":{"v":128255,"d":"฿128,255.00"}},{"$f":"ต้นทุนการฝึกอบรมและการเดินทางจริง[[#Totals],[มิ.ย.]]+ต้นทุนการตลาดจริง[[#Totals],[มิ.ย.]]+ต้นทุนสำนักงานจริง[[#Totals],[มิ.ย.]]+ต้นทุนพนักงานจริง[[#Totals],[มิ.ย.]]","v":{"v":134239,"d":"฿134,239.00"}},{"$f":"ต้นทุนการฝึกอบรมและการเดินทางจริง[[#Totals],[ก.ค.]]+ต้นทุนการตลาดจริง[[#Totals],[ก.ค.]]+ต้นทุนสำนักงานจริง[[#Totals],[ก.ค.]]+ต้นทุนพนักงานจริง[[#Totals],[ก.ค.]]","v":{"v":0,"d":"฿0.00"}},{"$f":"ต้นทุนการฝึกอบรมและการเดินทางจริง[[#Totals],[ส.ค.]]+ต้นทุนการตลาดจริง[[#Totals],[ส.ค.]]+ต้นทุนสำนักงานจริง[[#Totals],[ส.ค.]]+ต้นทุนพนักงานจริง[[#Totals],[ส.ค.]]","v":{"v":0,"d":"฿0.00"}},{"$f":"ต้นทุนการฝึกอบรมและการเดินทางจริง[[#Totals],[ก.ย.]]+ต้นทุนการตลาดจริง[[#Totals],[ก.ย.]]+ต้นทุนสำนักงานจริง[[#Totals],[ก.ย.]]+ต้นทุนพนักงานจริง[[#Totals],[ก.ย.]]","v":{"v":0,"d":"฿0.00"}},{"$f":"ต้นทุนการฝึกอบรมและการเดินทางจริง[[#Totals],[ต.ค.]]+ต้นทุนการตลาดจริง[[#Totals],[ต.ค.]]+ต้นทุนสำนักงานจริง[[#Totals],[ต.ค.]]+ต้นทุนพนักงานจริง[[#Totals],[ต.ค.]]","v":{"v":0,"d":"฿0.00"}},{"$f":"ต้นทุนการฝึกอบรมและการเดินทางจริง[[#Totals],[พ.ย.]]+ต้นทุนการตลาดจริง[[#Totals],[พ.ย.]]+ต้นทุนสำนักงานจริง[[#Totals],[พ.ย.]]+ต้นทุนพนักงานจริง[[#Totals],[พ.ย.]]","v":{"v":0,"d":"฿0.00"}},{"$f":"ต้นทุนการฝึกอบรมและการเดินทางจริง[[#Totals],[ธ.ค.]]+ต้นทุนการตลาดจริง[[#Totals],[ธ.ค.]]+ต้นทุนสำนักงานจริง[[#Totals],[ธ.ค.]]+ต้นทุนพนักงานจริง[[#Totals],[ธ.ค.]]","v":{"v":0,"d":"฿0.00"}},{"$f":"ต้นทุนการฝึกอบรมและการเดินทางจริง[[#Totals],[ปี]]+ต้นทุนการตลาดจริง[[#Totals],[ปี]]+ต้นทุนสำนักงานจริง[[#Totals],[ปี]]+ต้นทุนพนักงานจริง[[#Totals],[ปี]]","v":{"v":782939,"d":"฿782,939.00"}}]
[null,"ผลรวมค่าใช้จ่ายที่เกิดขึ้นจริง",{"$f":"SUM($C$36:C36)","v":{"v":129682,"d":"฿129,682.00"}},{"$f":"SUM($C$36:D36)","v":{"v":257486,"d":"฿257,486.00"}},{"$f":"SUM($C$36:E36)","v":{"v":383051,"d":"฿383,051.00"}},{"$f":"SUM($C$36:F36)","v":{"v":520445,"d":"฿520,445.00"}},{"$f":"SUM($C$36:G36)","v":{"v":648700,"d":"฿648,700.00"}},{"$f":"SUM($C$36:H36)","v":{"v":782939,"d":"฿782,939.00"}},{"$f":"SUM($C$36:I36)","v":{"v":782939,"d":"฿782,939.00"}},{"$f":"SUM($C$36:J36)","v":{"v":782939,"d":"฿782,939.00"}},{"$f":"SUM($C$36:K36)","v":{"v":782939,"d":"฿782,939.00"}},{"$f":"SUM($C$36:L36)","v":{"v":782939,"d":"฿782,939.00"}},{"$f":"SUM($C$36:M36)","v":{"v":782939,"d":"฿782,939.00"}},{"$f":"SUM($C$36:N36)","v":{"v":782939,"d":"฿782,939.00"}}]

{"sheet":"ผลต่างรายจ่าย","index":3,"n_rows":37,"n_cols":16,"rows_kept":37,"merged":[[1,10,1,12],[2,10,2,12]]}
[{"$nulls":15}," "]
[null,{"$f":"รายจ่ายที่วางแผนไว้!B2:D3","v":"ชื่อบริษัท"},{"$nulls":8},{"$f":"ชื่อเรื่อง_เวิร์กชีต","v":"ประมาณการค่าใช้จ่ายโดยละเอียด"}]
[{"$nulls":10},"เซลล์ที่แรเงาไว้จะถูกคำนวน"]
[null,"ผลต่างของค่าใช้จ่าย","ม.ค.","ก.พ.","มี.ค.","เม.ย.","พ.ค.","มิ.ย.","ก.ค.","ส.ค.","ก.ย.","ต.ค.","พ.ย.","ธ.ค.","ปี"]
[null,"ต้นทุนพนักงาน","ม.ค.","ก.พ.","มี.ค.","เม.ย.","พ.ค.","มิ.ย.","ก.ค.","ส.ค.","ก.ย.","ต.ค.","พ.ย.","ธ.ค.","ปี"]
[null,"ค่าจ้าง",{"$f":"INDEX(แผนพนักงาน[],MATCH(INDEX(ผลต่างพนักงาน[],ROW()-ROW(ผลต่างพนักงาน[[#Headers],[ม.ค.]]),1),INDEX(แผนพนักงาน[],,1),0),MATCH(ผลต่างพนักงาน[[#Headers],[ม.ค.]],แผนพนักงาน[#Headers],0))-INDEX(ต้นทุนพนักงานจริง[],MATCH(INDEX(ผลต่างพนักงาน[],ROW()-ROW(ผลต่างพนักงาน[[#Headers],[ม.ค.]]),1),INDEX(แผนพนักงาน[],,1),0),MATCH(ผลต่างพนักงาน[[#Headers],[ม.ค.]],ต้นทุนพนักงานจริง[#Headers],0))","v":{"v":0,"d":"฿0.00"}},{"$f":"INDEX(แผนพนักงาน[],MATCH(INDEX(ผลต่างพนักงาน[],ROW()-ROW(ผลต่างพนักงาน[[#Headers],[ก.พ.]]),1),INDEX(แผนพนักงาน[],,1),0),MATCH(ผลต่างพนักงาน[[#Headers],[ก.พ.]],แผนพนักงาน[#Headers],0))-INDEX(ต้นทุนพนักงานจริง[],MATCH(INDEX(ผลต่างพนักงาน[],ROW()-ROW(ผลต่างพนักงาน[[#Headers],[ก.พ.]]),1),INDEX(แผนพนักงาน[],,1),0),MATCH(ผลต่างพนักงาน[[#Headers],[ก.พ.]],ต้นทุนพนักงานจริง[#Headers],0))","v":{"v":0,"d":"฿0.00"}},{"$f":"INDEX(แผนพนักงาน[],MATCH(INDEX(ผลต่างพนักงาน[],ROW()-ROW(ผลต่างพนักงาน[[#Headers],[มี.ค.]]),1),INDEX(แผนพนักงาน[],,1),0),MATCH(ผลต่างพนักงาน[[#Headers],[มี.ค.]],แผนพนักงาน[#Headers],0))-INDEX(ต้นทุนพนักงานจริง[],MATCH(INDEX(ผลต่างพนักงาน[],ROW()-ROW(ผลต่างพนักงาน[[#Headers],[มี.ค.]]),1),INDEX(แผนพนักงาน[],,1),0),MATCH(ผลต่างพนักงาน[[#Headers],[มี.ค.]],ต้นทุนพนักงานจริง[#Headers],0))","v":{"v":0,"d":"฿0.00"}},{"$f":"INDEX(แผนพนักงาน[],MATCH(INDEX(ผลต่างพนักงาน[],ROW()-ROW(ผลต่างพนักงาน[[#Headers],[เม.ย.]]),1),INDEX(แผนพนักงาน[],,1),0),MATCH(ผลต่างพนักงาน[[#Headers],[เม.ย.]],แผนพนักงาน[#Headers],0))-INDEX(ต้นทุนพนักงานจริง[],MATCH(INDEX(ผลต่างพนักงาน[],ROW()-ROW(ผลต่างพนักงาน[[#Headers],[เม.ย.]]),1),INDEX(แผนพนักงาน[],,1),0),MATCH(ผลต่างพนักงาน[[#Headers],[เม.ย.]],ต้นทุนพนักงานจริง[#Headers],0))","v":{"v":-500,"d":"-฿500.00"}},{"$f":"INDEX(แผนพนักงาน[],MATCH(INDEX(ผลต่างพนักงาน[],ROW()-ROW(ผลต่างพนักงาน[[#Headers],[พ.ค.]]),1),INDEX(แผนพนักงาน[],,1),0),MATCH(ผลต่างพนักงาน[[#Headers],[พ.ค.]],แผนพนักงาน[#Headers],0))-INDEX(ต้นทุนพนักงานจริง[],MATCH(INDEX(ผลต่างพนักงาน[],ROW()-ROW(ผลต่างพนักงาน[[#Headers],[พ.ค.]]),1),INDEX(แผนพนักงาน[],,1),0),MATCH(ผลต่างพนักงาน[[#Headers],[พ.ค.]],ต้นทุนพนักงานจริง[#Headers],0))","v":{"v":-500,"d":"-฿500.00"}},{"$f":"INDEX(แผนพนักงาน[],MATCH(INDEX(ผลต่างพนักงาน[],ROW()-ROW(ผลต่างพนักงาน[[#Headers],[มิ.ย.]]),1),INDEX(แผนพนักงาน[],,1),0),MATCH(ผลต่างพนักงาน[[#Headers],[มิ.ย.]],แผนพนักงาน[#Headers],0))-INDEX(ต้นทุนพนักงานจริง[],MATCH(INDEX(ผลต่างพนักงาน[],ROW()-ROW(ผลต่างพนักงาน[[#Headers],[มิ.ย.]]),1),INDEX(แผนพนักงาน[],,1),0),MATCH(ผลต่างพนักงาน[[#Headers],[มิ.ย.]],ต้นทุนพนักงานจริง[#Headers],0))","v":{"v":-500,"d":"-฿500.00"}},{"$f":"INDEX(แผนพนักงาน[],MATCH(INDEX(ผลต่างพนักงาน[],ROW()-ROW(ผลต่างพนักงาน[[#Headers],[ก.ค.]]),1),INDEX(แผนพนักงาน[],,1),0),MATCH(ผลต่างพนักงาน[[#Headers],[ก.ค.]],แผนพนักงาน[#Headers],0))-INDEX(ต้นทุนพนักงานจริง[],MATCH(INDEX(ผลต่างพนักงาน[],ROW()-ROW(ผลต่างพนักงาน[[#Headers],[ก.ค.]]),1),INDEX(แผนพนักงาน[],,1),0),MATCH(ผลต่างพนักงาน[[#Headers],[ก.ค.]],ต้นทุนพนักงานจริง[#Headers],0))","v":{"v":87500,"d":"฿87,500.00"}},{"$f":"INDEX(แผนพนักงาน[],MATCH(INDEX(ผลต่างพนักงาน[],ROW()-ROW(ผลต่างพนักงาน[[#Headers],[ส.ค.]]),1),INDEX(แผนพนักงาน[],,1),0),MATCH(ผลต่างพนักงาน[[#Headers],[ส.ค.]],แผนพนักงาน[#Headers],0))-INDEX(ต้นทุนพนักงานจริง[],MATCH(INDEX(ผลต่างพนักงาน[],ROW()-ROW(ผลต่างพนักงาน[[#Headers],[ส.ค.]]),1),INDEX(แผนพนักงาน[],,1),0),MATCH(ผลต่างพนักงาน[[#Headers],[ส.ค.]],ต้นทุนพนักงานจริง[#Headers],0))","v":{"v":92400,"d":"฿92,400.00"}},{"$f":"INDEX(แผนพนักงาน[],MATCH(INDEX(ผลต่างพนักงาน[],ROW()-ROW(ผลต่างพนักงาน[[#Headers],[ก.ย.]]),1),INDEX(แผนพนักงาน[],,1),0),MATCH(ผลต่างพนักงาน[[#Headers],[ก.ย.]],แผนพนักงาน[#Headers],0))-INDEX(ต้นทุนพนักงานจริง[],MATCH(INDEX(ผลต่างพนักงาน[],ROW()-ROW(ผลต่างพนักงาน[[#Headers],[ก.ย.]]),1),INDEX(แผนพนักงาน[],,1),0),MATCH(ผลต่างพนักงาน[[#Headers],[ก.ย.]],ต้นทุนพนักงานจริง[#Headers],0))","v":{"v":92400,"d":"฿92,400.00"}},{"$f":"INDEX(แผนพนักงาน[],MATCH(INDEX(ผลต่างพนักงาน[],ROW()-ROW(ผลต่างพนักงาน[[#Headers],[ต.ค.]]),1),INDEX(แผนพนักงาน[],,1),0),MATCH(ผลต่างพนักงาน[[#Headers],[ต.ค.]],แผนพนักงาน[#Headers],0))-INDEX(ต้นทุนพนักงานจริง[],MATCH(INDEX(ผลต่างพนักงาน[],ROW()-ROW(ผลต่างพนักงาน[[#Headers],[ต.ค.]]),1),INDEX(แผนพนักงาน[],,1),0),MATCH(ผลต่างพนักงาน[[#Headers],[ต.ค.]],ต้นทุนพนักงานจริง[#Headers],0))","v":{"v":92400,"d":"฿92,400.00"}},{"$f":"INDEX(แผนพนักงาน[],MATCH(INDEX(ผลต่างพนักงาน[],ROW()-ROW(ผลต่างพนักงาน[[#Headers],[พ.ย.]]),1),INDEX(แผนพนักงาน[],,1),0),MATCH(ผลต่างพนักงาน[[#Headers],[พ.ย.]],แผนพนักงาน[#Headers],0))-INDEX(ต้นทุนพนักงานจริง[],MATCH(INDEX(ผลต่างพนักงาน[],ROW()-ROW(ผลต่างพนักงาน[[#Headers],[พ.ย.]]),1),INDEX(แผนพนักงาน[],,1),0),MATCH(ผลต่างพนักงาน[[#Headers],[พ.ย.]],ต้นทุนพนักงานจริง[#Headers],0))","v":{"v":92400,"d":"฿92,400.00"}},{"$f":"INDEX(แผนพนักงาน[],MATCH(INDEX(ผลต่างพนักงาน[],ROW()-ROW(ผลต่างพนักงาน[[#Headers],[ธ.ค.]]),1),INDEX(แผนพนักงาน[],,1),0),MATCH(ผลต่างพนักงาน[[#Headers],[ธ.ค.]],แผนพนักงาน[#Headers],0))-INDEX(ต้นทุนพนักงานจริง[],MATCH(INDEX(ผลต่างพนักงาน[],ROW()-ROW(ผลต่างพนักงาน[[#Headers],[ธ.ค.]]),1),INDEX(แผนพนักงาน[],,1),0),MATCH(ผลต่างพนักงาน[[#Headers],[ธ.ค.]],ต้นทุนพนักงานจริง[#Headers],0))","v":{"v":92400,"d":"฿92,400.00"}},{"$f":"SUM(ผลต่างพนักงาน[[#This Row],[ม.ค.]:[ธ.ค.]])","v":{"v":548000,"d":"฿548,000.00"}}]
[null,"สวัสดิการ",{"$f":"INDEX(แผนพนักงาน[],MATCH(INDEX(ผลต่างพนักงาน[],ROW()-ROW(ผลต่างพนักงาน[[#Headers],[ม.ค.]]),1),INDEX(แผนพนักงาน[],,1),0),MATCH(ผลต่างพนักงาน[[#Headers],[ม.ค.]],แผนพนักงาน[#Headers],0))-INDEX(ต้นทุนพนักงานจริง[],MATCH(INDEX(ผลต่างพนักงาน[],ROW()-ROW(ผลต่างพนักงาน[[#Headers],[ม.ค.]]),1),INDEX(แผนพนักงาน[],,1),0),MATCH(ผลต่างพนักงาน[[#Headers],[ม.ค.]],ต้นทุนพนักงานจริง[#Headers],0))","v":{"v":0,"d":"฿0.00"}},{"$f":"INDEX(แผนพนักงาน[],MATCH(INDEX(ผลต่างพนักงาน[],ROW()-ROW(ผลต่างพนักงาน[[#Headers],[ก.พ.]]),1),INDEX(แผนพนักงาน[],,1),0),MATCH(ผลต่างพนักงาน[[#Headers],[ก.พ.]],แผนพนักงาน[#Headers],0))-INDEX(ต้นทุนพนักงานจริง[],MATCH(INDEX(ผลต่างพนักงาน[],ROW()-ROW(ผลต่างพนักงาน[[#Headers],[ก.พ.]]),1),INDEX(แผนพนักงาน[],,1),0),MATCH(ผลต่างพนักงาน[[#Headers],[ก.พ.]],ต้นทุนพนักงานจริง[#Headers],0))","v":{"v":0,"d":"฿0.00"}},{"$f":"INDEX(แผนพนักงาน[],MATCH(INDEX(ผลต่างพนักงาน[],ROW()-ROW(ผลต่างพนักงาน[[#Headers],[มี.ค.]]),1),INDEX(แผนพนักงาน[],,1),0),MATCH(ผลต่างพนักงาน[[#Headers],[มี.ค.]],แผนพนักงาน[#Headers],0))-INDEX(ต้นทุนพนักงานจริง[],MATCH(INDEX(ผลต่างพนักงาน[],ROW()-ROW(ผลต่างพนักงาน[[#Headers],[มี.ค.]]),1),INDEX(แผนพนักงาน[],,1),0),MATCH(ผลต่างพนักงาน[[#Headers],[มี.ค.]],ต้นทุนพนักงานจริง[#Headers],0))","v":{"v":0,"d":"฿0.00"}},{"$f":"INDEX(แผนพนักงาน[],MATCH(INDEX(ผลต่างพนักงาน[],ROW()-ROW(ผลต่างพนักงาน[[#Headers],[เม.ย.]]),1),INDEX(แผนพนักงาน[],,1),0),MATCH(ผลต่างพนักงาน[[#Headers],[เม.ย.]],แผนพนักงาน[#Headers],0))-INDEX(ต้นทุนพนักงานจริง[],MATCH(INDEX(ผลต่างพนักงาน[],ROW()-ROW(ผลต่างพนักงาน[[#Headers],[เม.ย.]]),1),INDEX(แผนพนักงาน[],,1),0),MATCH(ผลต่างพนักงาน[[#Headers],[เม.ย.]],ต้นทุนพนักงานจริง[#Headers],0))","v":{"v":-135,"d":"-฿135.00"}},{"$f":"INDEX(แผนพนักงาน[],MATCH(INDEX(ผลต่างพนักงาน[],ROW()-ROW(ผลต่างพนักงาน[[#Headers],[พ.ค.]]),1),INDEX(แผนพนักงาน[],,1),0),MATCH(ผลต่างพนักงาน[[#Headers],[พ.ค.]],แผนพนักงาน[#Headers],0))-INDEX(ต้นทุนพนักงานจริง[],MATCH(INDEX(ผลต่างพนักงาน[],ROW()-ROW(ผลต่างพนักงาน[[#Headers],[พ.ค.]]),1),INDEX(แผนพนักงาน[],,1),0),MATCH(ผลต่างพนักงาน[[#Headers],[พ.ค.]],ต้นทุนพนักงานจริง[#Headers],0))","v":{"v":-135,"d":"-฿135.00"}},{"$f":"INDEX(แผนพนักงาน[],MATCH(INDEX(ผลต่างพนักงาน[],ROW()-ROW(ผลต่างพนักงาน[[#Headers],[มิ.ย.]]),1),INDEX(แผนพนักงาน[],,1),0),MATCH(ผลต่างพนักงาน[[#Headers],[มิ.ย.]],แผนพนักงาน[#Headers],0))-INDEX(ต้นทุนพนักงานจริง[],MATCH(INDEX(ผลต่างพนักงาน[],ROW()-ROW(ผลต่างพนักงาน[[#Headers],[มิ.ย.]]),1),INDEX(แผนพนักงาน[],,1),0),MATCH(ผลต่างพนักงาน[[#Headers],[มิ.ย.]],ต้นทุนพนักงานจริง[#Headers],0))","v":{"v":-135,"d":"-฿135.00"}},{"$f":"INDEX(แผนพนักงาน[],MATCH(INDEX(ผลต่างพนักงาน[],ROW()-ROW(ผลต่างพนักงาน[[#Headers],[ก.ค.]]),1),INDEX(แผนพนักงาน[],,1),0),MATCH(ผลต่างพนักงาน[[#Headers],[ก.ค.]],แผนพนักงาน[#Headers],0))-INDEX(ต้นทุนพนักงานจริง[],MATCH(INDEX(ผลต่างพนักงาน[],ROW()-ROW(ผลต่างพนักงาน[[#Headers],[ก.ค.]]),1),INDEX(แผนพนักงาน[],,1),0),MATCH(ผลต่างพนักงาน[[#Headers],[ก.ค.]],ต้นทุนพนักงานจริง[#Headers],0))","v":{"v":23625,"d":"฿23,625.00"}},{"$f":"INDEX(แผนพนักงาน[],MATCH(INDEX(ผลต่างพนักงาน[],ROW()-ROW(ผลต่างพนักงาน[[#Headers],[ส.ค.]]),1),INDEX(แผนพนักงาน[],,1),0),MATCH(ผลต่างพนักงาน[[#Headers],[ส.ค.]],แผนพนักงาน[#Headers],0))-INDEX(ต้นทุนพนักงานจริง[],MATCH(INDEX(ผลต่างพนักงาน[],ROW()-ROW(ผลต่างพนักงาน[[#Headers],[ส.ค.]]),1),INDEX(แผนพนักงาน[],,1),0),MATCH(ผลต่างพนักงาน[[#Headers],[ส.ค.]],ต้นทุนพนักงานจริง[#Headers],0))","v":{"v":24948,"d":"฿24,948.00"}},{"$f":"INDEX(แผนพนักงาน[],MATCH(INDEX(ผลต่างพนักงาน[],ROW()-ROW(ผลต่างพนักงาน[[#Headers],[ก.ย.]]),1),INDEX(แผนพนักงาน[],,1),0),MATCH(ผลต่างพนักงาน[[#Headers],[ก.ย.]],แผนพนักงาน[#Headers],0))-INDEX(ต้นทุนพนักงานจริง[],MATCH(INDEX(ผลต่างพนักงาน[],ROW()-ROW(ผลต่างพนักงาน[[#Headers],[ก.ย.]]),1),INDEX(แผนพนักงาน[],,1),0),MATCH(ผลต่างพนักงาน[[#Headers],[ก.ย.]],ต้นทุนพนักงานจริง[#Headers],0))","v":{"v":24948,"d":"฿24,948.00"}},{"$f":"INDEX(แผนพนักงาน[],MATCH(INDEX(ผลต่างพนักงาน[],ROW()-ROW(ผลต่างพนักงาน[[#Headers],[ต.ค.]]),1),INDEX(แผนพนักงาน[],,1),0),MATCH(ผลต่างพนักงาน[[#Headers],[ต.ค.]],แผนพนักงาน[#Headers],0))-INDEX(ต้นทุนพนักงานจริง[],MATCH(INDEX(ผลต่างพนักงาน[],ROW()-ROW(ผลต่างพนักงาน[[#Headers],[ต.ค.]]),1),INDEX(แผนพนักงาน[],,1),0),MATCH(ผลต่างพนักงาน[[#Headers],[ต.ค.]],ต้นทุนพนักงานจริง[#Headers],0))","v":{"v":24948,"d":"฿24,948.00"}},{"$f":"INDEX(แผนพนักงาน[],MATCH(INDEX(ผลต่างพนักงาน[],ROW()-ROW(ผลต่างพนักงาน[[#Headers],[พ.ย.]]),1),INDEX(แผนพนักงาน[],,1),0),MATCH(ผลต่างพนักงาน[[#Headers],[พ.ย.]],แผนพนักงาน[#Headers],0))-INDEX(ต้นทุนพนักงานจริง[],MATCH(INDEX(ผลต่างพนักงาน[],ROW()-ROW(ผลต่างพนักงาน[[#Headers],[พ.ย.]]),1),INDEX(แผนพนักงาน[],,1),0),MATCH(ผลต่างพนักงาน[[#Headers],[พ.ย.]],ต้นทุนพนักงานจริง[#Headers],0))","v":{"v":24948,"d":"฿24,948.00"}},{"$f":"INDEX(แผนพนักงาน[],MATCH(INDEX(ผลต่างพนักงาน[],ROW()-ROW(ผลต่างพนักงาน[[#Headers],[ธ.ค.]]),1),INDEX(แผนพนักงาน[],,1),0),MATCH(ผลต่างพนักงาน[[#Headers],[ธ.ค.]],แผนพนักงาน[#Headers],0))-INDEX(ต้นทุนพนักงานจริง[],MATCH(INDEX(ผลต่างพนักงาน[],ROW()-ROW(ผลต่างพนักงาน[[#Headers],[ธ.ค.]]),1),INDEX(แผนพนักงาน[],,1),0),MATCH(ผลต่างพนักงาน[[#Headers],[ธ.ค.]],ต้นทุนพนักงานจริง[#Headers],0))","v":{"v":24948,"d":"฿24,948.00"}},{"$f":"SUM(ผลต่างพนักงาน[[#This Row],[ม.ค.]:[ธ.ค.]])","v":{"v":147960,"d":"฿147,960.00"}}]
[null,"ผลรวมย่อย",{"$f":"SUBTOTAL(109,ผลต่างพนักงาน[ม.ค.])","v":{"v":0,"d":"฿0.00"}},{"$f":"SUBTOTAL(109,ผลต่างพนักงาน[ก.พ.])","v":{"v":0,"d":"฿0.00"}},{"$f":"SUBTOTAL(109,ผลต่างพนักงาน[มี.ค.])","v":{"v":0,"d":"฿0.00"}},{"$f":"SUBTOTAL(109,ผลต่างพนักงาน[เม.ย.])","v":{"v":-635,"d":"-฿635.00"}},{"$f":"SUBTOTAL(109,ผลต่างพนักงาน[พ.ค.])","v":{"v":-635,"d":"-฿635.00"}},{"$f":"SUBTOTAL(109,ผลต่างพนักงาน[มิ.ย.])","v":{"v":-635,"d":"-฿635.00"}},{"$f":"SUBTOTAL(109,ผลต่างพนักงาน[ก.ค.])","v":{"v":111125,"d":"฿111,125.00"}},{"$f":"SUBTOTAL(109,ผลต่างพนักงาน[ส.ค.])","v":{"v":117348,"d":"฿117,348.00"}},{"$f":"SUBTOTAL(109,ผลต่างพนักงาน[ก.ย.])","v":{"v":117348,"d":"฿117,348.00"}},{"$f":"SUBTOTAL(109,ผลต่างพนักงาน[ต.ค.])","v":{"v":117348,"d":"฿117,348.00"}},{"$f":"SUBTOTAL(109,ผลต่างพนักงาน[พ.ย.])","v":{"v":117348,"d":"฿117,348.00"}},{"$f":"SUBTOTAL(109,ผลต่างพนักงาน[ธ.ค.])","v":{"v":117348,"d":"฿117,348.00"}},{"$f":"SUBTOTAL(109,ผลต่างพนักงาน[ปี])","v":{"v":695960,"d":"฿695,960.00"}}]
[]
[null,"ต้นทุนสำนักงาน","ม.ค.","ก.พ.","มี.ค.","เม.ย.","พ.ค.","มิ.ย.","ก.ค.","ส.ค.","ก.ย.","ต.ค.","พ.ย.","ธ.ค.","ปี"]
[null,"ค่าเช่าสำนักงาน",{"$f":"INDEX(แผนสำนักงาน[],MATCH(INDEX(ผลต่างสำนักงาน[],ROW()-ROW(ผลต่างสำนักงาน[[#Headers],[ม.ค.]]),1),INDEX(แผนสำนักงาน[],,1),0),MATCH(ผลต่างสำนักงาน[[#Headers],[ม.ค.]],แผนสำนักงาน[#Headers],0))-INDEX(ต้นทุนสำนักงานจริง[],MATCH(INDEX(ผลต่างสำนักงาน[],ROW()-ROW(ผลต่างสำนักงาน[[#Headers],[ม.ค.]]),1),INDEX(แผนสำนักงาน[],,1),0),MATCH(ผลต่างสำนักงาน[[#Headers],[ม.ค.]],ต้นทุนสำนักงานจริง[#Headers],0))","v":{"v":0,"d":"฿0.00"}},{"$f":"INDEX(แผนสำนักงาน[],MATCH(INDEX(ผลต่างสำนักงาน[],ROW()-ROW(ผลต่างสำนักงาน[[#Headers],[ก.พ.]]),1),INDEX(แผนสำนักงาน[],,1),0),MATCH(ผลต่างสำนักงาน[[#Headers],[ก.พ.]],แผนสำนักงาน[#Headers],0))-INDEX(ต้นทุนสำนักงานจริง[],MATCH(INDEX(ผลต่างสำนักงาน[],ROW()-ROW(ผลต่างสำนักงาน[[#Headers],[ก.พ.]]),1),INDEX(แผนสำนักงาน[],,1),0),MATCH(ผลต่างสำนักงาน[[#Headers],[ก.พ.]],ต้นทุนสำนักงานจริง[#Headers],0))","v":{"v":0,"d":"฿0.00"}},{"$f":"INDEX(แผนสำนักงาน[],MATCH(INDEX(ผลต่างสำนักงาน[],ROW()-ROW(ผลต่างสำนักงาน[[#Headers],[มี.ค.]]),1),INDEX(แผนสำนักงาน[],,1),0),MATCH(ผลต่างสำนักงาน[[#Headers],[มี.ค.]],แผนสำนักงาน[#Headers],0))-INDEX(ต้นทุนสำนักงานจริง[],MATCH(INDEX(ผลต่างสำนักงาน[],ROW()-ROW(ผลต่างสำนักงาน[[#Headers],[มี.ค.]]),1),INDEX(แผนสำนักงาน[],,1),0),MATCH(ผลต่างสำนักงาน[[#Headers],[มี.ค.]],ต้นทุนสำนักงานจริง[#Headers],0))","v":{"v":0,"d":"฿0.00"}},{"$f":"INDEX(แผนสำนักงาน[],MATCH(INDEX(ผลต่างสำนักงาน[],ROW()-ROW(ผลต่างสำนักงาน[[#Headers],[เม.ย.]]),1),INDEX(แผนสำนักงาน[],,1),0),MATCH(ผลต่างสำนักงาน[[#Headers],[เม.ย.]],แผนสำนักงาน[#Headers],0))-INDEX(ต้นทุนสำนักงานจริง[],MATCH(INDEX(ผลต่างสำนักงาน[],ROW()-ROW(ผลต่างสำนักงาน[[#Headers],[เม.ย.]]),1),INDEX(แผนสำนักงาน[],,1),0),MATCH(ผลต่างสำนักงาน[[#Headers],[เม.ย.]],ต้นทุนสำนักงานจริง[#Headers],0))","v":{"v":0,"d":"฿0.00"}},{"$f":"INDEX(แผนสำนักงาน[],MATCH(INDEX(ผลต่างสำนักงาน[],ROW()-ROW(ผลต่างสำนักงาน[[#Headers],[พ.ค.]]),1),INDEX(แผนสำนักงาน[],,1),0),MATCH(ผลต่างสำนักงาน[[#Headers],[พ.ค.]],แผนสำนักงาน[#Headers],0))-INDEX(ต้นทุนสำนักงานจริง[],MATCH(INDEX(ผลต่างสำนักงาน[],ROW()-ROW(ผลต่างสำนักงาน[[#Headers],[พ.ค.]]),1),INDEX(แผนสำนักงาน[],,1),0),MATCH(ผลต่างสำนักงาน[[#Headers],[พ.ค.]],ต้นทุนสำนักงานจริง[#Headers],0))","v":{"v":0,"d":"฿0.00"}},{"$f":"INDEX(แผนสำนักงาน[],MATCH(INDEX(ผลต่างสำนักงาน[],ROW()-ROW(ผลต่างสำนักงาน[[#Headers],[มิ.ย.]]),1),INDEX(แผนสำนักงาน[],,1),0),MATCH(ผลต่างสำนักงาน[[#Headers],[มิ.ย.]],แผนสำนักงาน[#Headers],0))-INDEX(ต้นทุนสำนักงานจริง[],MATCH(INDEX(ผลต่างสำนักงาน[],ROW()-ROW(ผลต่างสำนักงาน[[#Headers],[มิ.ย.]]),1),INDEX(แผนสำนักงาน[],,1),0),MATCH(ผลต่างสำนักงาน[[#Headers],[มิ.ย.]],ต้นทุนสำนักงานจริง[#Headers],0))","v":{"v":0,"d":"฿0.00"}},{"$f":"INDEX(แผนสำนักงาน[],MATCH(INDEX(ผลต่างสำนักงาน[],ROW()-ROW(ผลต่างสำนักงาน[[#Headers],[ก.ค.]]),1),INDEX(แผนสำนักงาน[],,1),0),MATCH(ผลต่างสำนักงาน[[#Headers],[ก.ค.]],แผนสำนักงาน[#Headers],0))-INDEX(ต้นทุนสำนักงานจริง[],MATCH(INDEX(ผลต่างสำนักงาน[],ROW()-ROW(ผลต่างสำนักงาน[[#Headers],[ก.ค.]]),1),INDEX(แผนสำนักงาน[],,1),0),MATCH(ผลต่างสำนักงาน[[#Headers],[ก.ค.]],ต้นทุนสำนักงานจริง[#Headers],0))","v":{"v":9800,"d":"฿9,800.00"}},{"$f":"INDEX(แผนสำนักงาน[],MATCH(INDEX(ผลต่างสำนักงาน[],ROW()-ROW(ผลต่างสำนักงาน[[#Headers],[ส.ค.]]),1),INDEX(แผนสำนักงาน[],,1),0),MATCH(ผลต่างสำนักงาน[[#Headers],[ส.ค.]],แผนสำนักงาน[#Headers],0))-INDEX(ต้นทุนสำนักงานจริง[],MATCH(INDEX(ผลต่างสำนักงาน[],ROW()-ROW(ผลต่างสำนักงาน[[#Headers],[ส.ค.]]),1),INDEX(แผนสำนักงาน[],,1),0),MATCH(ผลต่างสำนักงาน[[#Headers],[ส.ค.]],ต้นทุนสำนักงานจริง[#Headers],0))","v":{"v":9800,"d":"฿9,800.00"}},{"$f":"INDEX(แผนสำนักงาน[],MATCH(INDEX(ผลต่างสำนักงาน[],ROW()-ROW(ผลต่างสำนักงาน[[#Headers],[ก.ย.]]),1),INDEX(แผนสำนักงาน[],,1),0),MATCH(ผลต่างสำนักงาน[[#Headers],[ก.ย.]],แผนสำนักงาน[#Headers],0))-INDEX(ต้นทุนสำนักงานจริง[],MATCH(INDEX(ผลต่างสำนักงาน[],ROW()-ROW(ผลต่างสำนักงาน[[#Headers],[ก.ย.]]),1),INDEX(แผนสำนักงาน[],,1),0),MATCH(ผลต่างสำนักงาน[[#Headers],[ก.ย.]],ต้นทุนสำนักงานจริง[#Headers],0))","v":{"v":9800,"d":"฿9,800.00"}},{"$f":"INDEX(แผนสำนักงาน[],MATCH(INDEX(ผลต่างสำนักงาน[],ROW()-ROW(ผลต่างสำนักงาน[[#Headers],[ต.ค.]]),1),INDEX(แผนสำนักงาน[],,1),0),MATCH(ผลต่างสำนักงาน[[#Headers],[ต.ค.]],แผนสำนักงาน[#Headers],0))-INDEX(ต้นทุนสำนักงานจริง[],MATCH(INDEX(ผลต่างสำนักงาน[],ROW()-ROW(ผลต่างสำนักงาน[[#Headers],[ต.ค.]]),1),INDEX(แผนสำนักงาน[],,1),0),MATCH(ผลต่างสำนักงาน[[#Headers],[ต.ค.]],ต้นทุนสำนักงานจริง[#Headers],0))","v":{"v":9800,"d":"฿9,800.00"}},{"$f":"INDEX(แผนสำนักงาน[],MATCH(INDEX(ผลต่างสำนักงาน[],ROW()-ROW(ผลต่างสำนักงาน[[#Headers],[พ.ย.]]),1),INDEX(แผนสำนักงาน[],,1),0),MATCH(ผลต่างสำนักงาน[[#Headers],[พ.ย.]],แผนสำนักงาน[#Headers],0))-INDEX(ต้นทุนสำนักงานจริง[],MATCH(INDEX(ผลต่างสำนักงาน[],ROW()-ROW(ผลต่างสำนักงาน[[#Headers],[พ.ย.]]),1),INDEX(แผนสำนักงาน[],,1),0),MATCH(ผลต่างสำนักงาน[[#Headers],[พ.ย.]],ต้นทุนสำนักงานจริง[#Headers],0))","v":{"v":9800,"d":"฿9,800.00"}},{"$f":"INDEX(แผนสำนักงาน[],MATCH(INDEX(ผลต่างสำนักงาน[],ROW()-ROW(ผลต่างสำนักงาน[[#Headers],[ธ.ค.]]),1),INDEX(แผนสำนักงาน[],,1),0),MATCH(ผลต่างสำนักงาน[[#Headers],[ธ.ค.]],แผนสำนักงาน[#Headers],0))-INDEX(ต้นทุนสำนักงานจริง[],MATCH(INDEX(ผลต่างสำนักงาน[],ROW()-ROW(ผลต่างสำนักงาน[[#Headers],[ธ.ค.]]),1),INDEX(แผนสำนักงาน[],,1),0),MATCH(ผลต่างสำนักงาน[[#Headers],[ธ.ค.]],ต้นทุนสำนักงานจริง[#Headers],0))","v":{"v":9800,"d":"฿9,800.00"}},{"$f":"SUM(ผลต่างสำนักงาน[[#This Row],[ม.ค.]:[ธ.ค.]])","v":{"v":58800,"d":"฿58,800.00"}}]
[null,"แก๊ส",{"$f":"INDEX(แผนสำนักงาน[],MATCH(INDEX(ผลต่างสำนักงาน[],ROW()-ROW(ผลต่างสำนักงาน[[#Headers],[ม.ค.]]),1),INDEX(แผนสำนักงาน[],,1),0),MATCH(ผลต่างสำนักงาน[[#Headers],[ม.ค.]],แผนสำนักงาน[#Headers],0))-INDEX(ต้นทุนสำนักงานจริง[],MATCH(INDEX(ผลต่างสำนักงาน[],ROW()-ROW(ผลต่างสำนักงาน[[#Headers],[ม.ค.]]),1),INDEX(แผนสำนักงาน[],,1),0),MATCH(ผลต่างสำนักงาน[[#Headers],[ม.ค.]],ต้นทุนสำนักงานจริง[#Headers],0))","v":{"v":-4,"d":"-฿4.00"}},{"$f":"INDEX(แผนสำนักงาน[],MATCH(INDEX(ผลต่างสำนักงาน[],ROW()-ROW(ผลต่างสำนักงาน[[#Headers],[ก.พ.]]),1),INDEX(แผนสำนักงาน[],,1),0),MATCH(ผลต่างสำนักงาน[[#Headers],[ก.พ.]],แผนสำนักงาน[#Headers],0))-INDEX(ต้นทุนสำนักงานจริง[],MATCH(INDEX(ผลต่างสำนักงาน[],ROW()-ROW(ผลต่างสำนักงาน[[#Headers],[ก.พ.]]),1),INDEX(แผนสำนักงาน[],,1),0),MATCH(ผลต่างสำนักงาน[[#Headers],[ก.พ.]],ต้นทุนสำนักงานจริง[#Headers],0))","v":{"v":-30,"d":"-฿30.00"}},{"$f":"INDEX(แผนสำนักงาน[],MATCH(INDEX(ผลต่างสำนักงาน[],ROW()-ROW(ผลต่างสำนักงาน[[#Headers],[มี.ค.]]),1),INDEX(แผนสำนักงาน[],,1),0),MATCH(ผลต่างสำนักงาน[[#Headers],[มี.ค.]],แผนสำนักงาน[#Headers],0))-INDEX(ต้นทุนสำนักงานจริง[],MATCH(INDEX(ผลต่างสำนักงาน[],ROW()-ROW(ผลต่างสำนักงาน[[#Headers],[มี.ค.]]),1),INDEX(แผนสำนักงาน[],,1),0),MATCH(ผลต่างสำนักงาน[[#Headers],[มี.ค.]],ต้นทุนสำนักงานจริง[#Headers],0))","v":{"v":15,"d":"฿15.00"}},{"$f":"INDEX(แผนสำนักงาน[],MATCH(INDEX(ผลต่างสำนักงาน[],ROW()-ROW(ผลต่างสำนักงาน[[#Headers],[เม.ย.]]),1),INDEX(แผนสำนักงาน[],,1),0),MATCH(ผลต่างสำนักงาน[[#Headers],[เม.ย.]],แผนสำนักงาน[#Headers],0))-INDEX(ต้นทุนสำนักงานจริง[],MATCH(INDEX(ผลต่างสำนักงาน[],ROW()-ROW(ผลต่างสำนักงาน[[#Headers],[เม.ย.]]),1),INDEX(แผนสำนักงาน[],,1),0),MATCH(ผลต่างสำนักงาน[[#Headers],[เม.ย.]],ต้นทุนสำนักงานจริง[#Headers],0))","v":{"v":-130,"d":"-฿130.00"}},{"$f":"INDEX(แผนสำนักงาน[],MATCH(INDEX(ผลต่างสำนักงาน[],ROW()-ROW(ผลต่างสำนักงาน[[#Headers],[พ.ค.]]),1),INDEX(แผนสำนักงาน[],,1),0),MATCH(ผลต่างสำนักงาน[[#Headers],[พ.ค.]],แผนสำนักงาน[#Headers],0))-INDEX(ต้นทุนสำนักงานจริง[],MATCH(INDEX(ผลต่างสำนักงาน[],ROW()-ROW(ผลต่างสำนักงาน[[#Headers],[พ.ค.]]),1),INDEX(แผนสำนักงาน[],,1),0),MATCH(ผลต่างสำนักงาน[[#Headers],[พ.ค.]],ต้นทุนสำนักงานจริง[#Headers],0))","v":{"v":13,"d":"฿13.00"}},{"$f":"INDEX(แผนสำนักงาน[],MATCH(INDEX(ผลต่างสำนักงาน[],ROW()-ROW(ผลต่างสำนักงาน[[#Headers],[มิ.ย.]]),1),INDEX(แผนสำนักงาน[],,1),0),MATCH(ผลต่างสำนักงาน[[#Headers],[มิ.ย.]],แผนสำนักงาน[#Headers],0))-INDEX(ต้นทุนสำนักงานจริง[],MATCH(INDEX(ผลต่างสำนักงาน[],ROW()-ROW(ผลต่างสำนักงาน[[#Headers],[มิ.ย.]]),1),INDEX(แผนสำนักงาน[],,1),0),MATCH(ผลต่างสำนักงาน[[#Headers],[มิ.ย.]],ต้นทุนสำนักงานจริง[#Headers],0))","v":{"v":12,"d":"฿12.00"}},{"$f":"INDEX(แผนสำนักงาน[],MATCH(INDEX(ผลต่างสำนักงาน[],ROW()-ROW(ผลต่างสำนักงาน[[#Headers],[ก.ค.]]),1),INDEX(แผนสำนักงาน[],,1),0),MATCH(ผลต่างสำนักงาน[[#Headers],[ก.ค.]],แผนสำนักงาน[#Headers],0))-INDEX(ต้นทุนสำนักงานจริง[],MATCH(INDEX(ผลต่างสำนักงาน[],ROW()-ROW(ผลต่างสำนักงาน[[#Headers],[ก.ค.]]),1),INDEX(แผนสำนักงาน[],,1),0),MATCH(ผลต่างสำนักงาน[[#Headers],[ก.ค.]],ต้นทุนสำนักงานจริง[#Headers],0))","v":{"v":100,"d":"฿100.00"}},{"$f":"INDEX(แผนสำนักงาน[],MATCH(INDEX(ผลต่างสำนักงาน[],ROW()-ROW(ผลต่างสำนักงาน[[#Headers],[ส.ค.]]),1),INDEX(แผนสำนักงาน[],,1),0),MATCH(ผลต่างสำนักงาน[[#Headers],[ส.ค.]],แผนสำนักงาน[#Headers],0))-INDEX(ต้นทุนสำนักงานจริง[],MATCH(INDEX(ผลต่างสำนักงาน[],ROW()-ROW(ผลต่างสำนักงาน[[#Headers],[ส.ค.]]),1),INDEX(แผนสำนักงาน[],,1),0),MATCH(ผลต่างสำนักงาน[[#Headers],[ส.ค.]],ต้นทุนสำนักงานจริง[#Headers],0))","v":{"v":100,"d":"฿100.00"}},{"$f":"INDEX(แผนสำนักงาน[],MATCH(INDEX(ผลต่างสำนักงาน[],ROW()-ROW(ผลต่างสำนักงาน[[#Headers],[ก.ย.]]),1),INDEX(แผนสำนักงาน[],,1),0),MATCH(ผลต่างสำนักงาน[[#Headers],[ก.ย.]],แผนสำนักงาน[#Headers],0))-INDEX(ต้นทุนสำนักงานจริง[],MATCH(INDEX(ผลต่างสำนักงาน[],ROW()-ROW(ผลต่างสำนักงาน[[#Headers],[ก.ย.]]),1),INDEX(แผนสำนักงาน[],,1),0),MATCH(ผลต่างสำนักงาน[[#Headers],[ก.ย.]],ต้นทุนสำนักงานจริง[#Headers],0))","v":{"v":100,"d":"฿100.00"}},{"$f":"INDEX(แผนสำนักงาน[],MATCH(INDEX(ผลต่างสำนักงาน[],ROW()-ROW(ผลต่างสำนักงาน[[#Headers],[ต.ค.]]),1),INDEX(แผนสำนักงาน[],,1),0),MATCH(ผลต่างสำนักงาน[[#Headers],[ต.ค.]],แผนสำนักงาน[#Headers],0))-INDEX(ต้นทุนสำนักงานจริง[],MATCH(INDEX(ผลต่างสำนักงาน[],ROW()-ROW(ผลต่างสำนักงาน[[#Headers],[ต.ค.]]),1),INDEX(แผนสำนักงาน[],,1),0),MATCH(ผลต่างสำนักงาน[[#Headers],[ต.ค.]],ต้นทุนสำนักงานจริง[#Headers],0))","v":{"v":100,"d":"฿100.00"}},{"$f":"INDEX(แผนสำนักงาน[],MATCH(INDEX(ผลต่างสำนักงาน[],ROW()-ROW(ผลต่างสำนักงาน[[#Headers],[พ.ย.]]),1),INDEX(แผนสำนักงาน[],,1),0),MATCH(ผลต่างสำนักงาน[[#Headers],[พ.ย.]],แผนสำนักงาน[#Headers],0))-INDEX(ต้นทุนสำนักงานจริง[],MATCH(INDEX(ผลต่างสำนักงาน[],ROW()-ROW(ผลต่างสำนักงาน[[#Headers],[พ.ย.]]),1),INDEX(แผนสำนักงาน[],,1),0),MATCH(ผลต่างสำนักงาน[[#Headers],[พ.ย.]],ต้นทุนสำนักงานจริง[#Headers],0))","v":{"v":400,"d":"฿400.00"}},{"$f":"INDEX(แผนสำนักงาน[],MATCH(INDEX(ผลต่างสำนักงาน[],ROW()-ROW(ผลต่างสำนักงาน[[#Headers],[ธ.ค.]]),1),INDEX(แผนสำนักงาน[],,1),0),MATCH(ผลต่างสำนักงาน[[#Headers],[ธ.ค.]],แผนสำนักงาน[#Headers],0))-INDEX(ต้นทุนสำนักงานจริง[],MATCH(INDEX(ผลต่างสำนักงาน[],ROW()-ROW(ผลต่างสำนักงาน[[#Headers],[ธ.ค.]]),1),INDEX(แผนสำนักงาน[],,1),0),MATCH(ผลต่างสำนักงาน[[#Headers],[ธ.ค.]],ต้นทุนสำนักงานจริง[#Headers],0))","v":{"v":400,"d":"฿400.00"}},{"$f":"SUM(ผลต่างสำนักงาน[[#This Row],[ม.ค.]:[ธ.ค.]])","v":{"v":1076,"d":"฿1,076.00"}}]
[null,"ไฟฟ้า",{"$f":"INDEX(แผนสำนักงาน[],MATCH(INDEX(ผลต่างสำนักงาน[],ROW()-ROW(ผลต่างสำนักงาน[[#Headers],[ม.ค.]]),1),INDEX(แผนสำนักงาน[],,1),0),MATCH(ผลต่างสำนักงาน[[#Headers],[ม.ค.]],แผนสำนักงาน[#Headers],0))-INDEX(ต้นทุนสำนักงานจริง[],MATCH(INDEX(ผลต่างสำนักงาน[],ROW()-ROW(ผลต่างสำนักงาน[[#Headers],[ม.ค.]]),1),INDEX(แผนสำนักงาน[],,1),0),MATCH(ผลต่างสำนักงาน[[#Headers],[ม.ค.]],ต้นทุนสำนักงานจริง[#Headers],0))","v":{"v":12,"d":"฿12.00"}},{"$f":"INDEX(แผนสำนักงาน[],MATCH(INDEX(ผลต่างสำนักงาน[],ROW()-ROW(ผลต่างสำนักงาน[[#Headers],[ก.พ.]]),1),INDEX(แผนสำนักงาน[],,1),0),MATCH(ผลต่างสำนักงาน[[#Headers],[ก.พ.]],แผนสำนักงาน[#Headers],0))-INDEX(ต้นทุนสำนักงานจริง[],MATCH(INDEX(ผลต่างสำนักงาน[],ROW()-ROW(ผลต่างสำนักงาน[[#Headers],[ก.พ.]]),1),INDEX(แผนสำนักงาน[],,1),0),MATCH(ผลต่างสำนักงาน[[#Headers],[ก.พ.]],ต้นทุนสำนักงานจริง[#Headers],0))","v":{"v":22,"d":"฿22.00"}},{"$f":"INDEX(แผนสำนักงาน[],MATCH(INDEX(ผลต่างสำนักงาน[],ROW()-ROW(ผลต่างสำนักงาน[[#Headers],[มี.ค.]]),1),INDEX(แผนสำนักงาน[],,1),0),MATCH(ผลต่างสำนักงาน[[#Headers],[มี.ค.]],แผนสำนักงาน[#Headers],0))-INDEX(ต้นทุนสำนักงานจริง[],MATCH(INDEX(ผลต่างสำนักงาน[],ROW()-ROW(ผลต่างสำนักงาน[[#Headers],[มี.ค.]]),1),INDEX(แผนสำนักงาน[],,1),0),MATCH(ผลต่างสำนักงาน[[#Headers],[มี.ค.]],ต้นทุนสำนักงานจริง[#Headers],0))","v":{"v":32,"d":"฿32.00"}},{"$f":"INDEX(แผนสำนักงาน[],MATCH(INDEX(ผลต่างสำนักงาน[],ROW()-ROW(ผลต่างสำนักงาน[[#Headers],[เม.ย.]]),1),INDEX(แผนสำนักงาน[],,1),0),MATCH(ผลต่างสำนักงาน[[#Headers],[เม.ย.]],แผนสำนักงาน[#Headers],0))-INDEX(ต้นทุนสำนักงานจริง[],MATCH(INDEX(ผลต่างสำนักงาน[],ROW()-ROW(ผลต่างสำนักงาน[[#Headers],[เม.ย.]]),1),INDEX(แผนสำนักงาน[],,1),0),MATCH(ผลต่างสำนักงาน[[#Headers],[เม.ย.]],ต้นทุนสำนักงานจริง[#Headers],0))","v":{"v":1,"d":"฿1.00"}},{"$f":"INDEX(แผนสำนักงาน[],MATCH(INDEX(ผลต่างสำนักงาน[],ROW()-ROW(ผลต่างสำนักงาน[[#Headers],[พ.ค.]]),1),INDEX(แผนสำนักงาน[],,1),0),MATCH(ผลต่างสำนักงาน[[#Headers],[พ.ค.]],แผนสำนักงาน[#Headers],0))-INDEX(ต้นทุนสำนักงานจริง[],MATCH(INDEX(ผลต่างสำนักงาน[],ROW()-ROW(ผลต่างสำนักงาน[[#Headers],[พ.ค.]]),1),INDEX(แผนสำนักงาน[],,1),0),MATCH(ผลต่างสำนักงาน[[#Headers],[พ.ค.]],ต้นทุนสำนักงานจริง[#Headers],0))","v":{"v":-6,"d":"-฿6.00"}},{"$f":"INDEX(แผนสำนักงาน[],MATCH(INDEX(ผลต่างสำนักงาน[],ROW()-ROW(ผลต่างสำนักงาน[[#Headers],[มิ.ย.]]),1),INDEX(แผนสำนักงาน[],,1),0),MATCH(ผลต่างสำนักงาน[[#Headers],[มิ.ย.]],แผนสำนักงาน[#Headers],0))-INDEX(ต้นทุนสำนักงานจริง[],MATCH(INDEX(ผลต่างสำนักงาน[],ROW()-ROW(ผลต่างสำนักงาน[[#Headers],[มิ.ย.]]),1),INDEX(แผนสำนักงาน[],,1),0),MATCH(ผลต่างสำนักงาน[[#Headers],[มิ.ย.]],ต้นทุนสำนักงานจริง[#Headers],0))","v":{"v":10,"d":"฿10.00"}},{"$f":"INDEX(แผนสำนักงาน[],MATCH(INDEX(ผลต่างสำนักงาน[],ROW()-ROW(ผลต่างสำนักงาน[[#Headers],[ก.ค.]]),1),INDEX(แผนสำนักงาน[],,1),0),MATCH(ผลต่างสำนักงาน[[#Headers],[ก.ค.]],แผนสำนักงาน[#Headers],0))-INDEX(ต้นทุนสำนักงานจริง[],MATCH(INDEX(ผลต่างสำนักงาน[],ROW()-ROW(ผลต่างสำนักงาน[[#Headers],[ก.ค.]]),1),INDEX(แผนสำนักงาน[],,1),0),MATCH(ผลต่างสำนักงาน[[#Headers],[ก.ค.]],ต้นทุนสำนักงานจริง[#Headers],0))","v":{"v":300,"d":"฿300.00"}},{"$f":"INDEX(แผนสำนักงาน[],MATCH(INDEX(ผลต่างสำนักงาน[],ROW()-ROW(ผลต่างสำนักงาน[[#Headers],[ส.ค.]]),1),INDEX(แผนสำนักงาน[],,1),0),MATCH(ผลต่างสำนักงาน[[#Headers],[ส.ค.]],แผนสำนักงาน[#Headers],0))-INDEX(ต้นทุนสำนักงานจริง[],MATCH(INDEX(ผลต่างสำนักงาน[],ROW()-ROW(ผลต่างสำนักงาน[[#Headers],[ส.ค.]]),1),INDEX(แผนสำนักงาน[],,1),0),MATCH(ผลต่างสำนักงาน[[#Headers],[ส.ค.]],ต้นทุนสำนักงานจริง[#Headers],0))","v":{"v":300,"d":"฿300.00"}},{"$f":"INDEX(แผนสำนักงาน[],MATCH(INDEX(ผลต่างสำนักงาน[],ROW()-ROW(ผลต่างสำนักงาน[[#Headers],[ก.ย.]]),1),INDEX(แผนสำนักงาน[],,1),0),MATCH(ผลต่างสำนักงาน[[#Headers],[ก.ย.]],แผนสำนักงาน[#Headers],0))-INDEX(ต้นทุนสำนักงานจริง[],MATCH(INDEX(ผลต่างสำนักงาน[],ROW()-ROW(ผลต่างสำนักงาน[[#Headers],[ก.ย.]]),1),INDEX(แผนสำนักงาน[],,1),0),MATCH(ผลต่างสำนักงาน[[#Headers],[ก.ย.]],ต้นทุนสำนักงานจริง[#Headers],0))","v":{"v":300,"d":"฿300.00"}},{"$f":"INDEX(แผนสำนักงาน[],MATCH(INDEX(ผลต่างสำนักงาน[],ROW()-ROW(ผลต่างสำนักงาน[[#Headers],[ต.ค.]]),1),INDEX(แผนสำนักงาน[],,1),0),MATCH(ผลต่างสำนักงาน[[#Headers],[ต.ค.]],แผนสำนักงาน[#Headers],0))-INDEX(ต้นทุนสำนักงานจริง[],MATCH(INDEX(ผลต่างสำนักงาน[],ROW()-ROW(ผลต่างสำนักงาน[[#Headers],[ต.ค.]]),1),INDEX(แผนสำนักงาน[],,1),0),MATCH(ผลต่างสำนักงาน[[#Headers],[ต.ค.]],ต้นทุนสำนักงานจริง[#Headers],0))","v":{"v":300,"d":"฿300.00"}},{"$f":"INDEX(แผนสำนักงาน[],MATCH(INDEX(ผลต่างสำนักงาน[],ROW()-ROW(ผลต่างสำนักงาน[[#Headers],[พ.ย.]]),1),INDEX(แผนสำนักงาน[],,1),0),MATCH(ผลต่างสำนักงาน[[#Headers],[พ.ย.]],แผนสำนักงาน[#Headers],0))-INDEX(ต้นทุนสำนักงานจริง[],MATCH(INDEX(ผลต่างสำนักงาน[],ROW()-ROW(ผลต่างสำนักงาน[[#Headers],[พ.ย.]]),1),INDEX(แผนสำนักงาน[],,1),0),MATCH(ผลต่างสำนักงาน[[#Headers],[พ.ย.]],ต้นทุนสำนักงานจริง[#Headers],0))","v":{"v":300,"d":"฿300.00"}},{"$f":"INDEX(แผนสำนักงาน[],MATCH(INDEX(ผลต่างสำนักงาน[],ROW()-ROW(ผลต่างสำนักงาน[[#Headers],[ธ.ค.]]),1),INDEX(แผนสำนักงาน[],,1),0),MATCH(ผลต่างสำนักงาน[[#Headers],[ธ.ค.]],แผนสำนักงาน[#Headers],0))-INDEX(ต้นทุนสำนักงานจริง[],MATCH(INDEX(ผลต่างสำนักงาน[],ROW()-ROW(ผลต่างสำนักงาน[[#Headers],[ธ.ค.]]),1),INDEX(แผนสำนักงาน[],,1),0),MATCH(ผลต่างสำนักงาน[[#Headers],[ธ.ค.]],ต้นทุนสำนักงานจริง[#Headers],0))","v":{"v":300,"d":"฿300.00"}},{"$f":"SUM(ผลต่างสำนักงาน[[#This Row],[ม.ค.]:[ธ.ค.]])","v":{"v":1871,"d":"฿1,871.00"}}]
[null,"น้ำ",{"$f":"INDEX(แผนสำนักงาน[],MATCH(INDEX(ผลต่างสำนักงาน[],ROW()-ROW(ผลต่างสำนักงาน[[#Headers],[ม.ค.]]),1),INDEX(แผนสำนักงาน[],,1),0),MATCH(ผลต่างสำนักงาน[[#Headers],[ม.ค.]],แผนสำนักงาน[#Headers],0))-INDEX(ต้นทุนสำนักงานจริง[],MATCH(INDEX(ผลต่างสำนักงาน[],ROW()-ROW(ผลต่างสำนักงาน[[#Headers],[ม.ค.]]),1),INDEX(แผนสำนักงาน[],,1),0),MATCH(ผลต่างสำนักงาน[[#Headers],[ม.ค.]],ต้นทุนสำนักงานจริง[#Headers],0))","v":{"v":5,"d":"฿5.00"}},{"$f":"INDEX(แผนสำนักงาน[],MATCH(INDEX(ผลต่างสำนักงาน[],ROW()-ROW(ผลต่างสำนักงาน[[#Headers],[ก.พ.]]),1),INDEX(แผนสำนักงาน[],,1),0),MATCH(ผลต่างสำนักงาน[[#Headers],[ก.พ.]],แผนสำนักงาน[#Headers],0))-INDEX(ต้นทุนสำนักงานจริง[],MATCH(INDEX(ผลต่างสำนักงาน[],ROW()-ROW(ผลต่างสำนักงาน[[#Headers],[ก.พ.]]),1),INDEX(แผนสำนักงาน[],,1),0),MATCH(ผลต่างสำนักงาน[[#Headers],[ก.พ.]],ต้นทุนสำนักงานจริง[#Headers],0))","v":{"v":7,"d":"฿7.00"}},{"$f":"INDEX(แผนสำนักงาน[],MATCH(INDEX(ผลต่างสำนักงาน[],ROW()-ROW(ผลต่างสำนักงาน[[#Headers],[มี.ค.]]),1),INDEX(แผนสำนักงาน[],,1),0),MATCH(ผลต่างสำนักงาน[[#Headers],[มี.ค.]],แผนสำนักงาน[#Headers],0))-INDEX(ต้นทุนสำนักงานจริง[],MATCH(INDEX(ผลต่างสำนักงาน[],ROW()-ROW(ผลต่างสำนักงาน[[#Headers],[มี.ค.]]),1),INDEX(แผนสำนักงาน[],,1),0),MATCH(ผลต่างสำนักงาน[[#Headers],[มี.ค.]],ต้นทุนสำนักงานจริง[#Headers],0))","v":{"v":6,"d":"฿6.00"}},{"$f":"INDEX(แผนสำนักงาน[],MATCH(INDEX(ผลต่างสำนักงาน[],ROW()-ROW(ผลต่างสำนักงาน[[#Headers],[เม.ย.]]),1),INDEX(แผนสำนักงาน[],,1),0),MATCH(ผลต่างสำนักงาน[[#Headers],[เม.ย.]],แผนสำนักงาน[#Headers],0))-INDEX(ต้นทุนสำนักงานจริง[],MATCH(INDEX(ผลต่างสำนักงาน[],ROW()-ROW(ผลต่างสำนักงาน[[#Headers],[เม.ย.]]),1),INDEX(แผนสำนักงาน[],,1),0),MATCH(ผลต่างสำนักงาน[[#Headers],[เม.ย.]],ต้นทุนสำนักงานจริง[#Headers],0))","v":{"v":4,"d":"฿4.00"}},{"$f":"INDEX(แผนสำนักงาน[],MATCH(INDEX(ผลต่างสำนักงาน[],ROW()-ROW(ผลต่างสำนักงาน[[#Headers],[พ.ค.]]),1),INDEX(แผนสำนักงาน[],,1),0),MATCH(ผลต่างสำนักงาน[[#Headers],[พ.ค.]],แผนสำนักงาน[#Headers],0))-INDEX(ต้นทุนสำนักงานจริง[],MATCH(INDEX(ผลต่างสำนักงาน[],ROW()-ROW(ผลต่างสำนักงาน[[#Headers],[พ.ค.]]),1),INDEX(แผนสำนักงาน[],,1),0),MATCH(ผลต่างสำนักงาน[[#Headers],[พ.ค.]],ต้นทุนสำนักงานจริง[#Headers],0))","v":{"v":6,"d":"฿6.00"}},{"$f":"INDEX(แผนสำนักงาน[],MATCH(INDEX(ผลต่างสำนักงาน[],ROW()-ROW(ผลต่างสำนักงาน[[#Headers],[มิ.ย.]]),1),INDEX(แผนสำนักงาน[],,1),0),MATCH(ผลต่างสำนักงาน[[#Headers],[มิ.ย.]],แผนสำนักงาน[#Headers],0))-INDEX(ต้นทุนสำนักงานจริง[],MATCH(INDEX(ผลต่างสำนักงาน[],ROW()-ROW(ผลต่างสำนักงาน[[#Headers],[มิ.ย.]]),1),INDEX(แผนสำนักงาน[],,1),0),MATCH(ผลต่างสำนักงาน[[#Headers],[มิ.ย.]],ต้นทุนสำนักงานจริง[#Headers],0))","v":{"v":4,"d":"฿4.00"}},{"$f":"INDEX(แผนสำนักงาน[],MATCH(INDEX(ผลต่างสำนักงาน[],ROW()-ROW(ผลต่างสำนักงาน[[#Headers],[ก.ค.]]),1),INDEX(แผนสำนักงาน[],,1),0),MATCH(ผลต่างสำนักงาน[[#Headers],[ก.ค.]],แผนสำนักงาน[#Headers],0))-INDEX(ต้นทุนสำนักงานจริง[],MATCH(INDEX(ผลต่างสำนักงาน[],ROW()-ROW(ผลต่างสำนักงาน[[#Headers],[ก.ค.]]),1),INDEX(แผนสำนักงาน[],,1),0),MATCH(ผลต่างสำนักงาน[[#Headers],[ก.ค.]],ต้นทุนสำนักงานจริง[#Headers],0))","v":{"v":40,"d":"฿40.00"}},{"$f":"INDEX(แผนสำนักงาน[],MATCH(INDEX(ผลต่างสำนักงาน[],ROW()-ROW(ผลต่างสำนักงาน[[#Headers],[ส.ค.]]),1),INDEX(แผนสำนักงาน[],,1),0),MATCH(ผลต่างสำนักงาน[[#Headers],[ส.ค.]],แผนสำนักงาน[#Headers],0))-INDEX(ต้นทุนสำนักงานจริง[],MATCH(INDEX(ผลต่างสำนักงาน[],ROW()-ROW(ผลต่างสำนักงาน[[#Headers],[ส.ค.]]),1),INDEX(แผนสำนักงาน[],,1),0),MATCH(ผลต่างสำนักงาน[[#Headers],[ส.ค.]],ต้นทุนสำนักงานจริง[#Headers],0))","v":{"v":40,"d":"฿40.00"}},{"$f":"INDEX(แผนสำนักงาน[],MATCH(INDEX(ผลต่างสำนักงาน[],ROW()-ROW(ผลต่างสำนักงาน[[#Headers],[ก.ย.]]),1),INDEX(แผนสำนักงาน[],,1),0),MATCH(ผลต่างสำนักงาน[[#Headers],[ก.ย.]],แผนสำนักงาน[#Headers],0))-INDEX(ต้นทุนสำนักงานจริง[],MATCH(INDEX(ผลต่างสำนักงาน[],ROW()-ROW(ผลต่างสำนักงาน[[#Headers],[ก.ย.]]),1),INDEX(แผนสำนักงาน[],,1),0),MATCH(ผลต่างสำนักงาน[[#Headers],[ก.ย.]],ต้นทุนสำนักงานจริง[#Headers],0))","v":{"v":40,"d":"฿40.00"}},{"$f":"INDEX(แผนสำนักงาน[],MATCH(INDEX(ผลต่างสำนักงาน[],ROW()-ROW(ผลต่างสำนักงาน[[#Headers],[ต.ค.]]),1),INDEX(แผนสำนักงาน[],,1),0),MATCH(ผลต่างสำนักงาน[[#Headers],[ต.ค.]],แผนสำนักงาน[#Headers],0))-INDEX(ต้นทุนสำนักงานจริง[],MATCH(INDEX(ผลต่างสำนักงาน[],ROW()-ROW(ผลต่างสำนักงาน[[#Headers],[ต.ค.]]),1),INDEX(แผนสำนักงาน[],,1),0),MATCH(ผลต่างสำนักงาน[[#Headers],[ต.ค.]],ต้นทุนสำนักงานจริง[#Headers],0))","v":{"v":40,"d":"฿40.00"}},{"$f":"INDEX(แผนสำนักงาน[],MATCH(INDEX(ผลต่างสำนักงาน[],ROW()-ROW(ผลต่างสำนักงาน[[#Headers],[พ.ย.]]),1),INDEX(แผนสำนักงาน[],,1),0),MATCH(ผลต่างสำนักงาน[[#Headers],[พ.ย.]],แผนสำนักงาน[#Headers],0))-INDEX(ต้นทุนสำนักงานจริง[],MATCH(INDEX(ผลต่างสำนักงาน[],ROW()-ROW(ผลต่างสำนักงาน[[#Headers],[พ.ย.]]),1),INDEX(แผนสำนักงาน[],,1),0),MATCH(ผลต่างสำนักงาน[[#Headers],[พ.ย.]],ต้นทุนสำนักงานจริง[#Headers],0))","v":{"v":40,"d":"฿40.00"}},{"$f":"INDEX(แผนสำนักงาน[],MATCH(INDEX(ผลต่างสำนักงาน[],ROW()-ROW(ผลต่างสำนักงาน[[#Headers],[ธ.ค.]]),1),INDEX(แผนสำนักงาน[],,1),0),MATCH(ผลต่างสำนักงาน[[#Headers],[ธ.ค.]],แผนสำนักงาน[#Headers],0))-INDEX(ต้นทุนสำนักงานจริง[],MATCH(INDEX(ผลต่างสำนักงาน[],ROW()-ROW(ผลต่างสำนักงาน[[#Headers],[ธ.ค.]]),1),INDEX(แผนสำนักงาน[],,1),0),MATCH(ผลต่างสำนักงาน[[#Headers],[ธ.ค.]],ต้นทุนสำนักงานจริง[#Headers],0))","v":{"v":40,"d":"฿40.00"}},{"$f":"SUM(ผลต่างสำนักงาน[[#This Row],[ม.ค.]:[ธ.ค.]])","v":{"v":272,"d":"฿272.00"}}]
[null,"โทรศัพท์",{"$f":"INDEX(แผนสำนักงาน[],MATCH(INDEX(ผลต่างสำนักงาน[],ROW()-ROW(ผลต่างสำนักงาน[[#Headers],[ม.ค.]]),1),INDEX(แผนสำนักงาน[],,1),0),MATCH(ผลต่างสำนักงาน[[#Headers],[ม.ค.]],แผนสำนักงาน[#Headers],0))-INDEX(ต้นทุนสำนักงานจริง[],MATCH(INDEX(ผลต่างสำนักงาน[],ROW()-ROW(ผลต่างสำนักงาน[[#Headers],[ม.ค.]]),1),INDEX(แผนสำนักงาน[],,1),0),MATCH(ผลต่างสำนักงาน[[#Headers],[ม.ค.]],ต้นทุนสำนักงานจริง[#Headers],0))","v":{"v":26,"d":"฿26.00"}},{"$f":"INDEX(แผนสำนักงาน[],MATCH(INDEX(ผลต่างสำนักงาน[],ROW()-ROW(ผลต่างสำนักงาน[[#Headers],[ก.พ.]]),1),INDEX(แผนสำนักงาน[],,1),0),MATCH(ผลต่างสำนักงาน[[#Headers],[ก.พ.]],แผนสำนักงาน[#Headers],0))-INDEX(ต้นทุนสำนักงานจริง[],MATCH(INDEX(ผลต่างสำนักงาน[],ROW()-ROW(ผลต่างสำนักงาน[[#Headers],[ก.พ.]]),1),INDEX(แผนสำนักงาน[],,1),0),MATCH(ผลต่างสำนักงาน[[#Headers],[ก.พ.]],ต้นทุนสำนักงานจริง[#Headers],0))","v":{"v":15,"d":"฿15.00"}},{"$f":"INDEX(แผนสำนักงาน[],MATCH(INDEX(ผลต่างสำนักงาน[],ROW()-ROW(ผลต่างสำนักงาน[[#Headers],[มี.ค.]]),1),INDEX(แผนสำนักงาน[],,1),0),MATCH(ผลต่างสำนักงาน[[#Headers],[มี.ค.]],แผนสำนักงาน[#Headers],0))-INDEX(ต้นทุนสำนักงานจริง[],MATCH(INDEX(ผลต่างสำนักงาน[],ROW()-ROW(ผลต่างสำนักงาน[[#Headers],[มี.ค.]]),1),INDEX(แผนสำนักงาน[],,1),0),MATCH(ผลต่างสำนักงาน[[#Headers],[มี.ค.]],ต้นทุนสำนักงานจริง[#Headers],0))","v":{"v":-15,"d":"-฿15.00"}},{"$f":"INDEX(แผนสำนักงาน[],MATCH(INDEX(ผลต่างสำนักงาน[],ROW()-ROW(ผลต่างสำนักงาน[[#Headers],[เม.ย.]]),1),INDEX(แผนสำนักงาน[],,1),0),MATCH(ผลต่างสำนักงาน[[#Headers],[เม.ย.]],แผนสำนักงาน[#Headers],0))-INDEX(ต้นทุนสำนักงานจริง[],MATCH(INDEX(ผลต่างสำนักงาน[],ROW()-ROW(ผลต่างสำนักงาน[[#Headers],[เม.ย.]]),1),INDEX(แผนสำนักงาน[],,1),0),MATCH(ผลต่างสำนักงาน[[#Headers],[เม.ย.]],ต้นทุนสำนักงานจริง[#Headers],0))","v":{"v":5,"d":"฿5.00"}},{"$f":"INDEX(แผนสำนักงาน[],MATCH(INDEX(ผลต่างสำนักงาน[],ROW()-ROW(ผลต่างสำนักงาน[[#Headers],[พ.ค.]]),1),INDEX(แผนสำนักงาน[],,1),0),MATCH(ผลต่างสำนักงาน[[#Headers],[พ.ค.]],แผนสำนักงาน[#Headers],0))-INDEX(ต้นทุนสำนักงานจริง[],MATCH(INDEX(ผลต่างสำนักงาน[],ROW()-ROW(ผลต่างสำนักงาน[[#Headers],[พ.ค.]]),1),INDEX(แผนสำนักงาน[],,1),0),MATCH(ผลต่างสำนักงาน[[#Headers],[พ.ค.]],ต้นทุนสำนักงานจริง[#Headers],0))","v":{"v":5,"d":"฿5.00"}},{"$f":"INDEX(แผนสำนักงาน[],MATCH(INDEX(ผลต่างสำนักงาน[],ROW()-ROW(ผลต่างสำนักงาน[[#Headers],[มิ.ย.]]),1),INDEX(แผนสำนักงาน[],,1),0),MATCH(ผลต่างสำนักงาน[[#Headers],[มิ.ย.]],แผนสำนักงาน[#Headers],0))-INDEX(ต้นทุนสำนักงานจริง[],MATCH(INDEX(ผลต่างสำนักงาน[],ROW()-ROW(ผลต่างสำนักงาน[[#Headers],[มิ.ย.]]),1),INDEX(แผนสำนักงาน[],,1),0),MATCH(ผลต่างสำนักงาน[[#Headers],[มิ.ย.]],ต้นทุนสำนักงานจริง[#Headers],0))","v":{"v":30,"d":"฿30.00"}},{"$f":"INDEX(แผนสำนักงาน[],MATCH(INDEX(ผลต่างสำนักงาน[],ROW()-ROW(ผลต่างสำนักงาน[[#Headers],[ก.ค.]]),1),INDEX(แผนสำนักงาน[],,1),0),MATCH(ผลต่างสำนักงาน[[#Headers],[ก.ค.]],แผนสำนักงาน[#Headers],0))-INDEX(ต้นทุนสำนักงานจริง[],MATCH(INDEX(ผลต่างสำนักงาน[],ROW()-ROW(ผลต่างสำนักงาน[[#Headers],[ก.ค.]]),1),INDEX(แผนสำนักงาน[],,1),0),MATCH(ผลต่างสำนักงาน[[#Headers],[ก.ค.]],ต้นทุนสำนักงานจริง[#Headers],0))","v":{"v":250,"d":"฿250.00"}},{"$f":"INDEX(แผนสำนักงาน[],MATCH(INDEX(ผลต่างสำนักงาน[],ROW()-ROW(ผลต่างสำนักงาน[[#Headers],[ส.ค.]]),1),INDEX(แผนสำนักงาน[],,1),0),MATCH(ผลต่างสำนักงาน[[#Headers],[ส.ค.]],แผนสำนักงาน[#Headers],0))-INDEX(ต้นทุนสำนักงานจริง[],MATCH(INDEX(ผลต่างสำนักงาน[],ROW()-ROW(ผลต่างสำนักงาน[[#Headers],[ส.ค.]]),1),INDEX(แผนสำนักงาน[],,1),0),MATCH(ผลต่างสำนักงาน[[#Headers],[ส.ค.]],ต้นทุนสำนักงานจริง[#Headers],0))","v":{"v":250,"d":"฿250.00"}},{"$f":"INDEX(แผนสำนักงาน[],MATCH(INDEX(ผลต่างสำนักงาน[],ROW()-ROW(ผลต่างสำนักงาน[[#Headers],[ก.ย.]]),1),INDEX(แผนสำนักงาน[],,1),0),MATCH(ผลต่างสำนักงาน[[#Headers],[ก.ย.]],แผนสำนักงาน[#Headers],0))-INDEX(ต้นทุนสำนักงานจริง[],MATCH(INDEX(ผลต่างสำนักงาน[],ROW()-ROW(ผลต่างสำนักงาน[[#Headers],[ก.ย.]]),1),INDEX(แผนสำนักงาน[],,1),0),MATCH(ผลต่างสำนักงาน[[#Headers],[ก.ย.]],ต้นทุนสำนักงานจริง[#Headers],0))","v":{"v":250,"d":"฿250.00"}},{"$f":"INDEX(แผนสำนักงาน[],MATCH(INDEX(ผลต่างสำนักงาน[],ROW()-ROW(ผลต่างสำนักงาน[[#Headers],[ต.ค.]]),1),INDEX(แผนสำนักงาน[],,1),0),MATCH(ผลต่างสำนักงาน[[#Headers],[ต.ค.]],แผนสำนักงาน[#Headers],0))-INDEX(ต้นทุนสำนักงานจริง[],MATCH(INDEX(ผลต่างสำนักงาน[],ROW()-ROW(ผลต่างสำนักงาน[[#Headers],[ต.ค.]]),1),INDEX(แผนสำนักงาน[],,1),0),MATCH(ผลต่างสำนักงาน[[#Headers],[ต.ค.]],ต้นทุนสำนักงานจริง[#Headers],0))","v":{"v":250,"d":"฿250.00"}},{"$f":"INDEX(แผนสำนักงาน[],MATCH(INDEX(ผลต่างสำนักงาน[],ROW()-ROW(ผลต่างสำนักงาน[[#Headers],[พ.ย.]]),1),INDEX(แผนสำนักงาน[],,1),0),MATCH(ผลต่างสำนักงาน[[#Headers],[พ.ย.]],แผนสำนักงาน[#Headers],0))-INDEX(ต้นทุนสำนักงานจริง[],MATCH(INDEX(ผลต่างสำนักงาน[],ROW()-ROW(ผลต่างสำนักงาน[[#Headers],[พ.ย.]]),1),INDEX(แผนสำนักงาน[],,1),0),MATCH(ผลต่างสำนักงาน[[#Headers],[พ.ย.]],ต้นทุนสำนักงานจริง[#Headers],0))","v":{"v":250,"d":"฿250.00"}},{"$f":"INDEX(แผนสำนักงาน[],MATCH(INDEX(ผลต่างสำนักงาน[],ROW()-ROW(ผลต่างสำนักงาน[[#Headers],[ธ.ค.]]),1),INDEX(แผนสำนักงาน[],,1),0),MATCH(ผลต่างสำนักงาน[[#Headers],[ธ.ค.]],แผนสำนักงาน[#Headers],0))-INDEX(ต้นทุนสำนักงานจริง[],MATCH(INDEX(ผลต่างสำนักงาน[],ROW()-ROW(ผลต่างสำนักงาน[[#Headers],[ธ.ค.]]),1),INDEX(แผนสำนักงาน[],,1),0),MATCH(ผลต่างสำนักงาน[[#Headers],[ธ.ค.]],ต้นทุนสำนักงานจริง[#Headers],0))","v":{"v":250,"d":"฿250.00"}},{"$f":"SUM(ผลต่างสำนักงาน[[#This Row],[ม.ค.]:[ธ.ค.]])","v":{"v":1566,"d":"฿1,566.00"}}]
[null,"การเข้าถึงอินเทอร์เน็ต",{"$f":"INDEX(แผนสำนักงาน[],MATCH(INDEX(ผลต่างสำนักงาน[],ROW()-ROW(ผลต่างสำนักงาน[[#Headers],[ม.ค.]]),1),INDEX(แผนสำนักงาน[],,1),0),MATCH(ผลต่างสำนักงาน[[#Headers],[ม.ค.]],แผนสำนักงาน[#Headers],0))-INDEX(ต้นทุนสำนักงานจริง[],MATCH(INDEX(ผลต่างสำนักงาน[],ROW()-ROW(ผลต่างสำนักงาน[[#Headers],[ม.ค.]]),1),INDEX(แผนสำนักงาน[],,1),0),MATCH(ผลต่างสำนักงาน[[#Headers],[ม.ค.]],ต้นทุนสำนักงานจริง[#Headers],0))","v":{"v":0,"d":"฿0.00"}},{"$f":"INDEX(แผนสำนักงาน[],MATCH(INDEX(ผลต่างสำนักงาน[],ROW()-ROW(ผลต่างสำนักงาน[[#Headers],[ก.พ.]]),1),INDEX(แผนสำนักงาน[],,1),0),MATCH(ผลต่างสำนักงาน[[#Headers],[ก.พ.]],แผนสำนักงาน[#Headers],0))-INDEX(ต้นทุนสำนักงานจริง[],MATCH(INDEX(ผลต่างสำนักงาน[],ROW()-ROW(ผลต่างสำนักงาน[[#Headers],[ก.พ.]]),1),INDEX(แผนสำนักงาน[],,1),0),MATCH(ผลต่างสำนักงาน[[#Headers],[ก.พ.]],ต้นทุนสำนักงานจริง[#Headers],0))","v":{"v":0,"d":"฿0.00"}},{"$f":"INDEX(แผนสำนักงาน[],MATCH(INDEX(ผลต่างสำนักงาน[],ROW()-ROW(ผลต่างสำนักงาน[[#Headers],[มี.ค.]]),1),INDEX(แผนสำนักงาน[],,1),0),MATCH(ผลต่างสำนักงาน[[#Headers],[มี.ค.]],แผนสำนักงาน[#Headers],0))-INDEX(ต้นทุนสำนักงานจริง[],MATCH(INDEX(ผลต่างสำนักงาน[],ROW()-ROW(ผลต่างสำนักงาน[[#Headers],[มี.ค.]]),1),INDEX(แผนสำนักงาน[],,1),0),MATCH(ผลต่างสำนักงาน[[#Headers],[มี.ค.]],ต้นทุนสำนักงานจริง[#Headers],0))","v":{"v":0,"d":"฿0.00"}},{"$f":"INDEX(แผนสำนักงาน[],MATCH(INDEX(ผลต่างสำนักงาน[],ROW()-ROW(ผลต่างสำนักงาน[[#Headers],[เม.ย.]]),1),INDEX(แผนสำนักงาน[],,1),0),MATCH(ผลต่างสำนักงาน[[#Headers],[เม.ย.]],แผนสำนักงาน[#Headers],0))-INDEX(ต้นทุนสำนักงานจริง[],MATCH(INDEX(ผลต่างสำนักงาน[],ROW()-ROW(ผลต่างสำนักงาน[[#Headers],[เม.ย.]]),1),INDEX(แผนสำนักงาน[],,1),0),MATCH(ผลต่างสำนักงาน[[#Headers],[เม.ย.]],ต้นทุนสำนักงานจริง[#Headers],0))","v":{"v":0,"d":"฿0.00"}},{"$f":"INDEX(แผนสำนักงาน[],MATCH(INDEX(ผลต่างสำนักงาน[],ROW()-ROW(ผลต่างสำนักงาน[[#Headers],[พ.ค.]]),1),INDEX(แผนสำนักงาน[],,1),0),MATCH(ผลต่างสำนักงาน[[#Headers],[พ.ค.]],แผนสำนักงาน[#Headers],0))-INDEX(ต้นทุนสำนักงานจริง[],MATCH(INDEX(ผลต่างสำนักงาน[],ROW()-ROW(ผลต่างสำนักงาน[[#Headers],[พ.ค.]]),1),INDEX(แผนสำนักงาน[],,1),0),MATCH(ผลต่างสำนักงาน[[#Headers],[พ.ค.]],ต้นทุนสำนักงานจริง[#Headers],0))","v":{"v":0,"d":"฿0.00"}},{"$f":"INDEX(แผนสำนักงาน[],MATCH(INDEX(ผลต่างสำนักงาน[],ROW()-ROW(ผลต่างสำนักงาน[[#Headers],[มิ.ย.]]),1),INDEX(แผนสำนักงาน[],,1),0),MATCH(ผลต่างสำนักงาน[[#Headers],[มิ.ย.]],แผนสำนักงาน[#Headers],0))-INDEX(ต้นทุนสำนักงานจริง[],MATCH(INDEX(ผลต่างสำนักงาน[],ROW()-ROW(ผลต่างสำนักงาน[[#Headers],[มิ.ย.]]),1),INDEX(แผนสำนักงาน[],,1),0),MATCH(ผลต่างสำนักงาน[[#Headers],[มิ.ย.]],ต้นทุนสำนักงานจริง[#Headers],0))","v":{"v":0,"d":"฿0.00"}},{"$f":"INDEX(แผนสำนักงาน[],MATCH(INDEX(ผลต่างสำนักงาน[],ROW()-ROW(ผลต่างสำนักงาน[[#Headers],[ก.ค.]]),1),INDEX(แผนสำนักงาน[],,1),0),MATCH(ผลต่างสำนักงาน[[#Headers],[ก.ค.]],แผนสำนักงาน[#Headers],0))-INDEX(ต้นทุนสำนักงานจริง[],MATCH(INDEX(ผลต่างสำนักงาน[],ROW()-ROW(ผลต่างสำนักงาน[[#Headers],[ก.ค.]]),1),INDEX(แผนสำนักงาน[],,1),0),MATCH(ผลต่างสำนักงาน[[#Headers],[ก.ค.]],ต้นทุนสำนักงานจริง[#Headers],0))","v":{"v":180,"d":"฿180.00"}},{"$f":"INDEX(แผนสำนักงาน[],MATCH(INDEX(ผลต่างสำนักงาน[],ROW()-ROW(ผลต่างสำนักงาน[[#Headers],[ส.ค.]]),1),INDEX(แผนสำนักงาน[],,1),0),MATCH(ผลต่างสำนักงาน[[#Headers],[ส.ค.]],แผนสำนักงาน[#Headers],0))-INDEX(ต้นทุนสำนักงานจริง[],MATCH(INDEX(ผลต่างสำนักงาน[],ROW()-ROW(ผลต่างสำนักงาน[[#Headers],[ส.ค.]]),1),INDEX(แผนสำนักงาน[],,1),0),MATCH(ผลต่างสำนักงาน[[#Headers],[ส.ค.]],ต้นทุนสำนักงานจริง[#Headers],0))","v":{"v":180,"d":"฿180.00"}},{"$f":"INDEX(แผนสำนักงาน[],MATCH(INDEX(ผลต่างสำนักงาน[],ROW()-ROW(ผลต่างสำนักงาน[[#Headers],[ก.ย.]]),1),INDEX(แผนสำนักงาน[],,1),0),MATCH(ผลต่างสำนักงาน[[#Headers],[ก.ย.]],แผนสำนักงาน[#Headers],0))-INDEX(ต้นทุนสำนักงานจริง[],MATCH(INDEX(ผลต่างสำนักงาน[],ROW()-ROW(ผลต่างสำนักงาน[[#Headers],[ก.ย.]]),1),INDEX(แผนสำนักงาน[],,1),0),MATCH(ผลต่างสำนักงาน[[#Headers],[ก.ย.]],ต้นทุนสำนักงานจริง[#Headers],0))","v":{"v":180,"d":"฿180.00"}},{"$f":"INDEX(แผนสำนักงาน[],MATCH(INDEX(ผลต่างสำนักงาน[],ROW()-ROW(ผลต่างสำนักงาน[[#Headers],[ต.ค.]]),1),INDEX(แผนสำนักงาน[],,1),0),MATCH(ผลต่างสำนักงาน[[#Headers],[ต.ค.]],แผนสำนักงาน[#Headers],0))-INDEX(ต้นทุนสำนักงานจริง[],MATCH(INDEX(ผลต่างสำนักงาน[],ROW()-ROW(ผลต่างสำนักงาน[[#Headers],[ต.ค.]]),1),INDEX(แผนสำนักงาน[],,1),0),MATCH(ผลต่างสำนักงาน[[#Headers],[ต.ค.]],ต้นทุนสำนักงานจริง[#Headers],0))","v":{"v":180,"d":"฿180.00"}},{"$f":"INDEX(แผนสำนักงาน[],MATCH(INDEX(ผลต่างสำนักงาน[],ROW()-ROW(ผลต่างสำนักงาน[[#Headers],[พ.ย.]]),1),INDEX(แผนสำนักงาน[],,1),0),MATCH(ผลต่างสำนักงาน[[#Headers],[พ.ย.]],แผนสำนักงาน[#Headers],0))-INDEX(ต้นทุนสำนักงานจริง[],MATCH(INDEX(ผลต่างสำนักงาน[],ROW()-ROW(ผลต่างสำนักงาน[[#Headers],[พ.ย.]]),1),INDEX(แผนสำนักงาน[],,1),0),MATCH(ผลต่างสำนักงาน[[#Headers],[พ.ย.]],ต้นทุนสำนักงานจริง[#Headers],0))","v":{"v":180,"d":"฿180.00"}},{"$f":"INDEX(แผนสำนักงาน[],MATCH(INDEX(ผลต่างสำนักงาน[],ROW()-ROW(ผลต่างสำนักงาน[[#Headers],[ธ.ค.]]),1),INDEX(แผนสำนักงาน[],,1),0),MATCH(ผลต่างสำนักงาน[[#Headers],[ธ.ค.]],แผนสำนักงาน[#Headers],0))-INDEX(ต้นทุนสำนักงานจริง[],MATCH(INDEX(ผลต่างสำนักงาน[],ROW()-ROW(ผลต่างสำนักงาน[[#Headers],[ธ.ค.]]),1),INDEX(แผนสำนักงาน[],,1),0),MATCH(ผลต่างสำนักงาน[[#Headers],[ธ.ค.]],ต้นทุนสำนักงานจริง[#Headers],0))","v":{"v":180,"d":"฿180.00"}},{"$f":"SUM(ผลต่างสำนักงาน[[#This Row],[ม.ค.]:[ธ.ค.]])","v":{"v":1080,"d":"฿1,080.00"}}]
[null,"อุปกรณ์สำนักงาน",{"$f":"INDEX(แผนสำนักงาน[],MATCH(INDEX(ผลต่างสำนักงาน[],ROW()-ROW(ผลต่างสำนักงาน[[#Headers],[ม.ค.]]),1),INDEX(แผนสำนักงาน[],,1),0),MATCH(ผลต่างสำนักงาน[[#Headers],[ม.ค.]],แผนสำนักงาน[#Headers],0))-INDEX(ต้นทุนสำนักงานจริง[],MATCH(INDEX(ผลต่างสำนักงาน[],ROW()-ROW(ผลต่างสำนักงาน[[#Headers],[ม.ค.]]),1),INDEX(แผนสำนักงาน[],,1),0),MATCH(ผลต่างสำนักงาน[[#Headers],[ม.ค.]],ต้นทุนสำนักงานจริง[#Headers],0))","v":{"v":-56,"d":"-฿56.00"}},{"$f":"INDEX(แผนสำนักงาน[],MATCH(INDEX(ผลต่างสำนักงาน[],ROW()-ROW(ผลต่างสำนักงาน[[#Headers],[ก.พ.]]),1),INDEX(แผนสำนักงาน[],,1),0),MATCH(ผลต่างสำนักงาน[[#Headers],[ก.พ.]],แผนสำนักงาน[#Headers],0))-INDEX(ต้นทุนสำนักงานจริง[],MATCH(INDEX(ผลต่างสำนักงาน[],ROW()-ROW(ผลต่างสำนักงาน[[#Headers],[ก.พ.]]),1),INDEX(แผนสำนักงาน[],,1),0),MATCH(ผลต่างสำนักงาน[[#Headers],[ก.พ.]],ต้นทุนสำนักงานจริง[#Headers],0))","v":{"v":58,"d":"฿58.00"}},{"$f":"INDEX(แผนสำนักงาน[],MATCH(INDEX(ผลต่างสำนักงาน[],ROW()-ROW(ผลต่างสำนักงาน[[#Headers],[มี.ค.]]),1),INDEX(แผนสำนักงาน[],,1),0),MATCH(ผลต่างสำนักงาน[[#Headers],[มี.ค.]],แผนสำนักงาน[#Headers],0))-INDEX(ต้นทุนสำนักงานจริง[],MATCH(INDEX(ผลต่างสำนักงาน[],ROW()-ROW(ผลต่างสำนักงาน[[#Headers],[มี.ค.]]),1),INDEX(แผนสำนักงาน[],,1),0),MATCH(ผลต่างสำนักงาน[[#Headers],[มี.ค.]],ต้นทุนสำนักงานจริง[#Headers],0))","v":{"v":40,"d":"฿40.00"}},{"$f":"INDEX(แผนสำนักงาน[],MATCH(INDEX(ผลต่างสำนักงาน[],ROW()-ROW(ผลต่างสำนักงาน[[#Headers],[เม.ย.]]),1),INDEX(แผนสำนักงาน[],,1),0),MATCH(ผลต่างสำนักงาน[[#Headers],[เม.ย.]],แผนสำนักงาน[#Headers],0))-INDEX(ต้นทุนสำนักงานจริง[],MATCH(INDEX(ผลต่างสำนักงาน[],ROW()-ROW(ผลต่างสำนักงาน[[#Headers],[เม.ย.]]),1),INDEX(แผนสำนักงาน[],,1),0),MATCH(ผลต่างสำนักงาน[[#Headers],[เม.ย.]],ต้นทุนสำนักงานจริง[#Headers],0))","v":{"v":-21,"d":"-฿21.00"}},{"$f":"INDEX(แผนสำนักงาน[],MATCH(INDEX(ผลต่างสำนักงาน[],ROW()-ROW(ผลต่างสำนักงาน[[#Headers],[พ.ค.]]),1),INDEX(แผนสำนักงาน[],,1),0),MATCH(ผลต่างสำนักงาน[[#Headers],[พ.ค.]],แผนสำนักงาน[#Headers],0))-INDEX(ต้นทุนสำนักงานจริง[],MATCH(INDEX(ผลต่างสำนักงาน[],ROW()-ROW(ผลต่างสำนักงาน[[#Headers],[พ.ค.]]),1),INDEX(แผนสำนักงาน[],,1),0),MATCH(ผลต่างสำนักงาน[[#Headers],[พ.ค.]],ต้นทุนสำนักงานจริง[#Headers],0))","v":{"v":-56,"d":"-฿56.00"}},{"$f":"INDEX(แผนสำนักงาน[],MATCH(INDEX(ผลต่างสำนักงาน[],ROW()-ROW(ผลต่างสำนักงาน[[#Headers],[มิ.ย.]]),1),INDEX(แผนสำนักงาน[],,1),0),MATCH(ผลต่างสำนักงาน[[#Headers],[มิ.ย.]],แผนสำนักงาน[#Headers],0))-INDEX(ต้นทุนสำนักงานจริง[],MATCH(INDEX(ผลต่างสำนักงาน[],ROW()-ROW(ผลต่างสำนักงาน[[#Headers],[มิ.ย.]]),1),INDEX(แผนสำนักงาน[],,1),0),MATCH(ผลต่างสำนักงาน[[#Headers],[มิ.ย.]],ต้นทุนสำนักงานจริง[#Headers],0))","v":{"v":-40,"d":"-฿40.00"}},{"$f":"INDEX(แผนสำนักงาน[],MATCH(INDEX(ผลต่างสำนักงาน[],ROW()-ROW(ผลต่างสำนักงาน[[#Headers],[ก.ค.]]),1),INDEX(แผนสำนักงาน[],,1),0),MATCH(ผลต่างสำนักงาน[[#Headers],[ก.ค.]],แผนสำนักงาน[#Headers],0))-INDEX(ต้นทุนสำนักงานจริง[],MATCH(INDEX(ผลต่างสำนักงาน[],ROW()-ROW(ผลต่างสำนักงาน[[#Headers],[ก.ค.]]),1),INDEX(แผนสำนักงาน[],,1),0),MATCH(ผลต่างสำนักงาน[[#Headers],[ก.ค.]],ต้นทุนสำนักงานจริง[#Headers],0))","v":{"v":200,"d":"฿200.00"}},{"$f":"INDEX(แผนสำนักงาน[],MATCH(INDEX(ผลต่างสำนักงาน[],ROW()-ROW(ผลต่างสำนักงาน[[#Headers],[ส.ค.]]),1),INDEX(แผนสำนักงาน[],,1),0),MATCH(ผลต่างสำนักงาน[[#Headers],[ส.ค.]],แผนสำนักงาน[#Headers],0))-INDEX(ต้นทุนสำนักงานจริง[],MATCH(INDEX(ผลต่างสำนักงาน[],ROW()-ROW(ผลต่างสำนักงาน[[#Headers],[ส.ค.]]),1),INDEX(แผนสำนักงาน[],,1),0),MATCH(ผลต่างสำนักงาน[[#Headers],[ส.ค.]],ต้นทุนสำนักงานจริง[#Headers],0))","v":{"v":200,"d":"฿200.00"}},{"$f":"INDEX(แผนสำนักงาน[],MATCH(INDEX(ผลต่างสำนักงาน[],ROW()-ROW(ผลต่างสำนักงาน[[#Headers],[ก.ย.]]),1),INDEX(แผนสำนักงาน[],,1),0),MATCH(ผลต่างสำนักงาน[[#Headers],[ก.ย.]],แผนสำนักงาน[#Headers],0))-INDEX(ต้นทุนสำนักงานจริง[],MATCH(INDEX(ผลต่างสำนักงาน[],ROW()-ROW(ผลต่างสำนักงาน[[#Headers],[ก.ย.]]),1),INDEX(แผนสำนักงาน[],,1),0),MATCH(ผลต่างสำนักงาน[[#Headers],[ก.ย.]],ต้นทุนสำนักงานจริง[#Headers],0))","v":{"v":200,"d":"฿200.00"}},{"$f":"INDEX(แผนสำนักงาน[],MATCH(INDEX(ผลต่างสำนักงาน[],ROW()-ROW(ผลต่างสำนักงาน[[#Headers],[ต.ค.]]),1),INDEX(แผนสำนักงาน[],,1),0),MATCH(ผลต่างสำนักงาน[[#Headers],[ต.ค.]],แผนสำนักงาน[#Headers],0))-INDEX(ต้นทุนสำนักงานจริง[],MATCH(INDEX(ผลต่างสำนักงาน[],ROW()-ROW(ผลต่างสำนักงาน[[#Headers],[ต.ค.]]),1),INDEX(แผนสำนักงาน[],,1),0),MATCH(ผลต่างสำนักงาน[[#Headers],[ต.ค.]],ต้นทุนสำนักงานจริง[#Headers],0))","v":{"v":200,"d":"฿200.00"}},{"$f":"INDEX(แผนสำนักงาน[],MATCH(INDEX(ผลต่างสำนักงาน[],ROW()-ROW(ผลต่างสำนักงาน[[#Headers],[พ.ย.]]),1),INDEX(แผนสำนักงาน[],,1),0),MATCH(ผลต่างสำนักงาน[[#Headers],[พ.ย.]],แผนสำนักงาน[#Headers],0))-INDEX(ต้นทุนสำนักงานจริง[],MATCH(INDEX(ผลต่างสำนักงาน[],ROW()-ROW(ผลต่างสำนักงาน[[#Headers],[พ.ย.]]),1),INDEX(แผนสำนักงาน[],,1),0),MATCH(ผลต่างสำนักงาน[[#Headers],[พ.ย.]],ต้นทุนสำนักงานจริง[#Headers],0))","v":{"v":200,"d":"฿200.00"}},{"$f":"INDEX(แผนสำนักงาน[],MATCH(INDEX(ผลต่างสำนักงาน[],ROW()-ROW(ผลต่างสำนักงาน[[#Headers],[ธ.ค.]]),1),INDEX(แผนสำนักงาน[],,1),0),MATCH(ผลต่างสำนักงาน[[#Headers],[ธ.ค.]],แผนสำนักงาน[#Headers],0))-INDEX(ต้นทุนสำนักงานจริง[],MATCH(INDEX(ผลต่างสำนักงาน[],ROW()-ROW(ผลต่างสำนักงาน[[#Headers],[ธ.ค.]]),1),INDEX(แผนสำนักงาน[],,1),0),MATCH(ผลต่างสำนักงาน[[#Headers],[ธ.ค.]],ต้นทุนสำนักงานจริง[#Headers],0))","v":{"v":200,"d":"฿200.00"}},{"$f":"SUM(ผลต่างสำนักงาน[[#This Row],[ม.ค.]:[ธ.ค.]])","v":{"v":1125,"d":"฿1,125.00"}}]
[null,"การรักษาความปลอดภัย",{"$f":"INDEX(แผนสำนักงาน[],MATCH(INDEX(ผลต่างสำนักงาน[],ROW()-ROW(ผลต่างสำนักงาน[[#Headers],[ม.ค.]]),1),INDEX(แผนสำนักงาน[],,1),0),MATCH(ผลต่างสำนักงาน[[#Headers],[ม.ค.]],แผนสำนักงาน[#Headers],0))-INDEX(ต้นทุนสำนักงานจริง[],MATCH(INDEX(ผลต่างสำนักงาน[],ROW()-ROW(ผลต่างสำนักงาน[[#Headers],[ม.ค.]]),1),INDEX(แผนสำนักงาน[],,1),0),MATCH(ผลต่างสำนักงาน[[#Headers],[ม.ค.]],ต้นทุนสำนักงานจริง[#Headers],0))","v":{"v":0,"d":"฿0.00"}},{"$f":"INDEX(แผนสำนักงาน[],MATCH(INDEX(ผลต่างสำนักงาน[],ROW()-ROW(ผลต่างสำนักงาน[[#Headers],[ก.พ.]]),1),INDEX(แผนสำนักงาน[],,1),0),MATCH(ผลต่างสำนักงาน[[#Headers],[ก.พ.]],แผนสำนักงาน[#Headers],0))-INDEX(ต้นทุนสำนักงานจริง[],MATCH(INDEX(ผลต่างสำนักงาน[],ROW()-ROW(ผลต่างสำนักงาน[[#Headers],[ก.พ.]]),1),INDEX(แผนสำนักงาน[],,1),0),MATCH(ผลต่างสำนักงาน[[#Headers],[ก.พ.]],ต้นทุนสำนักงานจริง[#Headers],0))","v":{"v":0,"d":"฿0.00"}},{"$f":"INDEX(แผนสำนักงาน[],MATCH(INDEX(ผลต่างสำนักงาน[],ROW()-ROW(ผลต่างสำนักงาน[[#Headers],[มี.ค.]]),1),INDEX(แผนสำนักงาน[],,1),0),MATCH(ผลต่างสำนักงาน[[#Headers],[มี.ค.]],แผนสำนักงาน[#Headers],0))-INDEX(ต้นทุนสำนักงานจริง[],MATCH(INDEX(ผลต่างสำนักงาน[],ROW()-ROW(ผลต่างสำนักงาน[[#Headers],[มี.ค.]]),1),INDEX(แผนสำนักงาน[],,1),0),MATCH(ผลต่างสำนักงาน[[#Headers],[มี.ค.]],ต้นทุนสำนักงานจริง[#Headers],0))","v":{"v":0,"d":"฿0.00"}},{"$f":"INDEX(แผนสำนักงาน[],MATCH(INDEX(ผลต่างสำนักงาน[],ROW()-ROW(ผลต่างสำนักงาน[[#Headers],[เม.ย.]]),1),INDEX(แผนสำนักงาน[],,1),0),MATCH(ผลต่างสำนักงาน[[#Headers],[เม.ย.]],แผนสำนักงาน[#Headers],0))-INDEX(ต้นทุนสำนักงานจริง[],MATCH(INDEX(ผลต่างสำนักงาน[],ROW()-ROW(ผลต่างสำนักงาน[[#Headers],[เม.ย.]]),1),INDEX(แผนสำนักงาน[],,1),0),MATCH(ผลต่างสำนักงาน[[#Headers],[เม.ย.]],ต้นทุนสำนักงานจริง[#Headers],0))","v":{"v":0,"d":"฿0.00"}},{"$f":"INDEX(แผนสำนักงาน[],MATCH(INDEX(ผลต่างสำนักงาน[],ROW()-ROW(ผลต่างสำนักงาน[[#Headers],[พ.ค.]]),1),INDEX(แผนสำนักงาน[],,1),0),MATCH(ผลต่างสำนักงาน[[#Headers],[พ.ค.]],แผนสำนักงาน[#Headers],0))-INDEX(ต้นทุนสำนักงานจริง[],MATCH(INDEX(ผลต่างสำนักงาน[],ROW()-ROW(ผลต่างสำนักงาน[[#Headers],[พ.ค.]]),1),INDEX(แผนสำนักงาน[],,1),0),MATCH(ผลต่างสำนักงาน[[#Headers],[พ.ค.]],ต้นทุนสำนักงานจริง[#Headers],0))","v":{"v":0,"d":"฿0.00"}},{"$f":"INDEX(แผนสำนักงาน[],MATCH(INDEX(ผลต่างสำนักงาน[],ROW()-ROW(ผลต่างสำนักงาน[[#Headers],[มิ.ย.]]),1),INDEX(แผนสำนักงาน[],,1),0),MATCH(ผลต่างสำนักงาน[[#Headers],[มิ.ย.]],แผนสำนักงาน[#Headers],0))-INDEX(ต้นทุนสำนักงานจริง[],MATCH(INDEX(ผลต่างสำนักงาน[],ROW()-ROW(ผลต่างสำนักงาน[[#Headers],[มิ.ย.]]),1),INDEX(แผนสำนักงาน[],,1),0),MATCH(ผลต่างสำนักงาน[[#Headers],[มิ.ย.]],ต้นทุนสำนักงานจริง[#Headers],0))","v":{"v":0,"d":"฿0.00"}},{"$f":"INDEX(แผนสำนักงาน[],MATCH(INDEX(ผลต่างสำนักงาน[],ROW()-ROW(ผลต่างสำนักงาน[[#Headers],[ก.ค.]]),1),INDEX(แผนสำนักงาน[],,1),0),MATCH(ผลต่างสำนักงาน[[#Headers],[ก.ค.]],แผนสำนักงาน[#Headers],0))-INDEX(ต้นทุนสำนักงานจริง[],MATCH(INDEX(ผลต่างสำนักงาน[],ROW()-ROW(ผลต่างสำนักงาน[[#Headers],[ก.ค.]]),1),INDEX(แผนสำนักงาน[],,1),0),MATCH(ผลต่างสำนักงาน[[#Headers],[ก.ค.]],ต้นทุนสำนักงานจริง[#Headers],0))","v":{"v":600,"d":"฿600.00"}},{"$f":"INDEX(แผนสำนักงาน[],MATCH(INDEX(ผลต่างสำนักงาน[],ROW()-ROW(ผลต่างสำนักงาน[[#Headers],[ส.ค.]]),1),INDEX(แผนสำนักงาน[],,1),0),MATCH(ผลต่างสำนักงาน[[#Headers],[ส.ค.]],แผนสำนักงาน[#Headers],0))-INDEX(ต้นทุนสำนักงานจริง[],MATCH(INDEX(ผลต่างสำนักงาน[],ROW()-ROW(ผลต่างสำนักงาน[[#Headers],[ส.ค.]]),1),INDEX(แผนสำนักงาน[],,1),0),MATCH(ผลต่างสำนักงาน[[#Headers],[ส.ค.]],ต้นทุนสำนักงานจริง[#Headers],0))","v":{"v":600,"d":"฿600.00"}},{"$f":"INDEX(แผนสำนักงาน[],MATCH(INDEX(ผลต่างสำนักงาน[],ROW()-ROW(ผลต่างสำนักงาน[[#Headers],[ก.ย.]]),1),INDEX(แผนสำนักงาน[],,1),0),MATCH(ผลต่างสำนักงาน[[#Headers],[ก.ย.]],แผนสำนักงาน[#Headers],0))-INDEX(ต้นทุนสำนักงานจริง[],MATCH(INDEX(ผลต่างสำนักงาน[],ROW()-ROW(ผลต่างสำนักงาน[[#Headers],[ก.ย.]]),1),INDEX(แผนสำนักงาน[],,1),0),MATCH(ผลต่างสำนักงาน[[#Headers],[ก.ย.]],ต้นทุนสำนักงานจริง[#Headers],0))","v":{"v":600,"d":"฿600.00"}},{"$f":"INDEX(แผนสำนักงาน[],MATCH(INDEX(ผลต่างสำนักงาน[],ROW()-ROW(ผลต่างสำนักงาน[[#Headers],[ต.ค.]]),1),INDEX(แผนสำนักงาน[],,1),0),MATCH(ผลต่างสำนักงาน[[#Headers],[ต.ค.]],แผนสำนักงาน[#Headers],0))-INDEX(ต้นทุนสำนักงานจริง[],MATCH(INDEX(ผลต่างสำนักงาน[],ROW()-ROW(ผลต่างสำนักงาน[[#Headers],[ต.ค.]]),1),INDEX(แผนสำนักงาน[],,1),0),MATCH(ผลต่างสำนักงาน[[#Headers],[ต.ค.]],ต้นทุนสำนักงานจริง[#Headers],0))","v":{"v":600,"d":"฿600.00"}},{"$f":"INDEX(แผนสำนักงาน[],MATCH(INDEX(ผลต่างสำนักงาน[],ROW()-ROW(ผลต่างสำนักงาน[[#Headers],[พ.ย.]]),1),INDEX(แผนสำนักงาน[],,1),0),MATCH(ผลต่างสำนักงาน[[#Headers],[พ.ย.]],แผนสำนักงาน[#Headers],0))-INDEX(ต้นทุนสำนักงานจริง[],MATCH(INDEX(ผลต่างสำนักงาน[],ROW()-ROW(ผลต่างสำนักงาน[[#Headers],[พ.ย.]]),1),INDEX(แผนสำนักงาน[],,1),0),MATCH(ผลต่างสำนักงาน[[#Headers],[พ.ย.]],ต้นทุนสำนักงานจริง[#Headers],0))","v":{"v":600,"d":"฿600.00"}},{"$f":"INDEX(แผนสำนักงาน[],MATCH(INDEX(ผลต่างสำนักงาน[],ROW()-ROW(ผลต่างสำนักงาน[[#Headers],[ธ.ค.]]),1),INDEX(แผนสำนักงาน[],,1),0),MATCH(ผลต่างสำนักงาน[[#Headers],[ธ.ค.]],แผนสำนักงาน[#Headers],0))-INDEX(ต้นทุนสำนักงานจริง[],MATCH(INDEX(ผลต่างสำนักงาน[],ROW()-ROW(ผลต่างสำนักงาน[[#Headers],[ธ.ค.]]),1),INDEX(แผนสำนักงาน[],,1),0),MATCH(ผลต่างสำนักงาน[[#Headers],[ธ.ค.]],ต้นทุนสำนักงานจริง[#Headers],0))","v":{"v":600,"d":"฿600.00"}},{"$f":"SUM(ผลต่างสำนักงาน[[#This Row],[ม.ค.]:[ธ.ค.]])","v":{"v":3600,"d":"฿3,600.00"}}]
[null,"ผลรวมย่อย",{"$f":"SUBTOTAL(109,ผลต่างสำนักงาน[ม.ค.])","v":{"v":-17,"d":"-฿17.00"}},{"$f":"SUBTOTAL(109,ผลต่างสำนักงาน[ก.พ.])","v":{"v":72,"d":"฿72.00"}},{"$f":"SUBTOTAL(109,ผลต่างสำนักงาน[มี.ค.])","v":{"v":78,"d":"฿78.00"}},{"$f":"SUBTOTAL(109,ผลต่างสำนักงาน[เม.ย.])","v":{"v":-141,"d":"-฿141.00"}},{"$f":"SUBTOTAL(109,ผลต่างสำนักงาน[พ.ค.])","v":{"v":-38,"d":"-฿38.00"}},{"$f":"SUBTOTAL(109,ผลต่างสำนักงาน[มิ.ย.])","v":{"v":16,"d":"฿16.00"}},{"$f":"SUBTOTAL(109,ผลต่างสำนักงาน[ก.ค.])","v":{"v":11470,"d":"฿11,470.00"}},{"$f":"SUBTOTAL(109,ผลต่างสำนักงาน[ส.ค.])","v":{"v":11470,"d":"฿11,470.00"}},{"$f":"SUBTOTAL(109,ผลต่างสำนักงาน[ก.ย.])","v":{"v":11470,"d":"฿11,470.00"}},{"$f":"SUBTOTAL(109,ผลต่างสำนักงาน[ต.ค.])","v":{"v":11470,"d":"฿11,470.00"}},{"$f":"SUBTOTAL(109,ผลต่างสำนักงาน[พ.ย.])","v":{"v":11770,"d":"฿11,770.00"}},{"$f":"SUBTOTAL(109,ผลต่างสำนักงาน[ธ.ค.])","v":{"v":11770,"d":"฿11,770.00"}},{"$f":"SUBTOTAL(109,ผลต่างสำนักงาน[ปี])","v":{"v":69390,"d":"฿69,390.00"}}]
[]
[null,"ต้นทุนการตลาด","ม.ค.","ก.พ.","มี.ค.","เม.ย.","พ.ค.","มิ.ย.","ก.ค.","ส.ค.","ก.ย.","ต.ค.","พ.ย.","ธ.ค.","ปี"]
[null,"การโฮสต์เว็บไซต์",{"$f":"INDEX(แผนการตลาด[],MATCH(INDEX(ผลต่างการตลาด[],ROW()-ROW(ผลต่างการตลาด[[#Headers],[ม.ค.]]),1),INDEX(แผนการตลาด[],,1),0),MATCH(ผลต่างการตลาด[[#Headers],[ม.ค.]],แผนการตลาด[#Headers],0))-INDEX(ต้นทุนการตลาดจริง[],MATCH(INDEX(ผลต่างการตลาด[],ROW()-ROW(ผลต่างการตลาด[[#Headers],[ม.ค.]]),1),INDEX(แผนการตลาด[],,1),0),MATCH(ผลต่างการตลาด[[#Headers],[ม.ค.]],ต้นทุนการตลาดจริง[#Headers],0))","v":{"v":0,"d":"฿0.00"}},{"$f":"INDEX(แผนการตลาด[],MATCH(INDEX(ผลต่างการตลาด[],ROW()-ROW(ผลต่างการตลาด[[#Headers],[ก.พ.]]),1),INDEX(แผนการตลาด[],,1),0),MATCH(ผลต่างการตลาด[[#Headers],[ก.พ.]],แผนการตลาด[#Headers],0))-INDEX(ต้นทุนการตลาดจริง[],MATCH(INDEX(ผลต่างการตลาด[],ROW()-ROW(ผลต่างการตลาด[[#Headers],[ก.พ.]]),1),INDEX(แผนการตลาด[],,1),0),MATCH(ผลต่างการตลาด[[#Headers],[ก.พ.]],ต้นทุนการตลาดจริง[#Headers],0))","v":{"v":0,"d":"฿0.00"}},{"$f":"INDEX(แผนการตลาด[],MATCH(INDEX(ผลต่างการตลาด[],ROW()-ROW(ผลต่างการตลาด[[#Headers],[มี.ค.]]),1),INDEX(แผนการตลาด[],,1),0),MATCH(ผลต่างการตลาด[[#Headers],[มี.ค.]],แผนการตลาด[#Headers],0))-INDEX(ต้นทุนการตลาดจริง[],MATCH(INDEX(ผลต่างการตลาด[],ROW()-ROW(ผลต่างการตลาด[[#Headers],[มี.ค.]]),1),INDEX(แผนการตลาด[],,1),0),MATCH(ผลต่างการตลาด[[#Headers],[มี.ค.]],ต้นทุนการตลาดจริง[#Headers],0))","v":{"v":0,"d":"฿0.00"}},{"$f":"INDEX(แผนการตลาด[],MATCH(INDEX(ผลต่างการตลาด[],ROW()-ROW(ผลต่างการตลาด[[#Headers],[เม.ย.]]),1),INDEX(แผนการตลาด[],,1),0),MATCH(ผลต่างการตลาด[[#Headers],[เม.ย.]],แผนการตลาด[#Headers],0))-INDEX(ต้นทุนการตลาดจริง[],MATCH(INDEX(ผลต่างการตลาด[],ROW()-ROW(ผลต่างการตลาด[[#Headers],[เม.ย.]]),1),INDEX(แผนการตลาด[],,1),0),MATCH(ผลต่างการตลาด[[#Headers],[เม.ย.]],ต้นทุนการตลาดจริง[#Headers],0))","v":{"v":0,"d":"฿0.00"}},{"$f":"INDEX(แผนการตลาด[],MATCH(INDEX(ผลต่างการตลาด[],ROW()-ROW(ผลต่างการตลาด[[#Headers],[พ.ค.]]),1),INDEX(แผนการตลาด[],,1),0),MATCH(ผลต่างการตลาด[[#Headers],[พ.ค.]],แผนการตลาด[#Headers],0))-INDEX(ต้นทุนการตลาดจริง[],MATCH(INDEX(ผลต่างการตลาด[],ROW()-ROW(ผลต่างการตลาด[[#Headers],[พ.ค.]]),1),INDEX(แผนการตลาด[],,1),0),MATCH(ผลต่างการตลาด[[#Headers],[พ.ค.]],ต้นทุนการตลาดจริง[#Headers],0))","v":{"v":0,"d":"฿0.00"}},{"$f":"INDEX(แผนการตลาด[],MATCH(INDEX(ผลต่างการตลาด[],ROW()-ROW(ผลต่างการตลาด[[#Headers],[มิ.ย.]]),1),INDEX(แผนการตลาด[],,1),0),MATCH(ผลต่างการตลาด[[#Headers],[มิ.ย.]],แผนการตลาด[#Headers],0))-INDEX(ต้นทุนการตลาดจริง[],MATCH(INDEX(ผลต่างการตลาด[],ROW()-ROW(ผลต่างการตลาด[[#Headers],[มิ.ย.]]),1),INDEX(แผนการตลาด[],,1),0),MATCH(ผลต่างการตลาด[[#Headers],[มิ.ย.]],ต้นทุนการตลาดจริง[#Headers],0))","v":{"v":0,"d":"฿0.00"}},{"$f":"INDEX(แผนการตลาด[],MATCH(INDEX(ผลต่างการตลาด[],ROW()-ROW(ผลต่างการตลาด[[#Headers],[ก.ค.]]),1),INDEX(แผนการตลาด[],,1),0),MATCH(ผลต่างการตลาด[[#Headers],[ก.ค.]],แผนการตลาด[#Headers],0))-INDEX(ต้นทุนการตลาดจริง[],MATCH(INDEX(ผลต่างการตลาด[],ROW()-ROW(ผลต่างการตลาด[[#Headers],[ก.ค.]]),1),INDEX(แผนการตลาด[],,1),0),MATCH(ผลต่างการตลาด[[#Headers],[ก.ค.]],ต้นทุนการตลาดจริง[#Headers],0))","v":{"v":500,"d":"฿500.00"}},{"$f":"INDEX(แผนการตลาด[],MATCH(INDEX(ผลต่างการตลาด[],ROW()-ROW(ผลต่างการตลาด[[#Headers],[ส.ค.]]),1),INDEX(แผนการตลาด[],,1),0),MATCH(ผลต่างการตลาด[[#Headers],[ส.ค.]],แผนการตลาด[#Headers],0))-INDEX(ต้นทุนการตลาดจริง[],MATCH(INDEX(ผลต่างการตลาด[],ROW()-ROW(ผลต่างการตลาด[[#Headers],[ส.ค.]]),1),INDEX(แผนการตลาด[],,1),0),MATCH(ผลต่างการตลาด[[#Headers],[ส.ค.]],ต้นทุนการตลาดจริง[#Headers],0))","v":{"v":500,"d":"฿500.00"}},{"$f":"INDEX(แผนการตลาด[],MATCH(INDEX(ผลต่างการตลาด[],ROW()-ROW(ผลต่างการตลาด[[#Headers],[ก.ย.]]),1),INDEX(แผนการตลาด[],,1),0),MATCH(ผลต่างการตลาด[[#Headers],[ก.ย.]],แผนการตลาด[#Headers],0))-INDEX(ต้นทุนการตลาดจริง[],MATCH(INDEX(ผลต่างการตลาด[],ROW()-ROW(ผลต่างการตลาด[[#Headers],[ก.ย.]]),1),INDEX(แผนการตลาด[],,1),0),MATCH(ผลต่างการตลาด[[#Headers],[ก.ย.]],ต้นทุนการตลาดจริง[#Headers],0))","v":{"v":500,"d":"฿500.00"}},{"$f":"INDEX(แผนการตลาด[],MATCH(INDEX(ผลต่างการตลาด[],ROW()-ROW(ผลต่างการตลาด[[#Headers],[ต.ค.]]),1),INDEX(แผนการตลาด[],,1),0),MATCH(ผลต่างการตลาด[[#Headers],[ต.ค.]],แผนการตลาด[#Headers],0))-INDEX(ต้นทุนการตลาดจริง[],MATCH(INDEX(ผลต่างการตลาด[],ROW()-ROW(ผลต่างการตลาด[[#Headers],[ต.ค.]]),1),INDEX(แผนการตลาด[],,1),0),MATCH(ผลต่างการตลาด[[#Headers],[ต.ค.]],ต้นทุนการตลาดจริง[#Headers],0))","v":{"v":500,"d":"฿500.00"}},{"$f":"INDEX(แผนการตลาด[],MATCH(INDEX(ผลต่างการตลาด[],ROW()-ROW(ผลต่างการตลาด[[#Headers],[พ.ย.]]),1),INDEX(แผนการตลาด[],,1),0),MATCH(ผลต่างการตลาด[[#Headers],[พ.ย.]],แผนการตลาด[#Headers],0))-INDEX(ต้นทุนการตลาดจริง[],MATCH(INDEX(ผลต่างการตลาด[],ROW()-ROW(ผลต่างการตลาด[[#Headers],[พ.ย.]]),1),INDEX(แผนการตลาด[],,1),0),MATCH(ผลต่างการตลาด[[#Headers],[พ.ย.]],ต้นทุนการตลาดจริง[#Headers],0))","v":{"v":500,"d":"฿500.00"}},{"$f":"INDEX(แผนการตลาด[],MATCH(INDEX(ผลต่างการตลาด[],ROW()-ROW(ผลต่างการตลาด[[#Headers],[ธ.ค.]]),1),INDEX(แผนการตลาด[],,1),0),MATCH(ผลต่างการตลาด[[#Headers],[ธ.ค.]],แผนการตลาด[#Headers],0))-INDEX(ต้นทุนการตลาดจริง[],MATCH(INDEX(ผลต่างการตลาด[],ROW()-ROW(ผลต่างการตลาด[[#Headers],[ธ.ค.]]),1),INDEX(แผนการตลาด[],,1),0),MATCH(ผลต่างการตลาด[[#Headers],[ธ.ค.]],ต้นทุนการตลาดจริง[#Headers],0))","v":{"v":500,"d":"฿500.00"}},{"$f":"SUM(ผลต่างการตลาด[[#This Row],[ม.ค.]:[ธ.ค.]])","v":{"v":3000,"d":"฿3,000.00"}}]
[null,"การอัปเดตเว็บไซต์",{"$f":"INDEX(แผนการตลาด[],MATCH(INDEX(ผลต่างการตลาด[],ROW()-ROW(ผลต่างการตลาด[[#Headers],[ม.ค.]]),1),INDEX(แผนการตลาด[],,1),0),MATCH(ผลต่างการตลาด[[#Headers],[ม.ค.]],แผนการตลาด[#Headers],0))-INDEX(ต้นทุนการตลาดจริง[],MATCH(INDEX(ผลต่างการตลาด[],ROW()-ROW(ผลต่างการตลาด[[#Headers],[ม.ค.]]),1),INDEX(แผนการตลาด[],,1),0),MATCH(ผลต่างการตลาด[[#Headers],[ม.ค.]],ต้นทุนการตลาดจริง[#Headers],0))","v":{"v":0,"d":"฿0.00"}},{"$f":"INDEX(แผนการตลาด[],MATCH(INDEX(ผลต่างการตลาด[],ROW()-ROW(ผลต่างการตลาด[[#Headers],[ก.พ.]]),1),INDEX(แผนการตลาด[],,1),0),MATCH(ผลต่างการตลาด[[#Headers],[ก.พ.]],แผนการตลาด[#Headers],0))-INDEX(ต้นทุนการตลาดจริง[],MATCH(INDEX(ผลต่างการตลาด[],ROW()-ROW(ผลต่างการตลาด[[#Headers],[ก.พ.]]),1),INDEX(แผนการตลาด[],,1),0),MATCH(ผลต่างการตลาด[[#Headers],[ก.พ.]],ต้นทุนการตลาดจริง[#Headers],0))","v":{"v":0,"d":"฿0.00"}},{"$f":"INDEX(แผนการตลาด[],MATCH(INDEX(ผลต่างการตลาด[],ROW()-ROW(ผลต่างการตลาด[[#Headers],[มี.ค.]]),1),INDEX(แผนการตลาด[],,1),0),MATCH(ผลต่างการตลาด[[#Headers],[มี.ค.]],แผนการตลาด[#Headers],0))-INDEX(ต้นทุนการตลาดจริง[],MATCH(INDEX(ผลต่างการตลาด[],ROW()-ROW(ผลต่างการตลาด[[#Headers],[มี.ค.]]),1),INDEX(แผนการตลาด[],,1),0),MATCH(ผลต่างการตลาด[[#Headers],[มี.ค.]],ต้นทุนการตลาดจริง[#Headers],0))","v":{"v":0,"d":"฿0.00"}},{"$f":"INDEX(แผนการตลาด[],MATCH(INDEX(ผลต่างการตลาด[],ROW()-ROW(ผลต่างการตลาด[[#Headers],[เม.ย.]]),1),INDEX(แผนการตลาด[],,1),0),MATCH(ผลต่างการตลาด[[#Headers],[เม.ย.]],แผนการตลาด[#Headers],0))-INDEX(ต้นทุนการตลาดจริง[],MATCH(INDEX(ผลต่างการตลาด[],ROW()-ROW(ผลต่างการตลาด[[#Headers],[เม.ย.]]),1),INDEX(แผนการตลาด[],,1),0),MATCH(ผลต่างการตลาด[[#Headers],[เม.ย.]],ต้นทุนการตลาดจริง[#Headers],0))","v":{"v":0,"d":"฿0.00"}},{"$f":"INDEX(แผนการตลาด[],MATCH(INDEX(ผลต่างการตลาด[],ROW()-ROW(ผลต่างการตลาด[[#Headers],[พ.ค.]]),1),INDEX(แผนการตลาด[],,1),0),MATCH(ผลต่างการตลาด[[#Headers],[พ.ค.]],แผนการตลาด[#Headers],0))-INDEX(ต้นทุนการตลาดจริง[],MATCH(INDEX(ผลต่างการตลาด[],ROW()-ROW(ผลต่างการตลาด[[#Headers],[พ.ค.]]),1),INDEX(แผนการตลาด[],,1),0),MATCH(ผลต่างการตลาด[[#Headers],[พ.ค.]],ต้นทุนการตลาดจริง[#Headers],0))","v":{"v":0,"d":"฿0.00"}},{"$f":"INDEX(แผนการตลาด[],MATCH(INDEX(ผลต่างการตลาด[],ROW()-ROW(ผลต่างการตลาด[[#Headers],[มิ.ย.]]),1),INDEX(แผนการตลาด[],,1),0),MATCH(ผลต่างการตลาด[[#Headers],[มิ.ย.]],แผนการตลาด[#Headers],0))-INDEX(ต้นทุนการตลาดจริง[],MATCH(INDEX(ผลต่างการตลาด[],ROW()-ROW(ผลต่างการตลาด[[#Headers],[มิ.ย.]]),1),INDEX(แผนการตลาด[],,1),0),MATCH(ผลต่างการตลาด[[#Headers],[มิ.ย.]],ต้นทุนการตลาดจริง[#Headers],0))","v":{"v":-500,"d":"-฿500.00"}},{"$f":"INDEX(แผนการตลาด[],MATCH(INDEX(ผลต่างการตลาด[],ROW()-ROW(ผลต่างการตลาด[[#Headers],[ก.ค.]]),1),INDEX(แผนการตลาด[],,1),0),MATCH(ผลต่างการตลาด[[#Headers],[ก.ค.]],แผนการตลาด[#Headers],0))-INDEX(ต้นทุนการตลาดจริง[],MATCH(INDEX(ผลต่างการตลาด[],ROW()-ROW(ผลต่างการตลาด[[#Headers],[ก.ค.]]),1),INDEX(แผนการตลาด[],,1),0),MATCH(ผลต่างการตลาด[[#Headers],[ก.ค.]],ต้นทุนการตลาดจริง[#Headers],0))","v":{"v":200,"d":"฿200.00"}},{"$f":"INDEX(แผนการตลาด[],MATCH(INDEX(ผลต่างการตลาด[],ROW()-ROW(ผลต่างการตลาด[[#Headers],[ส.ค.]]),1),INDEX(แผนการตลาด[],,1),0),MATCH(ผลต่างการตลาด[[#Headers],[ส.ค.]],แผนการตลาด[#Headers],0))-INDEX(ต้นทุนการตลาดจริง[],MATCH(INDEX(ผลต่างการตลาด[],ROW()-ROW(ผลต่างการตลาด[[#Headers],[ส.ค.]]),1),INDEX(แผนการตลาด[],,1),0),MATCH(ผลต่างการตลาด[[#Headers],[ส.ค.]],ต้นทุนการตลาดจริง[#Headers],0))","v":{"v":200,"d":"฿200.00"}},{"$f":"INDEX(แผนการตลาด[],MATCH(INDEX(ผลต่างการตลาด[],ROW()-ROW(ผลต่างการตลาด[[#Headers],[ก.ย.]]),1),INDEX(แผนการตลาด[],,1),0),MATCH(ผลต่างการตลาด[[#Headers],[ก.ย.]],แผนการตลาด[#Headers],0))-INDEX(ต้นทุนการตลาดจริง[],MATCH(INDEX(ผลต่างการตลาด[],ROW()-ROW(ผลต่างการตลาด[[#Headers],[ก.ย.]]),1),INDEX(แผนการตลาด[],,1),0),MATCH(ผลต่างการตลาด[[#Headers],[ก.ย.]],ต้นทุนการตลาดจริง[#Headers],0))","v":{"v":200,"d":"฿200.00"}},{"$f":"INDEX(แผนการตลาด[],MATCH(INDEX(ผลต่างการตลาด[],ROW()-ROW(ผลต่างการตลาด[[#Headers],[ต.ค.]]),1),INDEX(แผนการตลาด[],,1),0),MATCH(ผลต่างการตลาด[[#Headers],[ต.ค.]],แผนการตลาด[#Headers],0))-INDEX(ต้นทุนการตลาดจริง[],MATCH(INDEX(ผลต่างการตลาด[],ROW()-ROW(ผลต่างการตลาด[[#Headers],[ต.ค.]]),1),INDEX(แผนการตลาด[],,1),0),MATCH(ผลต่างการตลาด[[#Headers],[ต.ค.]],ต้นทุนการตลาดจริง[#Headers],0))","v":{"v":200,"d":"฿200.00"}},{"$f":"INDEX(แผนการตลาด[],MATCH(INDEX(ผลต่างการตลาด[],ROW()-ROW(ผลต่างการตลาด[[#Headers],[พ.ย.]]),1),INDEX(แผนการตลาด[],,1),0),MATCH(ผลต่างการตลาด[[#Headers],[พ.ย.]],แผนการตลาด[#Headers],0))-INDEX(ต้นทุนการตลาดจริง[],MATCH(INDEX(ผลต่างการตลาด[],ROW()-ROW(ผลต่างการตลาด[[#Headers],[พ.ย.]]),1),INDEX(แผนการตลาด[],,1),0),MATCH(ผลต่างการตลาด[[#Headers],[พ.ย.]],ต้นทุนการตลาดจริง[#Headers],0))","v":{"v":200,"d":"฿200.00"}},{"$f":"INDEX(แผนการตลาด[],MATCH(INDEX(ผลต่างการตลาด[],ROW()-ROW(ผลต่างการตลาด[[#Headers],[ธ.ค.]]),1),INDEX(แผนการตลาด[],,1),0),MATCH(ผลต่างการตลาด[[#Headers],[ธ.ค.]],แผนการตลาด[#Headers],0))-INDEX(ต้นทุนการตลาดจริง[],MATCH(INDEX(ผลต่างการตลาด[],ROW()-ROW(ผลต่างการตลาด[[#Headers],[ธ.ค.]]),1),INDEX(แผนการตลาด[],,1),0),MATCH(ผลต่างการตลาด[[#Headers],[ธ.ค.]],ต้นทุนการตลาดจริง[#Headers],0))","v":{"v":1000,"d":"฿1,000.00"}},{"$f":"SUM(ผลต่างการตลาด[[#This Row],[ม.ค.]:[ธ.ค.]])","v":{"v":1500,"d":"฿1,500.00"}}]
[null,"การเตรียมเอกสารประกอบ",{"$f":"INDEX(แผนการตลาด[],MATCH(INDEX(ผลต่างการตลาด[],ROW()-ROW(ผลต่างการตลาด[[#Headers],[ม.ค.]]),1),INDEX(แผนการตลาด[],,1),0),MATCH(ผลต่างการตลาด[[#Headers],[ม.ค.]],แผนการตลาด[#Headers],0))-INDEX(ต้นทุนการตลาดจริง[],MATCH(INDEX(ผลต่างการตลาด[],ROW()-ROW(ผลต่างการตลาด[[#Headers],[ม.ค.]]),1),INDEX(แผนการตลาด[],,1),0),MATCH(ผลต่างการตลาด[[#Headers],[ม.ค.]],ต้นทุนการตลาดจริง[#Headers],0))","v":{"v":200,"d":"฿200.00"}},{"$f":"INDEX(แผนการตลาด[],MATCH(INDEX(ผลต่างการตลาด[],ROW()-ROW(ผลต่างการตลาด[[#Headers],[ก.พ.]]),1),INDEX(แผนการตลาด[],,1),0),MATCH(ผลต่างการตลาด[[#Headers],[ก.พ.]],แผนการตลาด[#Headers],0))-INDEX(ต้นทุนการตลาดจริง[],MATCH(INDEX(ผลต่างการตลาด[],ROW()-ROW(ผลต่างการตลาด[[#Headers],[ก.พ.]]),1),INDEX(แผนการตลาด[],,1),0),MATCH(ผลต่างการตลาด[[#Headers],[ก.พ.]],ต้นทุนการตลาดจริง[#Headers],0))","v":{"v":0,"d":"฿0.00"}},{"$f":"INDEX(แผนการตลาด[],MATCH(INDEX(ผลต่างการตลาด[],ROW()-ROW(ผลต่างการตลาด[[#Headers],[มี.ค.]]),1),INDEX(แผนการตลาด[],,1),0),MATCH(ผลต่างการตลาด[[#Headers],[มี.ค.]],แผนการตลาด[#Headers],0))-INDEX(ต้นทุนการตลาดจริง[],MATCH(INDEX(ผลต่างการตลาด[],ROW()-ROW(ผลต่างการตลาด[[#Headers],[มี.ค.]]),1),INDEX(แผนการตลาด[],,1),0),MATCH(ผลต่างการตลาด[[#Headers],[มี.ค.]],ต้นทุนการตลาดจริง[#Headers],0))","v":{"v":0,"d":"฿0.00"}},{"$f":"INDEX(แผนการตลาด[],MATCH(INDEX(ผลต่างการตลาด[],ROW()-ROW(ผลต่างการตลาด[[#Headers],[เม.ย.]]),1),INDEX(แผนการตลาด[],,1),0),MATCH(ผลต่างการตลาด[[#Headers],[เม.ย.]],แผนการตลาด[#Headers],0))-INDEX(ต้นทุนการตลาดจริง[],MATCH(INDEX(ผลต่างการตลาด[],ROW()-ROW(ผลต่างการตลาด[[#Headers],[เม.ย.]]),1),INDEX(แผนการตลาด[],,1),0),MATCH(ผลต่างการตลาด[[#Headers],[เม.ย.]],ต้นทุนการตลาดจริง[#Headers],0))","v":{"v":-500,"d":"-฿500.00"}},{"$f":"INDEX(แผนการตลาด[],MATCH(INDEX(ผลต่างการตลาด[],ROW()-ROW(ผลต่างการตลาด[[#Headers],[พ.ค.]]),1),INDEX(แผนการตลาด[],,1),0),MATCH(ผลต่างการตลาด[[#Headers],[พ.ค.]],แผนการตลาด[#Headers],0))-INDEX(ต้นทุนการตลาดจริง[],MATCH(INDEX(ผลต่างการตลาด[],ROW()-ROW(ผลต่างการตลาด[[#Headers],[พ.ค.]]),1),INDEX(แผนการตลาด[],,1),0),MATCH(ผลต่างการตลาด[[#Headers],[พ.ค.]],ต้นทุนการตลาดจริง[#Headers],0))","v":{"v":0,"d":"฿0.00"}},{"$f":"INDEX(แผนการตลาด[],MATCH(INDEX(ผลต่างการตลาด[],ROW()-ROW(ผลต่างการตลาด[[#Headers],[มิ.ย.]]),1),INDEX(แผนการตลาด[],,1),0),MATCH(ผลต่างการตลาด[[#Headers],[มิ.ย.]],แผนการตลาด[#Headers],0))-INDEX(ต้นทุนการตลาดจริง[],MATCH(INDEX(ผลต่างการตลาด[],ROW()-ROW(ผลต่างการตลาด[[#Headers],[มิ.ย.]]),1),INDEX(แผนการตลาด[],,1),0),MATCH(ผลต่างการตลาด[[#Headers],[มิ.ย.]],ต้นทุนการตลาดจริง[#Headers],0))","v":{"v":0,"d":"฿0.00"}},{"$f":"INDEX(แผนการตลาด[],MATCH(INDEX(ผลต่างการตลาด[],ROW()-ROW(ผลต่างการตลาด[[#Headers],[ก.ค.]]),1),INDEX(แผนการตลาด[],,1),0),MATCH(ผลต่างการตลาด[[#Headers],[ก.ค.]],แผนการตลาด[#Headers],0))-INDEX(ต้นทุนการตลาดจริง[],MATCH(INDEX(ผลต่างการตลาด[],ROW()-ROW(ผลต่างการตลาด[[#Headers],[ก.ค.]]),1),INDEX(แผนการตลาด[],,1),0),MATCH(ผลต่างการตลาด[[#Headers],[ก.ค.]],ต้นทุนการตลาดจริง[#Headers],0))","v":{"v":5000,"d":"฿5,000.00"}},{"$f":"INDEX(แผนการตลาด[],MATCH(INDEX(ผลต่างการตลาด[],ROW()-ROW(ผลต่างการตลาด[[#Headers],[ส.ค.]]),1),INDEX(แผนการตลาด[],,1),0),MATCH(ผลต่างการตลาด[[#Headers],[ส.ค.]],แผนการตลาด[#Headers],0))-INDEX(ต้นทุนการตลาดจริง[],MATCH(INDEX(ผลต่างการตลาด[],ROW()-ROW(ผลต่างการตลาด[[#Headers],[ส.ค.]]),1),INDEX(แผนการตลาด[],,1),0),MATCH(ผลต่างการตลาด[[#Headers],[ส.ค.]],ต้นทุนการตลาดจริง[#Headers],0))","v":{"v":0,"d":"฿0.00"}},{"$f":"INDEX(แผนการตลาด[],MATCH(INDEX(ผลต่างการตลาด[],ROW()-ROW(ผลต่างการตลาด[[#Headers],[ก.ย.]]),1),INDEX(แผนการตลาด[],,1),0),MATCH(ผลต่างการตลาด[[#Headers],[ก.ย.]],แผนการตลาด[#Headers],0))-INDEX(ต้นทุนการตลาดจริง[],MATCH(INDEX(ผลต่างการตลาด[],ROW()-ROW(ผลต่างการตลาด[[#Headers],[ก.ย.]]),1),INDEX(แผนการตลาด[],,1),0),MATCH(ผลต่างการตลาด[[#Headers],[ก.ย.]],ต้นทุนการตลาดจริง[#Headers],0))","v":{"v":0,"d":"฿0.00"}},{"$f":"INDEX(แผนการตลาด[],MATCH(INDEX(ผลต่างการตลาด[],ROW()-ROW(ผลต่างการตลาด[[#Headers],[ต.ค.]]),1),INDEX(แผนการตลาด[],,1),0),MATCH(ผลต่างการตลาด[[#Headers],[ต.ค.]],แผนการตลาด[#Headers],0))-INDEX(ต้นทุนการตลาดจริง[],MATCH(INDEX(ผลต่างการตลาด[],ROW()-ROW(ผลต่างการตลาด[[#Headers],[ต.ค.]]),1),INDEX(แผนการตลาด[],,1),0),MATCH(ผลต่างการตลาด[[#Headers],[ต.ค.]],ต้นทุนการตลาดจริง[#Headers],0))","v":{"v":5000,"d":"฿5,000.00"}},{"$f":"INDEX(แผนการตลาด[],MATCH(INDEX(ผลต่างการตลาด[],ROW()-ROW(ผลต่างการตลาด[[#Headers],[พ.ย.]]),1),INDEX(แผนการตลาด[],,1),0),MATCH(ผลต่างการตลาด[[#Headers],[พ.ย.]],แผนการตลาด[#Headers],0))-INDEX(ต้นทุนการตลาดจริง[],MATCH(INDEX(ผลต่างการตลาด[],ROW()-ROW(ผลต่างการตลาด[[#Headers],[พ.ย.]]),1),INDEX(แผนการตลาด[],,1),0),MATCH(ผลต่างการตลาด[[#Headers],[พ.ย.]],ต้นทุนการตลาดจริง[#Headers],0))","v":{"v":0,"d":"฿0.00"}},{"$f":"INDEX(แผนการตลาด[],MATCH(INDEX(ผลต่างการตลาด[],ROW()-ROW(ผลต่างการตลาด[[#Headers],[ธ.ค.]]),1),INDEX(แผนการตลาด[],,1),0),MATCH(ผลต่างการตลาด[[#Headers],[ธ.ค.]],แผนการตลาด[#Headers],0))-INDEX(ต้นทุนการตลาดจริง[],MATCH(INDEX(ผลต่างการตลาด[],ROW()-ROW(ผลต่างการตลาด[[#Headers],[ธ.ค.]]),1),INDEX(แผนการตลาด[],,1),0),MATCH(ผลต่างการตลาด[[#Headers],[ธ.ค.]],ต้นทุนการตลาดจริง[#Headers],0))","v":{"v":0,"d":"฿0.00"}},{"$f":"SUM(ผลต่างการตลาด[[#This Row],[ม.ค.]:[ธ.ค.]])","v":{"v":9700,"d":"฿9,700.00"}}]
[null,"การพิมพ์เอกสารประกอบ",{"$f":"INDEX(แผนการตลาด[],MATCH(INDEX(ผลต่างการตลาด[],ROW()-ROW(ผลต่างการตลาด[[#Headers],[ม.ค.]]),1),INDEX(แผนการตลาด[],,1),0),MATCH(ผลต่างการตลาด[[#Headers],[ม.ค.]],แผนการตลาด[#Headers],0))-INDEX(ต้นทุนการตลาดจริง[],MATCH(INDEX(ผลต่างการตลาด[],ROW()-ROW(ผลต่างการตลาด[[#Headers],[ม.ค.]]),1),INDEX(แผนการตลาด[],,1),0),MATCH(ผลต่างการตลาด[[#Headers],[ม.ค.]],ต้นทุนการตลาดจริง[#Headers],0))","v":{"v":100,"d":"฿100.00"}},{"$f":"INDEX(แผนการตลาด[],MATCH(INDEX(ผลต่างการตลาด[],ROW()-ROW(ผลต่างการตลาด[[#Headers],[ก.พ.]]),1),INDEX(แผนการตลาด[],,1),0),MATCH(ผลต่างการตลาด[[#Headers],[ก.พ.]],แผนการตลาด[#Headers],0))-INDEX(ต้นทุนการตลาดจริง[],MATCH(INDEX(ผลต่างการตลาด[],ROW()-ROW(ผลต่างการตลาด[[#Headers],[ก.พ.]]),1),INDEX(แผนการตลาด[],,1),0),MATCH(ผลต่างการตลาด[[#Headers],[ก.พ.]],ต้นทุนการตลาดจริง[#Headers],0))","v":{"v":-300,"d":"-฿300.00"}},{"$f":"INDEX(แผนการตลาด[],MATCH(INDEX(ผลต่างการตลาด[],ROW()-ROW(ผลต่างการตลาด[[#Headers],[มี.ค.]]),1),INDEX(แผนการตลาด[],,1),0),MATCH(ผลต่างการตลาด[[#Headers],[มี.ค.]],แผนการตลาด[#Headers],0))-INDEX(ต้นทุนการตลาดจริง[],MATCH(INDEX(ผลต่างการตลาด[],ROW()-ROW(ผลต่างการตลาด[[#Headers],[มี.ค.]]),1),INDEX(แผนการตลาด[],,1),0),MATCH(ผลต่างการตลาด[[#Headers],[มี.ค.]],ต้นทุนการตลาดจริง[#Headers],0))","v":{"v":100,"d":"฿100.00"}},{"$f":"INDEX(แผนการตลาด[],MATCH(INDEX(ผลต่างการตลาด[],ROW()-ROW(ผลต่างการตลาด[[#Headers],[เม.ย.]]),1),INDEX(แผนการตลาด[],,1),0),MATCH(ผลต่างการตลาด[[#Headers],[เม.ย.]],แผนการตลาด[#Headers],0))-INDEX(ต้นทุนการตลาดจริง[],MATCH(INDEX(ผลต่างการตลาด[],ROW()-ROW(ผลต่างการตลาด[[#Headers],[เม.ย.]]),1),INDEX(แผนการตลาด[],,1),0),MATCH(ผลต่างการตลาด[[#Headers],[เม.ย.]],ต้นทุนการตลาดจริง[#Headers],0))","v":{"v":100,"d":"฿100.00"}},{"$f":"INDEX(แผนการตลาด[],MATCH(INDEX(ผลต่างการตลาด[],ROW()-ROW(ผลต่างการตลาด[[#Headers],[พ.ค.]]),1),INDEX(แผนการตลาด[],,1),0),MATCH(ผลต่างการตลาด[[#Headers],[พ.ค.]],แผนการตลาด[#Headers],0))-INDEX(ต้นทุนการตลาดจริง[],MATCH(INDEX(ผลต่างการตลาด[],ROW()-ROW(ผลต่างการตลาด[[#Headers],[พ.ค.]]),1),INDEX(แผนการตลาด[],,1),0),MATCH(ผลต่างการตลาด[[#Headers],[พ.ค.]],ต้นทุนการตลาดจริง[#Headers],0))","v":{"v":-400,"d":"-฿400.00"}},{"$f":"INDEX(แผนการตลาด[],MATCH(INDEX(ผลต่างการตลาด[],ROW()-ROW(ผลต่างการตลาด[[#Headers],[มิ.ย.]]),1),INDEX(แผนการตลาด[],,1),0),MATCH(ผลต่างการตลาด[[#Headers],[มิ.ย.]],แผนการตลาด[#Headers],0))-INDEX(ต้นทุนการตลาดจริง[],MATCH(INDEX(ผลต่างการตลาด[],ROW()-ROW(ผลต่างการตลาด[[#Headers],[มิ.ย.]]),1),INDEX(แผนการตลาด[],,1),0),MATCH(ผลต่างการตลาด[[#Headers],[มิ.ย.]],ต้นทุนการตลาดจริง[#Headers],0))","v":{"v":20,"d":"฿20.00"}},{"$f":"INDEX(แผนการตลาด[],MATCH(INDEX(ผลต่างการตลาด[],ROW()-ROW(ผลต่างการตลาด[[#Headers],[ก.ค.]]),1),INDEX(แผนการตลาด[],,1),0),MATCH(ผลต่างการตลาด[[#Headers],[ก.ค.]],แผนการตลาด[#Headers],0))-INDEX(ต้นทุนการตลาดจริง[],MATCH(INDEX(ผลต่างการตลาด[],ROW()-ROW(ผลต่างการตลาด[[#Headers],[ก.ค.]]),1),INDEX(แผนการตลาด[],,1),0),MATCH(ผลต่างการตลาด[[#Headers],[ก.ค.]],ต้นทุนการตลาดจริง[#Headers],0))","v":{"v":200,"d":"฿200.00"}},{"$f":"INDEX(แผนการตลาด[],MATCH(INDEX(ผลต่างการตลาด[],ROW()-ROW(ผลต่างการตลาด[[#Headers],[ส.ค.]]),1),INDEX(แผนการตลาด[],,1),0),MATCH(ผลต่างการตลาด[[#Headers],[ส.ค.]],แผนการตลาด[#Headers],0))-INDEX(ต้นทุนการตลาดจริง[],MATCH(INDEX(ผลต่างการตลาด[],ROW()-ROW(ผลต่างการตลาด[[#Headers],[ส.ค.]]),1),INDEX(แผนการตลาด[],,1),0),MATCH(ผลต่างการตลาด[[#Headers],[ส.ค.]],ต้นทุนการตลาดจริง[#Headers],0))","v":{"v":200,"d":"฿200.00"}},{"$f":"INDEX(แผนการตลาด[],MATCH(INDEX(ผลต่างการตลาด[],ROW()-ROW(ผลต่างการตลาด[[#Headers],[ก.ย.]]),1),INDEX(แผนการตลาด[],,1),0),MATCH(ผลต่างการตลาด[[#Headers],[ก.ย.]],แผนการตลาด[#Headers],0))-INDEX(ต้นทุนการตลาดจริง[],MATCH(INDEX(ผลต่างการตลาด[],ROW()-ROW(ผลต่างการตลาด[[#Headers],[ก.ย.]]),1),INDEX(แผนการตลาด[],,1),0),MATCH(ผลต่างการตลาด[[#Headers],[ก.ย.]],ต้นทุนการตลาดจริง[#Headers],0))","v":{"v":200,"d":"฿200.00"}},{"$f":"INDEX(แผนการตลาด[],MATCH(INDEX(ผลต่างการตลาด[],ROW()-ROW(ผลต่างการตลาด[[#Headers],[ต.ค.]]),1),INDEX(แผนการตลาด[],,1),0),MATCH(ผลต่างการตลาด[[#Headers],[ต.ค.]],แผนการตลาด[#Headers],0))-INDEX(ต้นทุนการตลาดจริง[],MATCH(INDEX(ผลต่างการตลาด[],ROW()-ROW(ผลต่างการตลาด[[#Headers],[ต.ค.]]),1),INDEX(แผนการตลาด[],,1),0),MATCH(ผลต่างการตลาด[[#Headers],[ต.ค.]],ต้นทุนการตลาดจริง[#Headers],0))","v":{"v":200,"d":"฿200.00"}},{"$f":"INDEX(แผนการตลาด[],MATCH(INDEX(ผลต่างการตลาด[],ROW()-ROW(ผลต่างการตลาด[[#Headers],[พ.ย.]]),1),INDEX(แผนการตลาด[],,1),0),MATCH(ผลต่างการตลาด[[#Headers],[พ.ย.]],แผนการตลาด[#Headers],0))-INDEX(ต้นทุนการตลาดจริง[],MATCH(INDEX(ผลต่างการตลาด[],ROW()-ROW(ผลต่างการตลาด[[#Headers],[พ.ย.]]),1),INDEX(แผนการตลาด[],,1),0),MATCH(ผลต่างการตลาด[[#Headers],[พ.ย.]],ต้นทุนการตลาดจริง[#Headers],0))","v":{"v":200,"d":"฿200.00"}},{"$f":"INDEX(แผนการตลาด[],MATCH(INDEX(ผลต่างการตลาด[],ROW()-ROW(ผลต่างการตลาด[[#Headers],[ธ.ค.]]),1),INDEX(แผนการตลาด[],,1),0),MATCH(ผลต่างการตลาด[[#Headers],[ธ.ค.]],แผนการตลาด[#Headers],0))-INDEX(ต้นทุนการตลาดจริง[],MATCH(INDEX(ผลต่างการตลาด[],ROW()-ROW(ผลต่างการตลาด[[#Headers],[ธ.ค.]]),1),INDEX(แผนการตลาด[],,1),0),MATCH(ผลต่างการตลาด[[#Headers],[ธ.ค.]],ต้นทุนการตลาดจริง[#Headers],0))","v":{"v":200,"d":"฿200.00"}},{"$f":"SUM(ผลต่างการตลาด[[#This Row],[ม.ค.]:[ธ.ค.]])","v":{"v":820,"d":"฿820.00"}}]
[null,"กิจกรรมด้านการตลาด",{"$f":"INDEX(แผนการตลาด[],MATCH(INDEX(ผลต่างการตลาด[],ROW()-ROW(ผลต่างการตลาด[[#Headers],[ม.ค.]]),1),INDEX(แผนการตลาด[],,1),0),MATCH(ผลต่างการตลาด[[#Headers],[ม.ค.]],แผนการตลาด[#Headers],0))-INDEX(ต้นทุนการตลาดจริง[],MATCH(INDEX(ผลต่างการตลาด[],ROW()-ROW(ผลต่างการตลาด[[#Headers],[ม.ค.]]),1),INDEX(แผนการตลาด[],,1),0),MATCH(ผลต่างการตลาด[[#Headers],[ม.ค.]],ต้นทุนการตลาดจริง[#Headers],0))","v":{"v":200,"d":"฿200.00"}},{"$f":"INDEX(แผนการตลาด[],MATCH(INDEX(ผลต่างการตลาด[],ROW()-ROW(ผลต่างการตลาด[[#Headers],[ก.พ.]]),1),INDEX(แผนการตลาด[],,1),0),MATCH(ผลต่างการตลาด[[#Headers],[ก.พ.]],แผนการตลาด[#Headers],0))-INDEX(ต้นทุนการตลาดจริง[],MATCH(INDEX(ผลต่างการตลาด[],ROW()-ROW(ผลต่างการตลาด[[#Headers],[ก.พ.]]),1),INDEX(แผนการตลาด[],,1),0),MATCH(ผลต่างการตลาด[[#Headers],[ก.พ.]],ต้นทุนการตลาดจริง[#Headers],0))","v":{"v":-200,"d":"-฿200.00"}},{"$f":"INDEX(แผนการตลาด[],MATCH(INDEX(ผลต่างการตลาด[],ROW()-ROW(ผลต่างการตลาด[[#Headers],[มี.ค.]]),1),INDEX(แผนการตลาด[],,1),0),MATCH(ผลต่างการตลาด[[#Headers],[มี.ค.]],แผนการตลาด[#Headers],0))-INDEX(ต้นทุนการตลาดจริง[],MATCH(INDEX(ผลต่างการตลาด[],ROW()-ROW(ผลต่างการตลาด[[#Headers],[มี.ค.]]),1),INDEX(แผนการตลาด[],,1),0),MATCH(ผลต่างการตลาด[[#Headers],[มี.ค.]],ต้นทุนการตลาดจริง[#Headers],0))","v":{"v":-200,"d":"-฿200.00"}},{"$f":"INDEX(แผนการตลาด[],MATCH(INDEX(ผลต่างการตลาด[],ROW()-ROW(ผลต่างการตลาด[[#Headers],[เม.ย.]]),1),INDEX(แผนการตลาด[],,1),0),MATCH(ผลต่างการตลาด[[#Headers],[เม.ย.]],แผนการตลาด[#Headers],0))-INDEX(ต้นทุนการตลาดจริง[],MATCH(INDEX(ผลต่างการตลาด[],ROW()-ROW(ผลต่างการตลาด[[#Headers],[เม.ย.]]),1),INDEX(แผนการตลาด[],,1),0),MATCH(ผลต่างการตลาด[[#Headers],[เม.ย.]],ต้นทุนการตลาดจริง[#Headers],0))","v":{"v":300,"d":"฿300.00"}},{"$f":"INDEX(แผนการตลาด[],MATCH(INDEX(ผลต่างการตลาด[],ROW()-ROW(ผลต่างการตลาด[[#Headers],[พ.ค.]]),1),INDEX(แผนการตลาด[],,1),0),MATCH(ผลต่างการตลาด[[#Headers],[พ.ค.]],แผนการตลาด[#Headers],0))-INDEX(ต้นทุนการตลาดจริง[],MATCH(INDEX(ผลต่างการตลาด[],ROW()-ROW(ผลต่างการตลาด[[#Headers],[พ.ค.]]),1),INDEX(แผนการตลาด[],,1),0),MATCH(ผลต่างการตลาด[[#Headers],[พ.ค.]],ต้นทุนการตลาดจริง[#Headers],0))","v":{"v":500,"d":"฿500.00"}},{"$f":"INDEX(แผนการตลาด[],MATCH(INDEX(ผลต่างการตลาด[],ROW()-ROW(ผลต่างการตลาด[[#Headers],[มิ.ย.]]),1),INDEX(แผนการตลาด[],,1),0),MATCH(ผลต่างการตลาด[[#Headers],[มิ.ย.]],แผนการตลาด[#Headers],0))-INDEX(ต้นทุนการตลาดจริง[],MATCH(INDEX(ผลต่างการตลาด[],ROW()-ROW(ผลต่างการตลาด[[#Headers],[มิ.ย.]]),1),INDEX(แผนการตลาด[],,1),0),MATCH(ผลต่างการตลาด[[#Headers],[มิ.ย.]],ต้นทุนการตลาดจริง[#Headers],0))","v":{"v":-300,"d":"-฿300.00"}},{"$f":"INDEX(แผนการตลาด[],MATCH(INDEX(ผลต่างการตลาด[],ROW()-ROW(ผลต่างการตลาด[[#Headers],[ก.ค.]]),1),INDEX(แผนการตลาด[],,1),0),MATCH(ผลต่างการตลาด[[#Headers],[ก.ค.]],แผนการตลาด[#Headers],0))-INDEX(ต้นทุนการตลาดจริง[],MATCH(INDEX(ผลต่างการตลาด[],ROW()-ROW(ผลต่างการตลาด[[#Headers],[ก.ค.]]),1),INDEX(แผนการตลาด[],,1),0),MATCH(ผลต่างการตลาด[[#Headers],[ก.ค.]],ต้นทุนการตลาดจริง[#Headers],0))","v":{"v":2000,"d":"฿2,000.00"}},{"$f":"INDEX(แผนการตลาด[],MATCH(INDEX(ผลต่างการตลาด[],ROW()-ROW(ผลต่างการตลาด[[#Headers],[ส.ค.]]),1),INDEX(แผนการตลาด[],,1),0),MATCH(ผลต่างการตลาด[[#Headers],[ส.ค.]],แผนการตลาด[#Headers],0))-INDEX(ต้นทุนการตลาดจริง[],MATCH(INDEX(ผลต่างการตลาด[],ROW()-ROW(ผลต่างการตลาด[[#Headers],[ส.ค.]]),1),INDEX(แผนการตลาด[],,1),0),MATCH(ผลต่างการตลาด[[#Headers],[ส.ค.]],ต้นทุนการตลาดจริง[#Headers],0))","v":{"v":5000,"d":"฿5,000.00"}},{"$f":"INDEX(แผนการตลาด[],MATCH(INDEX(ผลต่างการตลาด[],ROW()-ROW(ผลต่างการตลาด[[#Headers],[ก.ย.]]),1),INDEX(แผนการตลาด[],,1),0),MATCH(ผลต่างการตลาด[[#Headers],[ก.ย.]],แผนการตลาด[#Headers],0))-INDEX(ต้นทุนการตลาดจริง[],MATCH(INDEX(ผลต่างการตลาด[],ROW()-ROW(ผลต่างการตลาด[[#Headers],[ก.ย.]]),1),INDEX(แผนการตลาด[],,1),0),MATCH(ผลต่างการตลาด[[#Headers],[ก.ย.]],ต้นทุนการตลาดจริง[#Headers],0))","v":{"v":2000,"d":"฿2,000.00"}},{"$f":"INDEX(แผนการตลาด[],MATCH(INDEX(ผลต่างการตลาด[],ROW()-ROW(ผลต่างการตลาด[[#Headers],[ต.ค.]]),1),INDEX(แผนการตลาด[],,1),0),MATCH(ผลต่างการตลาด[[#Headers],[ต.ค.]],แผนการตลาด[#Headers],0))-INDEX(ต้นทุนการตลาดจริง[],MATCH(INDEX(ผลต่างการตลาด[],ROW()-ROW(ผลต่างการตลาด[[#Headers],[ต.ค.]]),1),INDEX(แผนการตลาด[],,1),0),MATCH(ผลต่างการตลาด[[#Headers],[ต.ค.]],ต้นทุนการตลาดจริง[#Headers],0))","v":{"v":2000,"d":"฿2,000.00"}},{"$f":"INDEX(แผนการตลาด[],MATCH(INDEX(ผลต่างการตลาด[],ROW()-ROW(ผลต่างการตลาด[[#Headers],[พ.ย.]]),1),INDEX(แผนการตลาด[],,1),0),MATCH(ผลต่างการตลาด[[#Headers],[พ.ย.]],แผนการตลาด[#Headers],0))-INDEX(ต้นทุนการตลาดจริง[],MATCH(INDEX(ผลต่างการตลาด[],ROW()-ROW(ผลต่างการตลาด[[#Headers],[พ.ย.]]),1),INDEX(แผนการตลาด[],,1),0),MATCH(ผลต่างการตลาด[[#Headers],[พ.ย.]],ต้นทุนการตลาดจริง[#Headers],0))","v":{"v":2000,"d":"฿2,000.00"}},{"$f":"INDEX(แผนการตลาด[],MATCH(INDEX(ผลต่างการตลาด[],ROW()-ROW(ผลต่างการตลาด[[#Headers],[ธ.ค.]]),1),INDEX(แผนการตลาด[],,1),0),MATCH(ผลต่างการตลาด[[#Headers],[ธ.ค.]],แผนการตลาด[#Headers],0))-INDEX(ต้นทุนการตลาดจริง[],MATCH(INDEX(ผลต่างการตลาด[],ROW()-ROW(ผลต่างการตลาด[[#Headers],[ธ.ค.]]),1),INDEX(แผนการตลาด[],,1),0),MATCH(ผลต่างการตลาด[[#Headers],[ธ.ค.]],ต้นทุนการตลาดจริง[#Headers],0))","v":{"v":5000,"d":"฿5,000.00"}},{"$f":"SUM(ผลต่างการตลาด[[#This Row],[ม.ค.]:[ธ.ค.]])","v":{"v":18300,"d":"฿18,300.00"}}]
[null,"ค่าใช้จ่ายเบ็ดเตล็ด",{"$f":"INDEX(แผนการตลาด[],MATCH(INDEX(ผลต่างการตลาด[],ROW()-ROW(ผลต่างการตลาด[[#Headers],[ม.ค.]]),1),INDEX(แผนการตลาด[],,1),0),MATCH(ผลต่างการตลาด[[#Headers],[ม.ค.]],แผนการตลาด[#Headers],0))-INDEX(ต้นทุนการตลาดจริง[],MATCH(INDEX(ผลต่างการตลาด[],ROW()-ROW(ผลต่างการตลาด[[#Headers],[ม.ค.]]),1),INDEX(แผนการตลาด[],,1),0),MATCH(ผลต่างการตลาด[[#Headers],[ม.ค.]],ต้นทุนการตลาดจริง[#Headers],0))","v":{"v":55,"d":"฿55.00"}},{"$f":"INDEX(แผนการตลาด[],MATCH(INDEX(ผลต่างการตลาด[],ROW()-ROW(ผลต่างการตลาด[[#Headers],[ก.พ.]]),1),INDEX(แผนการตลาด[],,1),0),MATCH(ผลต่างการตลาด[[#Headers],[ก.พ.]],แผนการตลาด[#Headers],0))-INDEX(ต้นทุนการตลาดจริง[],MATCH(INDEX(ผลต่างการตลาด[],ROW()-ROW(ผลต่างการตลาด[[#Headers],[ก.พ.]]),1),INDEX(แผนการตลาด[],,1),0),MATCH(ผลต่างการตลาด[[#Headers],[ก.พ.]],ต้นทุนการตลาดจริง[#Headers],0))","v":{"v":44,"d":"฿44.00"}},{"$f":"INDEX(แผนการตลาด[],MATCH(INDEX(ผลต่างการตลาด[],ROW()-ROW(ผลต่างการตลาด[[#Headers],[มี.ค.]]),1),INDEX(แผนการตลาด[],,1),0),MATCH(ผลต่างการตลาด[[#Headers],[มี.ค.]],แผนการตลาด[#Headers],0))-INDEX(ต้นทุนการตลาดจริง[],MATCH(INDEX(ผลต่างการตลาด[],ROW()-ROW(ผลต่างการตลาด[[#Headers],[มี.ค.]]),1),INDEX(แผนการตลาด[],,1),0),MATCH(ผลต่างการตลาด[[#Headers],[มี.ค.]],ต้นทุนการตลาดจริง[#Headers],0))","v":{"v":77,"d":"฿77.00"}},{"$f":"INDEX(แผนการตลาด[],MATCH(INDEX(ผลต่างการตลาด[],ROW()-ROW(ผลต่างการตลาด[[#Headers],[เม.ย.]]),1),INDEX(แผนการตลาด[],,1),0),MATCH(ผลต่างการตลาด[[#Headers],[เม.ย.]],แผนการตลาด[#Headers],0))-INDEX(ต้นทุนการตลาดจริง[],MATCH(INDEX(ผลต่างการตลาด[],ROW()-ROW(ผลต่างการตลาด[[#Headers],[เม.ย.]]),1),INDEX(แผนการตลาด[],,1),0),MATCH(ผลต่างการตลาด[[#Headers],[เม.ย.]],ต้นทุนการตลาดจริง[#Headers],0))","v":{"v":-23,"d":"-฿23.00"}},{"$f":"INDEX(แผนการตลาด[],MATCH(INDEX(ผลต่างการตลาด[],ROW()-ROW(ผลต่างการตลาด[[#Headers],[พ.ค.]]),1),INDEX(แผนการตลาด[],,1),0),MATCH(ผลต่างการตลาด[[#Headers],[พ.ค.]],แผนการตลาด[#Headers],0))-INDEX(ต้นทุนการตลาดจริง[],MATCH(INDEX(ผลต่างการตลาด[],ROW()-ROW(ผลต่างการตลาด[[#Headers],[พ.ค.]]),1),INDEX(แผนการตลาด[],,1),0),MATCH(ผลต่างการตลาด[[#Headers],[พ.ค.]],ต้นทุนการตลาดจริง[#Headers],0))","v":{"v":13,"d":"฿13.00"}},{"$f":"INDEX(แผนการตลาด[],MATCH(INDEX(ผลต่างการตลาด[],ROW()-ROW(ผลต่างการตลาด[[#Headers],[มิ.ย.]]),1),INDEX(แผนการตลาด[],,1),0),MATCH(ผลต่างการตลาด[[#Headers],[มิ.ย.]],แผนการตลาด[#Headers],0))-INDEX(ต้นทุนการตลาดจริง[],MATCH(INDEX(ผลต่างการตลาด[],ROW()-ROW(ผลต่างการตลาด[[#Headers],[มิ.ย.]]),1),INDEX(แผนการตลาด[],,1),0),MATCH(ผลต่างการตลาด[[#Headers],[มิ.ย.]],ต้นทุนการตลาดจริง[#Headers],0))","v":{"v":-45,"d":"-฿45.00"}},{"$f":"INDEX(แผนการตลาด[],MATCH(INDEX(ผลต่างการตลาด[],ROW()-ROW(ผลต่างการตลาด[[#Headers],[ก.ค.]]),1),INDEX(แผนการตลาด[],,1),0),MATCH(ผลต่างการตลาด[[#Headers],[ก.ค.]],แผนการตลาด[#Headers],0))-INDEX(ต้นทุนการตลาดจริง[],MATCH(INDEX(ผลต่างการตลาด[],ROW()-ROW(ผลต่างการตลาด[[#Headers],[ก.ค.]]),1),INDEX(แผนการตลาด[],,1),0),MATCH(ผลต่างการตลาด[[#Headers],[ก.ค.]],ต้นทุนการตลาดจริง[#Headers],0))","v":{"v":200,"d":"฿200.00"}},{"$f":"INDEX(แผนการตลาด[],MATCH(INDEX(ผลต่างการตลาด[],ROW()-ROW(ผลต่างการตลาด[[#Headers],[ส.ค.]]),1),INDEX(แผนการตลาด[],,1),0),MATCH(ผลต่างการตลาด[[#Headers],[ส.ค.]],แผนการตลาด[#Headers],0))-INDEX(ต้นทุนการตลาดจริง[],MATCH(INDEX(ผลต่างการตลาด[],ROW()-ROW(ผลต่างการตลาด[[#Headers],[ส.ค.]]),1),INDEX(แผนการตลาด[],,1),0),MATCH(ผลต่างการตลาด[[#Headers],[ส.ค.]],ต้นทุนการตลาดจริง[#Headers],0))","v":{"v":200,"d":"฿200.00"}},{"$f":"INDEX(แผนการตลาด[],MATCH(INDEX(ผลต่างการตลาด[],ROW()-ROW(ผลต่างการตลาด[[#Headers],[ก.ย.]]),1),INDEX(แผนการตลาด[],,1),0),MATCH(ผลต่างการตลาด[[#Headers],[ก.ย.]],แผนการตลาด[#Headers],0))-INDEX(ต้นทุนการตลาดจริง[],MATCH(INDEX(ผลต่างการตลาด[],ROW()-ROW(ผลต่างการตลาด[[#Headers],[ก.ย.]]),1),INDEX(แผนการตลาด[],,1),0),MATCH(ผลต่างการตลาด[[#Headers],[ก.ย.]],ต้นทุนการตลาดจริง[#Headers],0))","v":{"v":200,"d":"฿200.00"}},{"$f":"INDEX(แผนการตลาด[],MATCH(INDEX(ผลต่างการตลาด[],ROW()-ROW(ผลต่างการตลาด[[#Headers],[ต.ค.]]),1),INDEX(แผนการตลาด[],,1),0),MATCH(ผลต่างการตลาด[[#Headers],[ต.ค.]],แผนการตลาด[#Headers],0))-INDEX(ต้นทุนการตลาดจริง[],MATCH(INDEX(ผลต่างการตลาด[],ROW()-ROW(ผลต่างการตลาด[[#Headers],[ต.ค.]]),1),INDEX(แผนการตลาด[],,1),0),MATCH(ผลต่างการตลาด[[#Headers],[ต.ค.]],ต้นทุนการตลาดจริง[#Headers],0))","v":{"v":200,"d":"฿200.00"}},{"$f":"INDEX(แผนการตลาด[],MATCH(INDEX(ผลต่างการตลาด[],ROW()-ROW(ผลต่างการตลาด[[#Headers],[พ.ย.]]),1),INDEX(แผนการตลาด[],,1),0),MATCH(ผลต่างการตลาด[[#Headers],[พ.ย.]],แผนการตลาด[#Headers],0))-INDEX(ต้นทุนการตลาดจริง[],MATCH(INDEX(ผลต่างการตลาด[],ROW()-ROW(ผลต่างการตลาด[[#Headers],[พ.ย.]]),1),INDEX(แผนการตลาด[],,1),0),MATCH(ผลต่างการตลาด[[#Headers],[พ.ย.]],ต้นทุนการตลาดจริง[#Headers],0))","v":{"v":200,"d":"฿200.00"}},{"$f":"INDEX(แผนการตลาด[],MATCH(INDEX(ผลต่างการตลาด[],ROW()-ROW(ผลต่างการตลาด[[#Headers],[ธ.ค.]]),1),INDEX(แผนการตลาด[],,1),0),MATCH(ผลต่างการตลาด[[#Headers],[ธ.ค.]],แผนการตลาด[#Headers],0))-INDEX(ต้นทุนการตลาดจริง[],MATCH(INDEX(ผลต่างการตลาด[],ROW()-ROW(ผลต่างการตลาด[[#Headers],[ธ.ค.]]),1),INDEX(แผนการตลาด[],,1),0),MATCH(ผลต่างการตลาด[[#Headers],[ธ.ค.]],ต้นทุนการตลาดจริง[#Headers],0))","v":{"v":200,"d":"฿200.00"}},{"$f":"SUM(ผลต่างการตลาด[[#This Row],[ม.ค.]:[ธ.ค.]])","v":{"v":1321,"d":"฿1,321.00"}}]
[null,"ผลรวมย่อย",{"$f":"SUBTOTAL(109,ผลต่างการตลาด[ม.ค.])","v":{"v":555,"d":"฿555.00"}},{"$f":"SUBTOTAL(109,ผลต่างการตลาด[ก.พ.])","v":{"v":-456,"d":"-฿456.00"}},{"$f":"SUBTOTAL(109,ผลต่างการตลาด[มี.ค.])","v":{"v":-23,"d":"-฿23.00"}},{"$f":"SUBTOTAL(109,ผลต่างการตลาด[เม.ย.])","v":{"v":-123,"d":"-฿123.00"}},{"$f":"SUBTOTAL(109,ผลต่างการตลาด[พ.ค.])","v":{"v":113,"d":"฿113.00"}},{"$f":"SUBTOTAL(109,ผลต่างการตลาด[มิ.ย.])","v":{"v":-825,"d":"-฿825.00"}},{"$f":"SUBTOTAL(109,ผลต่างการตลาด[ก.ค.])","v":{"v":8100,"d":"฿8,100.00"}},{"$f":"SUBTOTAL(109,ผลต่างการตลาด[ส.ค.])","v":{"v":6100,"d":"฿6,100.00"}},{"$f":"SUBTOTAL(109,ผลต่างการตลาด[ก.ย.])","v":{"v":3100,"d":"฿3,100.00"}},{"$f":"SUBTOTAL(109,ผลต่างการตลาด[ต.ค.])","v":{"v":8100,"d":"฿8,100.00"}},{"$f":"SUBTOTAL(109,ผลต่างการตลาด[พ.ย.])","v":{"v":3100,"d":"฿3,100.00"}},{"$f":"SUBTOTAL(109,ผลต่างการตลาด[ธ.ค.])","v":{"v":6900,"d":"฿6,900.00"}},{"$f":"SUBTOTAL(109,ผลต่างการตลาด[ปี])","v":{"v":34641,"d":"฿34,641.00"}}]
[]
[null,"การฝึกอบรม/เดินทาง","ม.ค.","ก.พ.","มี.ค.","เม.ย.","พ.ค.","มิ.ย.","ก.ค.","ส.ค.","ก.ย.","ต.ค.","พ.ย.","ธ.ค.","ปี"]
[null,"ชั้นเรียนการฝึกอบรม",{"$f":"INDEX(แผนการฝึกอบรมและการเดินทาง[],MATCH(INDEX(ผลต่างการฝึกอบรมและการเดินทาง[],ROW()-ROW(ผลต่างการฝึกอบรมและการเดินทาง[[#Headers],[ม.ค.]]),1),INDEX(แผนการฝึกอบรมและการเดินทาง[],,1),0),MATCH(ผลต่างการฝึกอบรมและการเดินทาง[[#Headers],[ม.ค.]],แผนการฝึกอบรมและการเดินทาง[#Headers],0))-INDEX(ต้นทุนการฝึกอบรมและการเดินทางจริง[],MATCH(INDEX(ผลต่างการฝึกอบรมและการเดินทาง[],ROW()-ROW(ผลต่างการฝึกอบรมและการเดินทาง[[#Headers],[ม.ค.]]),1),INDEX(แผนการฝึกอบรมและการเดินทาง[],,1),0),MATCH(ผลต่างการฝึกอบรมและการเดินทาง[[#Headers],[ม.ค.]],ต้นทุนการฝึกอบรมและการเดินทางจริง[#Headers],0))","v":{"v":400,"d":"฿400.00"}},{"$f":"INDEX(แผนการฝึกอบรมและการเดินทาง[],MATCH(INDEX(ผลต่างการฝึกอบรมและการเดินทาง[],ROW()-ROW(ผลต่างการฝึกอบรมและการเดินทาง[[#Headers],[ก.พ.]]),1),INDEX(แผนการฝึกอบรมและการเดินทาง[],,1),0),MATCH(ผลต่างการฝึกอบรมและการเดินทาง[[#Headers],[ก.พ.]],แผนการฝึกอบรมและการเดินทาง[#Headers],0))-INDEX(ต้นทุนการฝึกอบรมและการเดินทางจริง[],MATCH(INDEX(ผลต่างการฝึกอบรมและการเดินทาง[],ROW()-ROW(ผลต่างการฝึกอบรมและการเดินทาง[[#Headers],[ก.พ.]]),1),INDEX(แผนการฝึกอบรมและการเดินทาง[],,1),0),MATCH(ผลต่างการฝึกอบรมและการเดินทาง[[#Headers],[ก.พ.]],ต้นทุนการฝึกอบรมและการเดินทางจริง[#Headers],0))","v":{"v":-400,"d":"-฿400.00"}},{"$f":"INDEX(แผนการฝึกอบรมและการเดินทาง[],MATCH(INDEX(ผลต่างการฝึกอบรมและการเดินทาง[],ROW()-ROW(ผลต่างการฝึกอบรมและการเดินทาง[[#Headers],[มี.ค.]]),1),INDEX(แผนการฝึกอบรมและการเดินทาง[],,1),0),MATCH(ผลต่างการฝึกอบรมและการเดินทาง[[#Headers],[มี.ค.]],แผนการฝึกอบรมและการเดินทาง[#Headers],0))-INDEX(ต้นทุนการฝึกอบรมและการเดินทางจริง[],MATCH(INDEX(ผลต่างการฝึกอบรมและการเดินทาง[],ROW()-ROW(ผลต่างการฝึกอบรมและการเดินทาง[[#Headers],[มี.ค.]]),1),INDEX(แผนการฝึกอบรมและการเดินทาง[],,1),0),MATCH(ผลต่างการฝึกอบรมและการเดินทาง[[#Headers],[มี.ค.]],ต้นทุนการฝึกอบรมและการเดินทางจริง[#Headers],0))","v":{"v":600,"d":"฿600.00"}},{"$f":"INDEX(แผนการฝึกอบรมและการเดินทาง[],MATCH(INDEX(ผลต่างการฝึกอบรมและการเดินทาง[],ROW()-ROW(ผลต่างการฝึกอบรมและการเดินทาง[[#Headers],[เม.ย.]]),1),INDEX(แผนการฝึกอบรมและการเดินทาง[],,1),0),MATCH(ผลต่างการฝึกอบรมและการเดินทาง[[#Headers],[เม.ย.]],แผนการฝึกอบรมและการเดินทาง[#Headers],0))-INDEX(ต้นทุนการฝึกอบรมและการเดินทางจริง[],MATCH(INDEX(ผลต่างการฝึกอบรมและการเดินทาง[],ROW()-ROW(ผลต่างการฝึกอบรมและการเดินทาง[[#Headers],[เม.ย.]]),1),INDEX(แผนการฝึกอบรมและการเดินทาง[],,1),0),MATCH(ผลต่างการฝึกอบรมและการเดินทาง[[#Headers],[เม.ย.]],ต้นทุนการฝึกอบรมและการเดินทางจริง[#Headers],0))","v":{"v":400,"d":"฿400.00"}},{"$f":"INDEX(แผนการฝึกอบรมและการเดินทาง[],MATCH(INDEX(ผลต่างการฝึกอบรมและการเดินทาง[],ROW()-ROW(ผลต่างการฝึกอบรมและการเดินทาง[[#Headers],[พ.ค.]]),1),INDEX(แผนการฝึกอบรมและการเดินทาง[],,1),0),MATCH(ผลต่างการฝึกอบรมและการเดินทาง[[#Headers],[พ.ค.]],แผนการฝึกอบรมและการเดินทาง[#Headers],0))-INDEX(ต้นทุนการฝึกอบรมและการเดินทางจริง[],MATCH(INDEX(ผลต่างการฝึกอบรมและการเดินทาง[],ROW()-ROW(ผลต่างการฝึกอบรมและการเดินทาง[[#Headers],[พ.ค.]]),1),INDEX(แผนการฝึกอบรมและการเดินทาง[],,1),0),MATCH(ผลต่างการฝึกอบรมและการเดินทาง[[#Headers],[พ.ค.]],ต้นทุนการฝึกอบรมและการเดินทางจริง[#Headers],0))","v":{"v":800,"d":"฿800.00"}},{"$f":"INDEX(แผนการฝึกอบรมและการเดินทาง[],MATCH(INDEX(ผลต่างการฝึกอบรมและการเดินทาง[],ROW()-ROW(ผลต่างการฝึกอบรมและการเดินทาง[[#Headers],[มิ.ย.]]),1),INDEX(แผนการฝึกอบรมและการเดินทาง[],,1),0),MATCH(ผลต่างการฝึกอบรมและการเดินทาง[[#Headers],[มิ.ย.]],แผนการฝึกอบรมและการเดินทาง[#Headers],0))-INDEX(ต้นทุนการฝึกอบรมและการเดินทางจริง[],MATCH(INDEX(ผลต่างการฝึกอบรมและการเดินทาง[],ROW()-ROW(ผลต่างการฝึกอบรมและการเดินทาง[[#Headers],[มิ.ย.]]),1),INDEX(แผนการฝึกอบรมและการเดินทาง[],,1),0),MATCH(ผลต่างการฝึกอบรมและการเดินทาง[[#Headers],[มิ.ย.]],ต้นทุนการฝึกอบรมและการเดินทางจริง[#Headers],0))","v":{"v":-800,"d":"-฿800.00"}},{"$f":"INDEX(แผนการฝึกอบรมและการเดินทาง[],MATCH(INDEX(ผลต่างการฝึกอบรมและการเดินทาง[],ROW()-ROW(ผลต่างการฝึกอบรมและการเดินทาง[[#Headers],[ก.ค.]]),1),INDEX(แผนการฝึกอบรมและการเดินทาง[],,1),0),MATCH(ผลต่างการฝึกอบรมและการเดินทาง[[#Headers],[ก.ค.]],แผนการฝึกอบรมและการเดินทาง[#Headers],0))-INDEX(ต้นทุนการฝึกอบรมและการเดินทางจริง[],MATCH(INDEX(ผลต่างการฝึกอบรมและการเดินทาง[],ROW()-ROW(ผลต่างการฝึกอบรมและการเดินทาง[[#Headers],[ก.ค.]]),1),INDEX(แผนการฝึกอบรมและการเดินทาง[],,1),0),MATCH(ผลต่างการฝึกอบรมและการเดินทาง[[#Headers],[ก.ค.]],ต้นทุนการฝึกอบรมและการเดินทางจริง[#Headers],0))","v":{"v":2000,"d":"฿2,000.00"}},{"$f":"INDEX(แผนการฝึกอบรมและการเดินทาง[],MATCH(INDEX(ผลต่างการฝึกอบรมและการเดินทาง[],ROW()-ROW(ผลต่างการฝึกอบรมและการเดินทาง[[#Headers],[ส.ค.]]),1),INDEX(แผนการฝึกอบรมและการเดินทาง[],,1),0),MATCH(ผลต่างการฝึกอบรมและการเดินทาง[[#Headers],[ส.ค.]],แผนการฝึกอบรมและการเดินทาง[#Headers],0))-INDEX(ต้นทุนการฝึกอบรมและการเดินทางจริง[],MATCH(INDEX(ผลต่างการฝึกอบรมและการเดินทาง[],ROW()-ROW(ผลต่างการฝึกอบรมและการเดินทาง[[#Headers],[ส.ค.]]),1),INDEX(แผนการฝึกอบรมและการเดินทาง[],,1),0),MATCH(ผลต่างการฝึกอบรมและการเดินทาง[[#Headers],[ส.ค.]],ต้นทุนการฝึกอบรมและการเดินทางจริง[#Headers],0))","v":{"v":2000,"d":"฿2,000.00"}},{"$f":"INDEX(แผนการฝึกอบรมและการเดินทาง[],MATCH(INDEX(ผลต่างการฝึกอบรมและการเดินทาง[],ROW()-ROW(ผลต่างการฝึกอบรมและการเดินทาง[[#Headers],[ก.ย.]]),1),INDEX(แผนการฝึกอบรมและการเดินทาง[],,1),0),MATCH(ผลต่างการฝึกอบรมและการเดินทาง[[#Headers],[ก.ย.]],แผนการฝึกอบรมและการเดินทาง[#Headers],0))-INDEX(ต้นทุนการฝึกอบรมและการเดินทางจริง[],MATCH(INDEX(ผลต่างการฝึกอบรมและการเดินทาง[],ROW()-ROW(ผลต่างการฝึกอบรมและการเดินทาง[[#Headers],[ก.ย.]]),1),INDEX(แผนการฝึกอบรมและการเดินทาง[],,1),0),MATCH(ผลต่างการฝึกอบรมและการเดินทาง[[#Headers],[ก.ย.]],ต้นทุนการฝึกอบรมและการเดินทางจริง[#Headers],0))","v":{"v":2000,"d":"฿2,000.00"}},{"$f":"INDEX(แผนการฝึกอบรมและการเดินทาง[],MATCH(INDEX(ผลต่างการฝึกอบรมและการเดินทาง[],ROW()-ROW(ผลต่างการฝึกอบรมและการเดินทาง[[#Headers],[ต.ค.]]),1),INDEX(แผนการฝึกอบรมและการเดินทาง[],,1),0),MATCH(ผลต่างการฝึกอบรมและการเดินทาง[[#Headers],[ต.ค.]],แผนการฝึกอบรมและการเดินทาง[#Headers],0))-INDEX(ต้นทุนการฝึกอบรมและการเดินทางจริง[],MATCH(INDEX(ผลต่างการฝึกอบรมและการเดินทาง[],ROW()-ROW(ผลต่างการฝึกอบรมและการเดินทาง[[#Headers],[ต.ค.]]),1),INDEX(แผนการฝึกอบรมและการเดินทาง[],,1),0),MATCH(ผลต่างการฝึกอบรมและการเดินทาง[[#Headers],[ต.ค.]],ต้นทุนการฝึกอบรมและการเดินทางจริง[#Headers],0))","v":{"v":2000,"d":"฿2,000.00"}},{"$f":"INDEX(แผนการฝึกอบรมและการเดินทาง[],MATCH(INDEX(ผลต่างการฝึกอบรมและการเดินทาง[],ROW()-ROW(ผลต่างการฝึกอบรมและการเดินทาง[[#Headers],[พ.ย.]]),1),INDEX(แผนการฝึกอบรมและการเดินทาง[],,1),0),MATCH(ผลต่างการฝึกอบรมและการเดินทาง[[#Headers],[พ.ย.]],แผนการฝึกอบรมและการเดินทาง[#Headers],0))-INDEX(ต้นทุนการฝึกอบรมและการเดินทางจริง[],MATCH(INDEX(ผลต่างการฝึกอบรมและการเดินทาง[],ROW()-ROW(ผลต่างการฝึกอบรมและการเดินทาง[[#Headers],[พ.ย.]]),1),INDEX(แผนการฝึกอบรมและการเดินทาง[],,1),0),MATCH(ผลต่างการฝึกอบรมและการเดินทาง[[#Headers],[พ.ย.]],ต้นทุนการฝึกอบรมและการเดินทางจริง[#Headers],0))","v":{"v":2000,"d":"฿2,000.00"}},{"$f":"INDEX(แผนการฝึกอบรมและการเดินทาง[],MATCH(INDEX(ผลต่างการฝึกอบรมและการเดินทาง[],ROW()-ROW(ผลต่างการฝึกอบรมและการเดินทาง[[#Headers],[ธ.ค.]]),1),INDEX(แผนการฝึกอบรมและการเดินทาง[],,1),0),MATCH(ผลต่างการฝึกอบรมและการเดินทาง[[#Headers],[ธ.ค.]],แผนการฝึกอบรมและการเดินทาง[#Headers],0))-INDEX(ต้นทุนการฝึกอบรมและการเดินทางจริง[],MATCH(INDEX(ผลต่างการฝึกอบรมและการเดินทาง[],ROW()-ROW(ผลต่างการฝึกอบรมและการเดินทาง[[#Headers],[ธ.ค.]]),1),INDEX(แผนการฝึกอบรมและการเดินทาง[],,1),0),MATCH(ผลต่างการฝึกอบรมและการเดินทาง[[#Headers],[ธ.ค.]],ต้นทุนการฝึกอบรมและการเดินทางจริง[#Headers],0))","v":{"v":2000,"d":"฿2,000.00"}},{"$f":"SUM(ผลต่างการฝึกอบรมและการเดินทาง[[#This Row],[ม.ค.]:[ธ.ค.]])","v":{"v":13000,"d":"฿13,000.00"}}]
[null,"ค่าเดินทางที่เกี่ยวข้องกับการฝึกอบรม",{"$f":"INDEX(แผนการฝึกอบรมและการเดินทาง[],MATCH(INDEX(ผลต่างการฝึกอบรมและการเดินทาง[],ROW()-ROW(ผลต่างการฝึกอบรมและการเดินทาง[[#Headers],[ม.ค.]]),1),INDEX(แผนการฝึกอบรมและการเดินทาง[],,1),0),MATCH(ผลต่างการฝึกอบรมและการเดินทาง[[#Headers],[ม.ค.]],แผนการฝึกอบรมและการเดินทาง[#Headers],0))-INDEX(ต้นทุนการฝึกอบรมและการเดินทางจริง[],MATCH(INDEX(ผลต่างการฝึกอบรมและการเดินทาง[],ROW()-ROW(ผลต่างการฝึกอบรมและการเดินทาง[[#Headers],[ม.ค.]]),1),INDEX(แผนการฝึกอบรมและการเดินทาง[],,1),0),MATCH(ผลต่างการฝึกอบรมและการเดินทาง[[#Headers],[ม.ค.]],ต้นทุนการฝึกอบรมและการเดินทางจริง[#Headers],0))","v":{"v":800,"d":"฿800.00"}},{"$f":"INDEX(แผนการฝึกอบรมและการเดินทาง[],MATCH(INDEX(ผลต่างการฝึกอบรมและการเดินทาง[],ROW()-ROW(ผลต่างการฝึกอบรมและการเดินทาง[[#Headers],[ก.พ.]]),1),INDEX(แผนการฝึกอบรมและการเดินทาง[],,1),0),MATCH(ผลต่างการฝึกอบรมและการเดินทาง[[#Headers],[ก.พ.]],แผนการฝึกอบรมและการเดินทาง[#Headers],0))-INDEX(ต้นทุนการฝึกอบรมและการเดินทางจริง[],MATCH(INDEX(ผลต่างการฝึกอบรมและการเดินทาง[],ROW()-ROW(ผลต่างการฝึกอบรมและการเดินทาง[[#Headers],[ก.พ.]]),1),INDEX(แผนการฝึกอบรมและการเดินทาง[],,1),0),MATCH(ผลต่างการฝึกอบรมและการเดินทาง[[#Headers],[ก.พ.]],ต้นทุนการฝึกอบรมและการเดินทางจริง[#Headers],0))","v":{"v":-200,"d":"-฿200.00"}},{"$f":"INDEX(แผนการฝึกอบรมและการเดินทาง[],MATCH(INDEX(ผลต่างการฝึกอบรมและการเดินทาง[],ROW()-ROW(ผลต่างการฝึกอบรมและการเดินทาง[[#Headers],[มี.ค.]]),1),INDEX(แผนการฝึกอบรมและการเดินทาง[],,1),0),MATCH(ผลต่างการฝึกอบรมและการเดินทาง[[#Headers],[มี.ค.]],แผนการฝึกอบรมและการเดินทาง[#Headers],0))-INDEX(ต้นทุนการฝึกอบรมและการเดินทางจริง[],MATCH(INDEX(ผลต่างการฝึกอบรมและการเดินทาง[],ROW()-ROW(ผลต่างการฝึกอบรมและการเดินทาง[[#Headers],[มี.ค.]]),1),INDEX(แผนการฝึกอบรมและการเดินทาง[],,1),0),MATCH(ผลต่างการฝึกอบรมและการเดินทาง[[#Headers],[มี.ค.]],ต้นทุนการฝึกอบรมและการเดินทางจริง[#Headers],0))","v":{"v":600,"d":"฿600.00"}},{"$f":"INDEX(แผนการฝึกอบรมและการเดินทาง[],MATCH(INDEX(ผลต่างการฝึกอบรมและการเดินทาง[],ROW()-ROW(ผลต่างการฝึกอบรมและการเดินทาง[[#Headers],[เม.ย.]]),1),INDEX(แผนการฝึกอบรมและการเดินทาง[],,1),0),MATCH(ผลต่างการฝึกอบรมและการเดินทาง[[#Headers],[เม.ย.]],แผนการฝึกอบรมและการเดินทาง[#Headers],0))-INDEX(ต้นทุนการฝึกอบรมและการเดินทางจริง[],MATCH(INDEX(ผลต่างการฝึกอบรมและการเดินทาง[],ROW()-ROW(ผลต่างการฝึกอบรมและการเดินทาง[[#Headers],[เม.ย.]]),1),INDEX(แผนการฝึกอบรมและการเดินทาง[],,1),0),MATCH(ผลต่างการฝึกอบรมและการเดินทาง[[#Headers],[เม.ย.]],ต้นทุนการฝึกอบรมและการเดินทางจริง[#Headers],0))","v":{"v":800,"d":"฿800.00"}},{"$f":"INDEX(แผนการฝึกอบรมและการเดินทาง[],MATCH(INDEX(ผลต่างการฝึกอบรมและการเดินทาง[],ROW()-ROW(ผลต่างการฝึกอบรมและการเดินทาง[[#Headers],[พ.ค.]]),1),INDEX(แผนการฝึกอบรมและการเดินทาง[],,1),0),MATCH(ผลต่างการฝึกอบรมและการเดินทาง[[#Headers],[พ.ค.]],แผนการฝึกอบรมและการเดินทาง[#Headers],0))-INDEX(ต้นทุนการฝึกอบรมและการเดินทางจริง[],MATCH(INDEX(ผลต่างการฝึกอบรมและการเดินทาง[],ROW()-ROW(ผลต่างการฝึกอบรมและการเดินทาง[[#Headers],[พ.ค.]]),1),INDEX(แผนการฝึกอบรมและการเดินทาง[],,1),0),MATCH(ผลต่างการฝึกอบรมและการเดินทาง[[#Headers],[พ.ค.]],ต้นทุนการฝึกอบรมและการเดินทางจริง[#Headers],0))","v":{"v":1200,"d":"฿1,200.00"}},{"$f":"INDEX(แผนการฝึกอบรมและการเดินทาง[],MATCH(INDEX(ผลต่างการฝึกอบรมและการเดินทาง[],ROW()-ROW(ผลต่างการฝึกอบรมและการเดินทาง[[#Headers],[มิ.ย.]]),1),INDEX(แผนการฝึกอบรมและการเดินทาง[],,1),0),MATCH(ผลต่างการฝึกอบรมและการเดินทาง[[#Headers],[มิ.ย.]],แผนการฝึกอบรมและการเดินทาง[#Headers],0))-INDEX(ต้นทุนการฝึกอบรมและการเดินทางจริง[],MATCH(INDEX(ผลต่างการฝึกอบรมและการเดินทาง[],ROW()-ROW(ผลต่างการฝึกอบรมและการเดินทาง[[#Headers],[มิ.ย.]]),1),INDEX(แผนการฝึกอบรมและการเดินทาง[],,1),0),MATCH(ผลต่างการฝึกอบรมและการเดินทาง[[#Headers],[มิ.ย.]],ต้นทุนการฝึกอบรมและการเดินทางจริง[#Headers],0))","v":{"v":-1500,"d":"-฿1,500.00"}},{"$f":"INDEX(แผนการฝึกอบรมและการเดินทาง[],MATCH(INDEX(ผลต่างการฝึกอบรมและการเดินทาง[],ROW()-ROW(ผลต่างการฝึกอบรมและการเดินทาง[[#Headers],[ก.ค.]]),1),INDEX(แผนการฝึกอบรมและการเดินทาง[],,1),0),MATCH(ผลต่างการฝึกอบรมและการเดินทาง[[#Headers],[ก.ค.]],แผนการฝึกอบรมและการเดินทาง[#Headers],0))-INDEX(ต้นทุนการฝึกอบรมและการเดินทางจริง[],MATCH(INDEX(ผลต่างการฝึกอบรมและการเดินทาง[],ROW()-ROW(ผลต่างการฝึกอบรมและการเดินทาง[[#Headers],[ก.ค.]]),1),INDEX(แผนการฝึกอบรมและการเดินทาง[],,1),0),MATCH(ผลต่างการฝึกอบรมและการเดินทาง[[#Headers],[ก.ค.]],ต้นทุนการฝึกอบรมและการเดินทางจริง[#Headers],0))","v":{"v":2000,"d":"฿2,000.00"}},{"$f":"INDEX(แผนการฝึกอบรมและการเดินทาง[],MATCH(INDEX(ผลต่างการฝึกอบรมและการเดินทาง[],ROW()-ROW(ผลต่างการฝึกอบรมและการเดินทาง[[#Headers],[ส.ค.]]),1),INDEX(แผนการฝึกอบรมและการเดินทาง[],,1),0),MATCH(ผลต่างการฝึกอบรมและการเดินทาง[[#Headers],[ส.ค.]],แผนการฝึกอบรมและการเดินทาง[#Headers],0))-INDEX(ต้นทุนการฝึกอบรมและการเดินทางจริง[],MATCH(INDEX(ผลต่างการฝึกอบรมและการเดินทาง[],ROW()-ROW(ผลต่างการฝึกอบรมและการเดินทาง[[#Headers],[ส.ค.]]),1),INDEX(แผนการฝึกอบรมและการเดินทาง[],,1),0),MATCH(ผลต่างการฝึกอบรมและการเดินทาง[[#Headers],[ส.ค.]],ต้นทุนการฝึกอบรมและการเดินทางจริง[#Headers],0))","v":{"v":2000,"d":"฿2,000.00"}},{"$f":"INDEX(แผนการฝึกอบรมและการเดินทาง[],MATCH(INDEX(ผลต่างการฝึกอบรมและการเดินทาง[],ROW()-ROW(ผลต่างการฝึกอบรมและการเดินทาง[[#Headers],[ก.ย.]]),1),INDEX(แผนการฝึกอบรมและการเดินทาง[],,1),0),MATCH(ผลต่างการฝึกอบรมและการเดินทาง[[#Headers],[ก.ย.]],แผนการฝึกอบรมและการเดินทาง[#Headers],0))-INDEX(ต้นทุนการฝึกอบรมและการเดินทางจริง[],MATCH(INDEX(ผลต่างการฝึกอบรมและการเดินทาง[],ROW()-ROW(ผลต่างการฝึกอบรมและการเดินทาง[[#Headers],[ก.ย.]]),1),INDEX(แผนการฝึกอบรมและการเดินทาง[],,1),0),MATCH(ผลต่างการฝึกอบรมและการเดินทาง[[#Headers],[ก.ย.]],ต้นทุนการฝึกอบรมและการเดินทางจริง[#Headers],0))","v":{"v":2000,"d":"฿2,000.00"}},{"$f":"INDEX(แผนการฝึกอบรมและการเดินทาง[],MATCH(INDEX(ผลต่างการฝึกอบรมและการเดินทาง[],ROW()-ROW(ผลต่างการฝึกอบรมและการเดินทาง[[#Headers],[ต.ค.]]),1),INDEX(แผนการฝึกอบรมและการเดินทาง[],,1),0),MATCH(ผลต่างการฝึกอบรมและการเดินทาง[[#Headers],[ต.ค.]],แผนการฝึกอบรมและการเดินทาง[#Headers],0))-INDEX(ต้นทุนการฝึกอบรมและการเดินทางจริง[],MATCH(INDEX(ผลต่างการฝึกอบรมและการเดินทาง[],ROW()-ROW(ผลต่างการฝึกอบรมและการเดินทาง[[#Headers],[ต.ค.]]),1),INDEX(แผนการฝึกอบรมและการเดินทาง[],,1),0),MATCH(ผลต่างการฝึกอบรมและการเดินทาง[[#Headers],[ต.ค.]],ต้นทุนการฝึกอบรมและการเดินทางจริง[#Headers],0))","v":{"v":2000,"d":"฿2,000.00"}},{"$f":"INDEX(แผนการฝึกอบรมและการเดินทาง[],MATCH(INDEX(ผลต่างการฝึกอบรมและการเดินทาง[],ROW()-ROW(ผลต่างการฝึกอบรมและการเดินทาง[[#Headers],[พ.ย.]]),1),INDEX(แผนการฝึกอบรมและการเดินทาง[],,1),0),MATCH(ผลต่างการฝึกอบรมและการเดินทาง[[#Headers],[พ.ย.]],แผนการฝึกอบรมและการเดินทาง[#Headers],0))-INDEX(ต้นทุนการฝึกอบรมและการเดินทางจริง[],MATCH(INDEX(ผลต่างการฝึกอบรมและการเดินทาง[],ROW()-ROW(ผลต่างการฝึกอบรมและการเดินทาง[[#Headers],[พ.ย.]]),1),INDEX(แผนการฝึกอบรมและการเดินทาง[],,1),0),MATCH(ผลต่างการฝึกอบรมและการเดินทาง[[#Headers],[พ.ย.]],ต้นทุนการฝึกอบรมและการเดินทางจริง[#Headers],0))","v":{"v":2000,"d":"฿2,000.00"}},{"$f":"INDEX(แผนการฝึกอบรมและการเดินทาง[],MATCH(INDEX(ผลต่างการฝึกอบรมและการเดินทาง[],ROW()-ROW(ผลต่างการฝึกอบรมและการเดินทาง[[#Headers],[ธ.ค.]]),1),INDEX(แผนการฝึกอบรมและการเดินทาง[],,1),0),MATCH(ผลต่างการฝึกอบรมและการเดินทาง[[#Headers],[ธ.ค.]],แผนการฝึกอบรมและการเดินทาง[#Headers],0))-INDEX(ต้นทุนการฝึกอบรมและการเดินทางจริง[],MATCH(INDEX(ผลต่างการฝึกอบรมและการเดินทาง[],ROW()-ROW(ผลต่างการฝึกอบรมและการเดินทาง[[#Headers],[ธ.ค.]]),1),INDEX(แผนการฝึกอบรมและการเดินทาง[],,1),0),MATCH(ผลต่างการฝึกอบรมและการเดินทาง[[#Headers],[ธ.ค.]],ต้นทุนการฝึกอบรมและการเดินทางจริง[#Headers],0))","v":{"v":2000,"d":"฿2,000.00"}},{"$f":"SUM(ผลต่างการฝึกอบรมและการเดินทาง[[#This Row],[ม.ค.]:[ธ.ค.]])","v":{"v":13700,"d":"฿13,700.00"}}]
[null,"ผลรวมย่อย",{"$f":"SUBTOTAL(109,ผลต่างการฝึกอบรมและการเดินทาง[ม.ค.])","v":{"v":1200,"d":"฿1,200.00"}},{"$f":"SUBTOTAL(109,ผลต่างการฝึกอบรมและการเดินทาง[ก.พ.])","v":{"v":-600,"d":"-฿600.00"}},{"$f":"SUBTOTAL(109,ผลต่างการฝึกอบรมและการเดินทาง[มี.ค.])","v":{"v":1200,"d":"฿1,200.00"}},{"$f":"SUBTOTAL(109,ผลต่างการฝึกอบรมและการเดินทาง[เม.ย.])","v":{"v":1200,"d":"฿1,200.00"}},{"$f":"SUBTOTAL(109,ผลต่างการฝึกอบรมและการเดินทาง[พ.ค.])","v":{"v":2000,"d":"฿2,000.00"}},{"$f":"SUBTOTAL(109,ผลต่างการฝึกอบรมและการเดินทาง[มิ.ย.])","v":{"v":-2300,"d":"-฿2,300.00"}},{"$f":"SUBTOTAL(109,ผลต่างการฝึกอบรมและการเดินทาง[ก.ค.])","v":{"v":4000,"d":"฿4,000.00"}},{"$f":"SUBTOTAL(109,ผลต่างการฝึกอบรมและการเดินทาง[ส.ค.])","v":{"v":4000,"d":"฿4,000.00"}},{"$f":"SUBTOTAL(109,ผลต่างการฝึกอบรมและการเดินทาง[ก.ย.])","v":{"v":4000,"d":"฿4,000.00"}},{"$f":"SUBTOTAL(109,ผลต่างการฝึกอบรมและการเดินทาง[ต.ค.])","v":{"v":4000,"d":"฿4,000.00"}},{"$f":"SUBTOTAL(109,ผลต่างการฝึกอบรมและการเดินทาง[พ.ย.])","v":{"v":4000,"d":"฿4,000.00"}},{"$f":"SUBTOTAL(109,ผลต่างการฝึกอบรมและการเดินทาง[ธ.ค.])","v":{"v":4000,"d":"฿4,000.00"}},{"$f":"SUBTOTAL(109,ผลต่างการฝึกอบรมและการเดินทาง[ปี])","v":{"v":26700,"d":"฿26,700.00"}}]
[]
[null,"ผลรวม","ม.ค.","ก.พ.","มี.ค.","เม.ย.","พ.ค.","มิ.ย.","ก.ค.","ส.ค.","ก.ย.","ต.ค.","พ.ย.","ธ.ค.","ปี"]
[null,"ค่าใช้จ่ายรายเดือนที่เกิดขึ้นจริง",{"$f":"ผลต่างการฝึกอบรมและการเดินทาง[[#Totals],[ม.ค.]]+ผลต่างการตลาด[[#Totals],[ม.ค.]]+ผลต่างสำนักงาน[[#Totals],[ม.ค.]]+ผลต่างพนักงาน[[#Totals],[ม.ค.]]","v":{"v":1738,"d":"฿1,738.00"}},{"$f":"ผลต่างการฝึกอบรมและการเดินทาง[[#Totals],[ก.พ.]]+ผลต่างการตลาด[[#Totals],[ก.พ.]]+ผลต่างสำนักงาน[[#Totals],[ก.พ.]]+ผลต่างพนักงาน[[#Totals],[ก.พ.]]","v":{"v":-984,"d":"-฿984.00"}},{"$f":"ผลต่างการฝึกอบรมและการเดินทาง[[#Totals],[มี.ค.]]+ผลต่างการตลาด[[#Totals],[มี.ค.]]+ผลต่างสำนักงาน[[#Totals],[มี.ค.]]+ผลต่างพนักงาน[[#Totals],[มี.ค.]]","v":{"v":1255,"d":"฿1,255.00"}},{"$f":"ผลต่างการฝึกอบรมและการเดินทาง[[#Totals],[เม.ย.]]+ผลต่างการตลาด[[#Totals],[เม.ย.]]+ผลต่างสำนักงาน[[#Totals],[เม.ย.]]+ผลต่างพนักงาน[[#Totals],[เม.ย.]]","v":{"v":301,"d":"฿301.00"}},{"$f":"ผลต่างการฝึกอบรมและการเดินทาง[[#Totals],[พ.ค.]]+ผลต่างการตลาด[[#Totals],[พ.ค.]]+ผลต่างสำนักงาน[[#Totals],[พ.ค.]]+ผลต่างพนักงาน[[#Totals],[พ.ค.]]","v":{"v":1440,"d":"฿1,440.00"}},{"$f":"ผลต่างการฝึกอบรมและการเดินทาง[[#Totals],[มิ.ย.]]+ผลต่างการตลาด[[#Totals],[มิ.ย.]]+ผลต่างสำนักงาน[[#Totals],[มิ.ย.]]+ผลต่างพนักงาน[[#Totals],[มิ.ย.]]","v":{"v":-3744,"d":"-฿3,744.00"}},{"$f":"ผลต่างการฝึกอบรมและการเดินทาง[[#Totals],[ก.ค.]]+ผลต่างการตลาด[[#Totals],[ก.ค.]]+ผลต่างสำนักงาน[[#Totals],[ก.ค.]]+ผลต่างพนักงาน[[#Totals],[ก.ค.]]","v":{"v":134695,"d":"฿134,695.00"}},{"$f":"ผลต่างการฝึกอบรมและการเดินทาง[[#Totals],[ส.ค.]]+ผลต่างการตลาด[[#Totals],[ส.ค.]]+ผลต่างสำนักงาน[[#Totals],[ส.ค.]]+ผลต่างพนักงาน[[#Totals],[ส.ค.]]","v":{"v":138918,"d":"฿138,918.00"}},{"$f":"ผลต่างการฝึกอบรมและการเดินทาง[[#Totals],[ก.ย.]]+ผลต่างการตลาด[[#Totals],[ก.ย.]]+ผลต่างสำนักงาน[[#Totals],[ก.ย.]]+ผลต่างพนักงาน[[#Totals],[ก.ย.]]","v":{"v":135918,"d":"฿135,918.00"}},{"$f":"ผลต่างการฝึกอบรมและการเดินทาง[[#Totals],[ต.ค.]]+ผลต่างการตลาด[[#Totals],[ต.ค.]]+ผลต่างสำนักงาน[[#Totals],[ต.ค.]]+ผลต่างพนักงาน[[#Totals],[ต.ค.]]","v":{"v":140918,"d":"฿140,918.00"}},{"$f":"ผลต่างการฝึกอบรมและการเดินทาง[[#Totals],[พ.ย.]]+ผลต่างการตลาด[[#Totals],[พ.ย.]]+ผลต่างสำนักงาน[[#Totals],[พ.ย.]]+ผลต่างพนักงาน[[#Totals],[พ.ย.]]","v":{"v":136218,"d":"฿136,218.00"}},{"$f":"ผลต่างการฝึกอบรมและการเดินทาง[[#Totals],[ธ.ค.]]+ผลต่างการตลาด[[#Totals],[ธ.ค.]]+ผลต่างสำนักงาน[[#Totals],[ธ.ค.]]+ผลต่างพนักงาน[[#Totals],[ธ.ค.]]","v":{"v":140018,"d":"฿140,018.00"}},{"$f":"ผลต่างการฝึกอบรมและการเดินทาง[[#Totals],[ปี]]+ผลต่างการตลาด[[#Totals],[ปี]]+ผลต่างสำนักงาน[[#Totals],[ปี]]+ผลต่างพนักงาน[[#Totals],[ปี]]","v":{"v":826691,"d":"฿826,691.00"}}]
[null,"ผลรวมค่าใช้จ่ายที่เกิดขึ้นจริง",{"$f":"SUM($C$36:C36)","v":{"v":1738,"d":"฿1,738.00"}},{"$f":"SUM($C$36:D36)","v":{"v":754,"d":"฿754.00"}},{"$f":"SUM($C$36:E36)","v":{"v":2009,"d":"฿2,009.00"}},{"$f":"SUM($C$36:F36)","v":{"v":2310,"d":"฿2,310.00"}},{"$f":"SUM($C$36:G36)","v":{"v":3750,"d":"฿3,750.00"}},{"$f":"SUM($C$36:H36)","v":{"v":6,"d":"฿6.00"}},{"$f":"SUM($C$36:I36)","v":{"v":134701,"d":"฿134,701.00"}},{"$f":"SUM($C$36:J36)","v":{"v":273619,"d":"฿273,619.00"}},{"$f":"SUM($C$36:K36)","v":{"v":409537,"d":"฿409,537.00"}},{"$f":"SUM($C$36:L36)","v":{"v":550455,"d":"฿550,455.00"}},{"$f":"SUM($C$36:M36)","v":{"v":686673,"d":"฿686,673.00"}},{"$f":"SUM($C$36:N36)","v":{"v":826691,"d":"฿826,691.00"}}]

{"sheet":"การวิเคราะห์รายจ่าย","index":4,"n_rows":10,"n_cols":16,"rows_kept":10,"merged":[[2,4,2,6],[11,1,11,5]]}
[{"$nulls":6}," ",{"$nulls":8}," "]
[null,{"$f":"รายจ่ายที่วางแผนไว้!B2:D3","v":"ชื่อบริษัท"}]
[{"$nulls":4},{"$f":"ชื่อเรื่อง_เวิร์กชีต","v":"ประมาณการค่าใช้จ่ายโดยละเอียด"}]
[]
[null,"ประเภทของค่าใช้จ่าย","ค่าใช้จ่ายที่วางแผนไว้","ค่าใช้จ่ายที่เกิดขึ้นจริง","ผลต่างของค่าใช้จ่าย","เปอร์เซ็นต์ของผลต่าง"]
[null,"ต้นทุนพนักงาน",{"$f":"แผนพนักงาน[[#Totals],[ปี]]","v":{"v":1355090,"d":"฿1,355,090.00"}},{"$f":"ต้นทุนพนักงานจริง[[#Totals],[ปี]]","v":{"v":659130,"d":"฿659,130.00"}},{"$f":"C6-D6","v":{"v":695960,"d":"฿695,960.00"}},{"$f":"E6/C6","v":{"v":0.5135895032802249,"d":"51%"}}]
[null,{"$f":"รายจ่ายที่วางแผนไว้!B10","v":"ต้นทุนสำนักงาน"},{"$f":"แผนสำนักงาน[[#Totals],[ปี]]","v":{"v":138740,"d":"฿138,740.00"}},{"$f":"ต้นทุนสำนักงานจริง[[#Totals],[ปี]]","v":{"v":69350,"d":"฿69,350.00"}},{"$f":"C7-D7","v":{"v":69390,"d":"฿69,390.00"}},{"$f":"E7/C7","v":{"v":0.5001441545336601,"d":"50%"}}]
[null,{"$f":"รายจ่ายที่วางแผนไว้!B21","v":"ต้นทุนการตลาด"},{"$f":"แผนการตลาด[[#Totals],[ปี]]","v":{"v":67800,"d":"฿67,800.00"}},{"$f":"ต้นทุนการตลาดจริง[[#Totals],[ปี]]","v":{"v":33159,"d":"฿33,159.00"}},{"$f":"C8-D8","v":{"v":34641,"d":"฿34,641.00"}},{"$f":"E8/C8","v":{"v":0.510929203539823,"d":"51%"}}]
[null,{"$f":"รายจ่ายที่วางแผนไว้!B30","v":"การฝึกอบรม/เดินทาง"},{"$f":"แผนการฝึกอบรมและการเดินทาง[[#Totals],[ปี]]","v":{"v":48000,"d":"฿48,000.00"}},{"$f":"ต้นทุนการฝึกอบรมและการเดินทางจริง[[#Totals],[ปี]]","v":{"v":21300,"d":"฿21,300.00"}},{"$f":"C9-D9","v":{"v":26700,"d":"฿26,700.00"}},{"$f":"E9/C9","v":{"v":0.55625,"d":"56%"}}]
[null,{"$f":"รายจ่ายที่วางแผนไว้!B35","v":"ผลรวม"},{"$f":"รายจ่ายที่วางแผนไว้!O36","v":{"v":1609630,"d":"฿1,609,630.00"}},{"$f":"รายจ่ายจริง!O36","v":{"v":782939,"d":"฿782,939.00"}},{"$f":"C10-D10","v":{"v":826691,"d":"฿826,691.00"}},{"$f":"E10/C10","v":{"v":0.5135907009685455,"d":"51%"}}]